Body Name,Body,Service Label,Service Code,CIPFA Detailed Expenditure Type,CIPFA Detailed Expenditure Code,Date,Transaction Number,Net Amount,Supplier Name,,,,,,,,,,,Aug
Nottinghamshire County Council,1111/1001,Surplus or Deficit from Trading Undertak,TRADING,Premises Related,BJA,13/08/2013,05-10001,600.04,Biffa Waste Services Ltd,y,,,,,,,,,,
Nottinghamshire County Council,1111/1001,Surplus or Deficit from Trading Undertak,TRADING,Supplies & Services,DDA,06/08/2013,05-10001,3244.67,Hamelin Paperbrands Ltd,y,,,,,,,,,,
Nottinghamshire County Council,1111/1001,Surplus or Deficit from Trading Undertak,TRADING,Supplies & Services,DDA,06/08/2013,05-10001,6106.88,Hamelin Paperbrands Ltd,y,,,,,,,,,,
Nottinghamshire County Council,1111/1001,Surplus or Deficit from Trading Undertak,TRADING,Supplies & Services,DDA,06/08/2013,05-10001,569.84,Hamelin Paperbrands Ltd,y,,,,,,,,,,
Nottinghamshire County Council,1111/1001,Surplus or Deficit from Trading Undertak,TRADING,Supplies & Services,DDA,07/08/2013,05-10001,9638.72,Hamelin Paperbrands Ltd,y,,,,,,,,,,
Nottinghamshire County Council,1111/1001,Surplus or Deficit from Trading Undertak,TRADING,Supplies & Services,DDA,14/08/2013,05-10001,1994.8,Hamelin Paperbrands Ltd,y,,,,,,,,,,
Nottinghamshire County Council,1111/1001,Surplus or Deficit from Trading Undertak,TRADING,Supplies & Services,DDA,23/08/2013,05-10001,9613.7,Hamelin Paperbrands Ltd,y,,,,,,,,,,
Nottinghamshire County Council,1111/1001,Surplus or Deficit from Trading Undertak,TRADING,Supplies & Services,DDA,13/08/2013,05-10001,749.4,Premier Plus Stationery Ltd,y,,,,,,,,,,
Nottinghamshire County Council,1111/1001,Surplus or Deficit from Trading Undertak,TRADING,Supplies & Services,DDA,09/08/2013,05-10001,855,Hardy & Hanson Ltd,y,,,,,,,,,,
Nottinghamshire County Council,1111/1001,Surplus or Deficit from Trading Undertak,TRADING,Supplies & Services,DDA,07/08/2013,05-10001,565.8,Decree Thermo Ltd,y,,,,,,,,,,
Nottinghamshire County Council,1111/1001,Surplus or Deficit from Trading Undertak,TRADING,Supplies & Services,DDA,09/08/2013,05-10001,1750.36,Plastoreg Smidt Gmbh,y,,,,,,,,,,
Nottinghamshire County Council,1111/1001,Surplus or Deficit from Trading Undertak,TRADING,Supplies & Services,DDA,14/08/2013,05-10001,742.8,Plastoreg Smidt Gmbh,y,,,,,,,,,,
Nottinghamshire County Council,1111/1001,Surplus or Deficit from Trading Undertak,TRADING,Supplies & Services,DDA,29/08/2013,05-10001,624.6,Plastoreg Smidt Gmbh,y,,,,,,,,,,
Nottinghamshire County Council,1111/1001,Surplus or Deficit from Trading Undertak,TRADING,Supplies & Services,DDA,09/08/2013,05-10001,6866.64,Henkel Loctite Adhesives Ltd,y,,,,,,,,,,
Nottinghamshire County Council,1111/1001,Surplus or Deficit from Trading Undertak,TRADING,Supplies & Services,DDA,13/08/2013,05-10001,2843.64,Henkel Loctite Adhesives Ltd,y,,,,,,,,,,
Nottinghamshire County Council,1111/1001,Surplus or Deficit from Trading Undertak,TRADING,Supplies & Services,DAA,21/08/2013,05-10001,1361.04,Bostik Ltd,y,,,,,,,,,,
Nottinghamshire County Council,1111/1001,Surplus or Deficit from Trading Undertak,TRADING,Supplies & Services,DAA,06/08/2013,05-10001,525.82,Reliance Medical Ltd,y,,,,,,,,,,
Nottinghamshire County Council,1111/1001,Surplus or Deficit from Trading Undertak,TRADING,Supplies & Services,DAA,09/08/2013,05-10001,902.86,Reliance Medical Ltd,y,,,,,,,,,,
Nottinghamshire County Council,1111/1001,Surplus or Deficit from Trading Undertak,TRADING,Supplies & Services,DAA,09/08/2013,05-10001,1006.71,Durable Business Systems Ltd,y,,,,,,,,,,
Nottinghamshire County Council,1111/1001,Surplus or Deficit from Trading Undertak,TRADING,Supplies & Services,DAA,06/08/2013,05-10001,864.5,Pc World Business,y,,,,,,,,,,
Nottinghamshire County Council,1111/1001,Surplus or Deficit from Trading Undertak,TRADING,Supplies & Services,DAA,06/08/2013,05-10001,760,Flip File Ltd,y,,,,,,,,,,
Nottinghamshire County Council,1111/1001,Surplus or Deficit from Trading Undertak,TRADING,Supplies & Services,DAA,06/08/2013,05-10001,637.1,Flip File Ltd,y,,,,,,,,,,
Nottinghamshire County Council,1111/1001,Surplus or Deficit from Trading Undertak,TRADING,Supplies & Services,DAA,09/08/2013,05-10001,1328.19,Flip File Ltd,y,,,,,,,,,,
Nottinghamshire County Council,1111/1001,Surplus or Deficit from Trading Undertak,TRADING,Supplies & Services,DAA,09/08/2013,05-10001,1113.85,Flip File Ltd,y,,,,,,,,,,
Nottinghamshire County Council,1111/1001,Surplus or Deficit from Trading Undertak,TRADING,Supplies & Services,DAA,06/08/2013,05-10001,2685.97,Vivid Laminating Technologies Ltd,y,,,,,,,,,,
Nottinghamshire County Council,1111/1001,Surplus or Deficit from Trading Undertak,TRADING,Supplies & Services,DAA,07/08/2013,05-10001,580.75,Vivid Laminating Technologies Ltd,y,,,,,,,,,,
Nottinghamshire County Council,1111/1001,Surplus or Deficit from Trading Undertak,TRADING,Supplies & Services,DAA,07/08/2013,05-10001,1099.85,Vivid Laminating Technologies Ltd,y,,,,,,,,,,
Nottinghamshire County Council,1111/1001,Surplus or Deficit from Trading Undertak,TRADING,Supplies & Services,DAA,07/08/2013,05-10001,862.44,Vivid Laminating Technologies Ltd,y,,,,,,,,,,
Nottinghamshire County Council,1111/1001,Surplus or Deficit from Trading Undertak,TRADING,Supplies & Services,DAA,21/08/2013,05-10001,837.78,Vivid Laminating Technologies Ltd,y,,,,,,,,,,
Nottinghamshire County Council,1111/1001,Surplus or Deficit from Trading Undertak,TRADING,Supplies & Services,DAA,23/08/2013,05-10001,13104,Xerox Office Supplies,y,,,,,,,,,,
Nottinghamshire County Council,1111/1001,Surplus or Deficit from Trading Undertak,TRADING,Supplies & Services,DAA,28/08/2013,05-10001,958.08,Xerox Office Supplies,y,,,,,,,,,,
Nottinghamshire County Council,1111/1001,Surplus or Deficit from Trading Undertak,TRADING,Supplies & Services,DAA,06/08/2013,05-10001,652.8,Heritage Envelopes Ltd,y,,,,,,,,,,
Nottinghamshire County Council,1111/1001,Surplus or Deficit from Trading Undertak,TRADING,Supplies & Services,DAA,06/08/2013,05-10001,1802.5,Talk Paper,y,,,,,,,,,,
Nottinghamshire County Council,1111/1001,Surplus or Deficit from Trading Undertak,TRADING,Supplies & Services,DAA,09/08/2013,05-10001,1043.8,Talk Paper,y,,,,,,,,,,
Nottinghamshire County Council,1111/1001,Surplus or Deficit from Trading Undertak,TRADING,Supplies & Services,DAA,21/08/2013,05-10001,3458.31,Supplies Team Ltd,y,,,,,,,,,,
Nottinghamshire County Council,1111/1001,Surplus or Deficit from Trading Undertak,TRADING,Supplies & Services,DAA,21/08/2013,05-10001,1106.15,Supplies Team Ltd,y,,,,,,,,,,
Nottinghamshire County Council,1111/1001,Surplus or Deficit from Trading Undertak,TRADING,Supplies & Services,DAA,21/08/2013,05-10001,1615.63,Supplies Team Ltd,y,,,,,,,,,,
Nottinghamshire County Council,1111/1001,Surplus or Deficit from Trading Undertak,TRADING,Supplies & Services,DAA,21/08/2013,05-10001,858.95,Supplies Team Ltd,y,,,,,,,,,,
Nottinghamshire County Council,1111/1001,Surplus or Deficit from Trading Undertak,TRADING,Supplies & Services,DAA,09/08/2013,05-10001,557.4,The Hira Company Ltd,y,,,,,,,,,,
Nottinghamshire County Council,1111/1001,Surplus or Deficit from Trading Undertak,TRADING,Premises Related,BJA,06/08/2013,05-10001,1411.2,Polystar Plastics Ltd,y,,,,,,,,,,
Nottinghamshire County Council,1111/1001,Surplus or Deficit from Trading Undertak,TRADING,Premises Related,BJA,06/08/2013,05-10001,600,Kimberley Clark European Services Ltd,y,,,,,,,,,,
Nottinghamshire County Council,1111/1001,Surplus or Deficit from Trading Undertak,TRADING,Premises Related,BJA,06/08/2013,05-10001,1006.02,Kimberley Clark European Services Ltd,y,,,,,,,,,,
Nottinghamshire County Council,1111/1001,Surplus or Deficit from Trading Undertak,TRADING,Premises Related,BJA,29/08/2013,05-10001,1243.53,Kimberley Clark European Services Ltd,y,,,,,,,,,,
Nottinghamshire County Council,1111/1001,Surplus or Deficit from Trading Undertak,TRADING,Premises Related,BJA,13/08/2013,05-10001,548.8,Leafield Environmental Ltd,y,,,,,,,,,,
Nottinghamshire County Council,1111/1001,Surplus or Deficit from Trading Undertak,TRADING,Premises Related,BJA,29/08/2013,05-10001,1337.6,Cromwell Polythene Ltd,y,,,,,,,,,,
Nottinghamshire County Council,1111/1001,Surplus or Deficit from Trading Undertak,TRADING,Premises Related,BJA,06/08/2013,05-10001,1323.15,Evans Vanodine International Ltd,y,,,,,,,,,,
Nottinghamshire County Council,1111/1001,Surplus or Deficit from Trading Undertak,TRADING,Premises Related,BJA,06/08/2013,05-10001,615.69,Evans Vanodine International Ltd,y,,,,,,,,,,
Nottinghamshire County Council,1111/1001,Surplus or Deficit from Trading Undertak,TRADING,Premises Related,BJA,06/08/2013,05-10001,8512.82,Premiere Products,y,,,,,,,,,,
Nottinghamshire County Council,1111/1001,Surplus or Deficit from Trading Undertak,TRADING,Premises Related,BJA,16/08/2013,05-10001,9651.17,Premiere Products,y,,,,,,,,,,
Nottinghamshire County Council,1111/1001,Surplus or Deficit from Trading Undertak,TRADING,Premises Related,BJA,21/08/2013,05-10001,732,Premiere Products,y,,,,,,,,,,
Nottinghamshire County Council,1111/1001,Surplus or Deficit from Trading Undertak,TRADING,Premises Related,BJA,29/08/2013,05-10001,1174,Candor Services,y,,,,,,,,,,
Nottinghamshire County Council,1111/1001,Surplus or Deficit from Trading Undertak,TRADING,Supplies & Services,DAA,06/08/2013,05-10001,1110.31,W V Howe (Hardware) Ltd,y,,,,,,,,,,
Nottinghamshire County Council,1111/1001,Surplus or Deficit from Trading Undertak,TRADING,Supplies & Services,DAA,21/08/2013,05-10001,1421.92,W V Howe (Hardware) Ltd,y,,,,,,,,,,
Nottinghamshire County Council,1111/1001,Surplus or Deficit from Trading Undertak,TRADING,Supplies & Services,DAA,06/08/2013,05-10001,585,Catering Supplies (Wakefield) Ltd,y,,,,,,,,,,
Nottinghamshire County Council,1111/1001,Surplus or Deficit from Trading Undertak,TRADING,Supplies & Services,DAA,29/08/2013,05-10001,1266.15,Catering Supplies (Wakefield) Ltd,y,,,,,,,,,,
Nottinghamshire County Council,1111/1001,Surplus or Deficit from Trading Undertak,TRADING,Supplies & Services,DAA,16/08/2013,05-10001,4500.11,Sca Hygiene,y,,,,,,,,,,
Nottinghamshire County Council,1111/1001,Surplus or Deficit from Trading Undertak,TRADING,Supplies & Services,DAA,16/08/2013,05-10001,6268.55,Sca Hygiene,y,,,,,,,,,,
Nottinghamshire County Council,1111/1001,Surplus or Deficit from Trading Undertak,TRADING,Supplies & Services,DAA,28/08/2013,05-10001,3269.78,Sca Hygiene,y,,,,,,,,,,
Nottinghamshire County Council,1111/1001,Surplus or Deficit from Trading Undertak,TRADING,Supplies & Services,DAA,13/08/2013,05-10001,503.55,Prostar Sports Ltd,y,,,,,,,,,,
Nottinghamshire County Council,1111/1001,Surplus or Deficit from Trading Undertak,TRADING,Supplies & Services,DAA,09/08/2013,05-10001,959.2,Eagle Envelopes Ltd,y,,,,,,,,,,
Nottinghamshire County Council,1111/1001,Surplus or Deficit from Trading Undertak,TRADING,Supplies & Services,DAA,28/08/2013,05-10001,1272.3,Eagle Envelopes Ltd,y,,,,,,,,,,
Nottinghamshire County Council,1111/1001,Surplus or Deficit from Trading Undertak,TRADING,Supplies & Services,DAA,16/08/2013,05-10001,1094.3,Kay-Metzeler Ltd,y,,,,,,,,,,
Nottinghamshire County Council,1111/1001,Surplus or Deficit from Trading Undertak,TRADING,Supplies & Services,DBA,29/08/2013,05-10001,694.26,North West Tea Service Ltd,y,,,,,,,,,,
Nottinghamshire County Council,1111/1001,Surplus or Deficit from Trading Undertak,TRADING,Supplies & Services,DAA,06/08/2013,05-10001,617.88,Dualit Ltd,y,,,,,,,,,,
Nottinghamshire County Council,1111/1001,Surplus or Deficit from Trading Undertak,TRADING,Supplies & Services,DAA,28/08/2013,05-10001,600,Stearn Electric Company Ltd,y,,,,,,,,,,
Nottinghamshire County Council,1111/1001,Surplus or Deficit from Trading Undertak,TRADING,Supplies & Services,DCA,21/08/2013,05-10001,783.2,Freudenberg Household Products Lp,y,,,,,,,,,,
Nottinghamshire County Council,1111/1001,Surplus or Deficit from Trading Undertak,TRADING,Supplies & Services,DCA,21/08/2013,05-10001,1490.22,Shermond,y,,,,,,,,,,
Nottinghamshire County Council,1111/1001,Surplus or Deficit from Trading Undertak,TRADING,Supplies & Services,DCA,29/08/2013,05-10001,521.44,Sport & Playbase Ltd,y,,,,,,,,,,
Nottinghamshire County Council,1111/1001,Surplus or Deficit from Trading Undertak,TRADING,Supplies & Services,DKA,07/08/2013,05-10001,849.6,Wilkinson Healthcare,y,,,,,,,,,,
Nottinghamshire County Council,1111/1001,Surplus or Deficit from Trading Undertak,TRADING,Supplies & Services,DKA,06/08/2013,05-10001,1244.8,Bunzl Cleaning & Hygiene Supplies,y,,,,,,,,,,
Nottinghamshire County Council,1111/1001,Surplus or Deficit from Trading Undertak,TRADING,Supplies & Services,DKA,07/08/2013,05-10001,1415.47,Bunzl Cleaning & Hygiene Supplies,y,,,,,,,,,,
Nottinghamshire County Council,1111/1001,Surplus or Deficit from Trading Undertak,TRADING,Supplies & Services,DKA,09/08/2013,05-10001,2195.7,Bunzl Cleaning & Hygiene Supplies,y,,,,,,,,,,
Nottinghamshire County Council,1111/1001,Surplus or Deficit from Trading Undertak,TRADING,Supplies & Services,DKA,13/08/2013,05-10001,760.6,Bunzl Cleaning & Hygiene Supplies,y,,,,,,,,,,
Nottinghamshire County Council,1111/1001,Surplus or Deficit from Trading Undertak,TRADING,Supplies & Services,DKA,13/08/2013,05-10001,510.8,Bunzl Cleaning & Hygiene Supplies,y,,,,,,,,,,
Nottinghamshire County Council,1111/1001,Surplus or Deficit from Trading Undertak,TRADING,Supplies & Services,DKA,28/08/2013,05-10001,522,Bunzl Cleaning & Hygiene Supplies,y,,,,,,,,,,
Nottinghamshire County Council,1111/1001,Surplus or Deficit from Trading Undertak,TRADING,Supplies & Services,DAA,13/08/2013,05-10001,834,R Scott & Sons Ltd,y,,,,,,,,,,
Nottinghamshire County Council,1111/1001,Surplus or Deficit from Trading Undertak,TRADING,Supplies & Services,DAA,21/08/2013,05-10001,3773.86,R Scott & Sons Ltd,y,,,,,,,,,,
Nottinghamshire County Council,1111/1001,Surplus or Deficit from Trading Undertak,TRADING,Supplies & Services,DAA,13/08/2013,05-10001,692.16,Office Innovations,y,,,,,,,,,,
Nottinghamshire County Council,1111/1001,Surplus or Deficit from Trading Undertak,TRADING,Supplies & Services,DAA,07/08/2013,05-10001,710,Principal Furniture,y,,,,,,,,,,
Nottinghamshire County Council,1111/1001,Surplus or Deficit from Trading Undertak,TRADING,Supplies & Services,DAA,13/08/2013,05-10001,672,Principal Furniture,y,,,,,,,,,,
Nottinghamshire County Council,1111/1001,Surplus or Deficit from Trading Undertak,TRADING,Supplies & Services,DAA,16/08/2013,05-10001,1617.5,Principal Furniture,y,,,,,,,,,,
Nottinghamshire County Council,1111/1001,Surplus or Deficit from Trading Undertak,TRADING,Supplies & Services,DAA,07/08/2013,05-10001,1251.45,Advanced Moulds Ltd,y,,,,,,,,,,
Nottinghamshire County Council,1111/1001,Surplus or Deficit from Trading Undertak,TRADING,Supplies & Services,DAA,07/08/2013,05-10001,1540,Advanced Moulds Ltd,y,,,,,,,,,,
Nottinghamshire County Council,1111/1001,Surplus or Deficit from Trading Undertak,TRADING,Supplies & Services,DAA,28/08/2013,05-10001,900,Advanced Moulds Ltd,y,,,,,,,,,,
Nottinghamshire County Council,1111/1001,Surplus or Deficit from Trading Undertak,TRADING,Supplies & Services,DAA,06/08/2013,05-10001,774.24,Addis Housewares Ltd,y,,,,,,,,,,
Nottinghamshire County Council,1111/1001,Surplus or Deficit from Trading Undertak,TRADING,Supplies & Services,DAA,07/08/2013,05-10001,1649.92,Niels Larsen Ltd,y,,,,,,,,,,
Nottinghamshire County Council,1111/1001,Surplus or Deficit from Trading Undertak,TRADING,Supplies & Services,DAA,23/08/2013,05-10001,615,Combined Office Interiors Ltd,y,,,,,,,,,,
Nottinghamshire County Council,1111/1001,Surplus or Deficit from Trading Undertak,TRADING,Supplies & Services,DAA,28/08/2013,05-10001,660,Combined Office Interiors Ltd,y,,,,,,,,,,
Nottinghamshire County Council,1111/1001,Surplus or Deficit from Trading Undertak,TRADING,Supplies & Services,DAA,28/08/2013,05-10001,965.3,Qmp,y,,,,,,,,,,
Nottinghamshire County Council,1111/1001,Surplus or Deficit from Trading Undertak,TRADING,Supplies & Services,DAA,29/08/2013,05-10001,9504,Sherwood Concepts Ltd,y,,,,,,,,,,
Nottinghamshire County Council,1111/1001,Surplus or Deficit from Trading Undertak,TRADING,Supplies & Services,DAA,16/08/2013,05-10001,534.96,"Triumph, Tbs (South Wales) Ltd",y,,,,,,,,,,
Nottinghamshire County Council,1111/1001,Surplus or Deficit from Trading Undertak,TRADING,Supplies & Services,DAA,13/08/2013,05-10001,537.34,Office Update,y,,,,,,,,,,
Nottinghamshire County Council,1111/1001,Surplus or Deficit from Trading Undertak,TRADING,Supplies & Services,DAA,14/08/2013,05-10001,633.5,Titan Furniture (Uk) Ltd,y,,,,,,,,,,
Nottinghamshire County Council,1111/1001,Surplus or Deficit from Trading Undertak,TRADING,Supplies & Services,DAA,28/08/2013,05-10001,603.2,Titan Furniture (Uk) Ltd,y,,,,,,,,,,
Nottinghamshire County Council,1111/1001,Surplus or Deficit from Trading Undertak,TRADING,Supplies & Services,DAA,21/08/2013,05-10001,840,Mardel Office Interiors,y,,,,,,,,,,
Nottinghamshire County Council,1111/1001,Surplus or Deficit from Trading Undertak,TRADING,Supplies & Services,DAA,21/08/2013,05-10001,1907.2,Mardel Office Interiors,y,,,,,,,,,,
Nottinghamshire County Council,1111/1001,Surplus or Deficit from Trading Undertak,TRADING,Supplies & Services,DAA,14/08/2013,05-10001,503.92,Aquila Business Products,y,,,,,,,,,,
Nottinghamshire County Council,1111/1001,Surplus or Deficit from Trading Undertak,TRADING,Supplies & Services,DAA,16/08/2013,05-10001,934.38,Aquila Business Products,y,,,,,,,,,,
Nottinghamshire County Council,1111/1001,Surplus or Deficit from Trading Undertak,TRADING,Supplies & Services,DAA,06/08/2013,05-10001,689,Signsolutions Midlands Ltd,y,,,,,,,,,,
Nottinghamshire County Council,1111/1001,Surplus or Deficit from Trading Undertak,TRADING,Supplies & Services,DAA,07/08/2013,05-10001,569.4,Hille Education Products Ltd,y,,,,,,,,,,
Nottinghamshire County Council,1111/1001,Surplus or Deficit from Trading Undertak,TRADING,Supplies & Services,DAA,13/08/2013,05-10001,645.32,Hille Education Products Ltd,y,,,,,,,,,,
Nottinghamshire County Council,1111/1001,Surplus or Deficit from Trading Undertak,TRADING,Supplies & Services,DAA,13/08/2013,05-10001,556.95,Hille Education Products Ltd,y,,,,,,,,,,
Nottinghamshire County Council,1111/1001,Surplus or Deficit from Trading Undertak,TRADING,Supplies & Services,DAA,16/08/2013,05-10001,1195,Hille Education Products Ltd,y,,,,,,,,,,
Nottinghamshire County Council,1111/1001,Surplus or Deficit from Trading Undertak,TRADING,Supplies & Services,DAA,28/08/2013,05-10001,569.4,Hille Education Products Ltd,y,,,,,,,,,,
Nottinghamshire County Council,1111/1001,Surplus or Deficit from Trading Undertak,TRADING,Supplies & Services,DAA,06/08/2013,05-10001,771.14,R2 Solutions Ltd,y,,,,,,,,,,
Nottinghamshire County Council,1111/1001,Surplus or Deficit from Trading Undertak,TRADING,Supplies & Services,DAA,14/08/2013,05-10001,722.16,R2 Solutions Ltd,y,,,,,,,,,,
Nottinghamshire County Council,1111/1001,Surplus or Deficit from Trading Undertak,TRADING,Supplies & Services,DAA,13/08/2013,05-10001,708.2,Ggi Office Furniture (Uk) Ltd,y,,,,,,,,,,
Nottinghamshire County Council,1111/1001,Surplus or Deficit from Trading Undertak,TRADING,Supplies & Services,DAA,06/08/2013,05-10001,618,Denis Rawlins Ltd,y,,,,,,,,,,
Nottinghamshire County Council,1111/1001,Surplus or Deficit from Trading Undertak,TRADING,Supplies & Services,DAA,21/08/2013,05-10001,1033.33,Gopak Ltd,y,,,,,,,,,,
Nottinghamshire County Council,1111/1001,Surplus or Deficit from Trading Undertak,TRADING,Supplies & Services,DAA,09/08/2013,05-10001,1177.26,Gratnells Ltd,y,,,,,,,,,,
Nottinghamshire County Council,1111/1001,Surplus or Deficit from Trading Undertak,TRADING,Supplies & Services,DAA,13/08/2013,05-10001,1111.68,Gratnells Ltd,y,,,,,,,,,,
Nottinghamshire County Council,1111/1001,Surplus or Deficit from Trading Undertak,TRADING,Supplies & Services,DAA,16/08/2013,05-10001,901.76,Hille Seating Ltd,y,,,,,,,,,,
Nottinghamshire County Council,1111/1001,Surplus or Deficit from Trading Undertak,TRADING,Supplies & Services,DAA,21/08/2013,05-10001,743.75,Posturite Uk Ltd,y,,,,,,,,,,
Nottinghamshire County Council,1111/1001,Surplus or Deficit from Trading Undertak,TRADING,Supplies & Services,DAA,13/08/2013,05-10001,705,Metroplan Limited,y,,,,,,,,,,
Nottinghamshire County Council,1111/1001,Surplus or Deficit from Trading Undertak,TRADING,Data Unavailable,DU,29/08/2013,05-10001,609.4,Victoria Grant Ltd,y,,,,,,,,,,
Nottinghamshire County Council,1111/1001,Surplus or Deficit from Trading Undertak,TRADING,Data Unavailable,DU,09/08/2013,05-10001,625.5,Kent County Supplies,y,,,,,,,,,,
Nottinghamshire County Council,1111/1001,Surplus or Deficit from Trading Undertak,TRADING,Data Unavailable,DU,23/08/2013,05-10001,935.8,Kent County Supplies,y,,,,,,,,,,
Nottinghamshire County Council,1111/1001,Surplus or Deficit from Trading Undertak,TRADING,Data Unavailable,DU,29/08/2013,05-10001,735,Kent County Supplies,y,,,,,,,,,,
Nottinghamshire County Council,1111/1001,Surplus or Deficit from Trading Undertak,TRADING,Data Unavailable,DU,09/08/2013,05-10001,930.1,Craftpacks,y,,,,,,,,,,
Nottinghamshire County Council,1111/1001,Surplus or Deficit from Trading Undertak,TRADING,Data Unavailable,DU,06/08/2013,05-10001,1675.1,Major Brushes Ltd,y,,,,,,,,,,
Nottinghamshire County Council,1111/1001,Surplus or Deficit from Trading Undertak,TRADING,Data Unavailable,DU,06/08/2013,05-10001,501.8,Major Brushes Ltd,y,,,,,,,,,,
Nottinghamshire County Council,1111/1001,Surplus or Deficit from Trading Undertak,TRADING,Data Unavailable,DU,09/08/2013,05-10001,872.8,Major Brushes Ltd,y,,,,,,,,,,
Nottinghamshire County Council,1111/1001,Surplus or Deficit from Trading Undertak,TRADING,Data Unavailable,DU,13/08/2013,05-10001,1109,West Design Products,y,,,,,,,,,,
Nottinghamshire County Council,1111/1001,Surplus or Deficit from Trading Undertak,TRADING,Data Unavailable,DU,06/08/2013,05-10001,849.9,Filalyra Gb Ltd,y,,,,,,,,,,
Nottinghamshire County Council,1111/1001,Surplus or Deficit from Trading Undertak,TRADING,Data Unavailable,DU,06/08/2013,05-10001,1682.4,Newell Rubbermaid,y,,,,,,,,,,
Nottinghamshire County Council,1111/1001,Surplus or Deficit from Trading Undertak,TRADING,Data Unavailable,DU,06/08/2013,05-10001,1909.78,Newell Rubbermaid,y,,,,,,,,,,
Nottinghamshire County Council,1111/1001,Surplus or Deficit from Trading Undertak,TRADING,Data Unavailable,DU,06/08/2013,05-10001,3412.28,Newell Rubbermaid,y,,,,,,,,,,
Nottinghamshire County Council,1111/1001,Surplus or Deficit from Trading Undertak,TRADING,Data Unavailable,DU,06/08/2013,05-10001,561.6,Newell Rubbermaid,y,,,,,,,,,,
Nottinghamshire County Council,1111/1001,Surplus or Deficit from Trading Undertak,TRADING,Data Unavailable,DU,06/08/2013,05-10001,561.6,Newell Rubbermaid,y,,,,,,,,,,
Nottinghamshire County Council,1111/1001,Surplus or Deficit from Trading Undertak,TRADING,Data Unavailable,DU,06/08/2013,05-10001,2196,Newell Rubbermaid,y,,,,,,,,,,
Nottinghamshire County Council,1111/1001,Surplus or Deficit from Trading Undertak,TRADING,Data Unavailable,DU,09/08/2013,05-10001,650,Newell Rubbermaid,y,,,,,,,,,,
Nottinghamshire County Council,1111/1001,Surplus or Deficit from Trading Undertak,TRADING,Data Unavailable,DU,09/08/2013,05-10001,2323.06,Newell Rubbermaid,y,,,,,,,,,,
Nottinghamshire County Council,1111/1001,Surplus or Deficit from Trading Undertak,TRADING,Data Unavailable,DU,06/08/2013,05-10001,1208.9,Acco-Rexel Ltd,y,,,,,,,,,,
Nottinghamshire County Council,1111/1001,Surplus or Deficit from Trading Undertak,TRADING,Data Unavailable,DU,06/08/2013,05-10001,599.7,Acco-Rexel Ltd,y,,,,,,,,,,
Nottinghamshire County Council,1111/1001,Surplus or Deficit from Trading Undertak,TRADING,Data Unavailable,DU,09/08/2013,05-10001,700.4,Acco-Rexel Ltd,y,,,,,,,,,,
Nottinghamshire County Council,1111/1001,Surplus or Deficit from Trading Undertak,TRADING,Data Unavailable,DU,13/08/2013,05-10001,1208.9,Acco-Rexel Ltd,y,,,,,,,,,,
Nottinghamshire County Council,1111/1001,Surplus or Deficit from Trading Undertak,TRADING,Data Unavailable,DU,28/08/2013,05-10001,715.17,Acco-Rexel Ltd,y,,,,,,,,,,
Nottinghamshire County Council,1111/1001,Surplus or Deficit from Trading Undertak,TRADING,Data Unavailable,DU,29/08/2013,05-10001,1001.22,Acco-Rexel Ltd,y,,,,,,,,,,
Nottinghamshire County Council,1111/1001,Surplus or Deficit from Trading Undertak,TRADING,Data Unavailable,DU,13/08/2013,05-10001,522.5,Newclay Products Ltd,y,,,,,,,,,,
Nottinghamshire County Council,1111/1001,Surplus or Deficit from Trading Undertak,TRADING,Data Unavailable,DU,13/08/2013,05-10001,697.5,Newclay Products Ltd,y,,,,,,,,,,
Nottinghamshire County Council,1111/1001,Surplus or Deficit from Trading Undertak,TRADING,Data Unavailable,DU,29/08/2013,05-10001,757.44,R.H.Ritchings Ltd,y,,,,,,,,,,
Nottinghamshire County Council,1111/1001,Surplus or Deficit from Trading Undertak,TRADING,Data Unavailable,DU,29/08/2013,05-10001,1985.5,R.H.Ritchings Ltd,y,,,,,,,,,,
Nottinghamshire County Council,1111/1001,Surplus or Deficit from Trading Undertak,TRADING,Data Unavailable,DU,09/08/2013,05-10001,502.8,Staedtler (Uk) Ltd,y,,,,,,,,,,
Nottinghamshire County Council,1111/1001,Surplus or Deficit from Trading Undertak,TRADING,Data Unavailable,DU,09/08/2013,05-10001,3883.35,Staedtler (Uk) Ltd,y,,,,,,,,,,
Nottinghamshire County Council,1111/1001,Surplus or Deficit from Trading Undertak,TRADING,Data Unavailable,DU,13/08/2013,05-10001,3410.7,Staedtler (Uk) Ltd,y,,,,,,,,,,
Nottinghamshire County Council,1111/1001,Surplus or Deficit from Trading Undertak,TRADING,Data Unavailable,DU,29/08/2013,05-10001,1171.25,Staedtler (Uk) Ltd,y,,,,,,,,,,
Nottinghamshire County Council,1111/1001,Surplus or Deficit from Trading Undertak,TRADING,Data Unavailable,DU,06/08/2013,05-10001,575.03,Bic U.K. Ltd,y,,,,,,,,,,
Nottinghamshire County Council,1111/1001,Surplus or Deficit from Trading Undertak,TRADING,Data Unavailable,DU,07/08/2013,05-10001,724.58,Bic U.K. Ltd,y,,,,,,,,,,
Nottinghamshire County Council,1111/1001,Surplus or Deficit from Trading Undertak,TRADING,Data Unavailable,DU,23/08/2013,05-10001,904.69,Bic U.K. Ltd,y,,,,,,,,,,
Nottinghamshire County Council,1111/1001,Surplus or Deficit from Trading Undertak,TRADING,Data Unavailable,DU,07/08/2013,05-10001,817.97,Edding Uk Ltd,y,,,,,,,,,,
Nottinghamshire County Council,1111/1001,Surplus or Deficit from Trading Undertak,TRADING,Data Unavailable,DU,21/08/2013,05-10001,742.54,Edding Uk Ltd,y,,,,,,,,,,
Nottinghamshire County Council,1111/1001,Surplus or Deficit from Trading Undertak,TRADING,Data Unavailable,DU,21/08/2013,05-10001,597,Edding Uk Ltd,y,,,,,,,,,,
Nottinghamshire County Council,1111/1001,Surplus or Deficit from Trading Undertak,TRADING,Data Unavailable,DU,21/08/2013,05-10001,590.9,Edding Uk Ltd,y,,,,,,,,,,
Nottinghamshire County Council,1111/1001,Surplus or Deficit from Trading Undertak,TRADING,Data Unavailable,DU,29/08/2013,05-10001,566.86,Edding Uk Ltd,y,,,,,,,,,,
Nottinghamshire County Council,1111/1001,Surplus or Deficit from Trading Undertak,TRADING,Data Unavailable,DU,06/08/2013,05-10001,563.82,Rapesco Office Products Plc,y,,,,,,,,,,
Nottinghamshire County Council,1111/1001,Surplus or Deficit from Trading Undertak,TRADING,Data Unavailable,DU,07/08/2013,05-10001,1343.33,Rapesco Office Products Plc,y,,,,,,,,,,
Nottinghamshire County Council,1111/1001,Surplus or Deficit from Trading Undertak,TRADING,Data Unavailable,DU,09/08/2013,05-10001,832.42,Rapesco Office Products Plc,y,,,,,,,,,,
Nottinghamshire County Council,1111/1001,Surplus or Deficit from Trading Undertak,TRADING,Data Unavailable,DU,13/08/2013,05-10001,893.1,Rapesco Office Products Plc,y,,,,,,,,,,
Nottinghamshire County Council,1111/1001,Surplus or Deficit from Trading Undertak,TRADING,Data Unavailable,DU,21/08/2013,05-10001,517.64,Rapesco Office Products Plc,y,,,,,,,,,,
Nottinghamshire County Council,1111/1001,Surplus or Deficit from Trading Undertak,TRADING,Data Unavailable,DU,06/08/2013,05-10001,879.2,Allen Glenold Ltd,y,,,,,,,,,,
Nottinghamshire County Council,1111/1001,Surplus or Deficit from Trading Undertak,TRADING,Data Unavailable,DU,06/08/2013,05-10001,977.24,Allen Glenold Ltd,y,,,,,,,,,,
Nottinghamshire County Council,1111/1001,Surplus or Deficit from Trading Undertak,TRADING,Data Unavailable,DU,06/08/2013,05-10001,1422.36,Allen Glenold Ltd,y,,,,,,,,,,
Nottinghamshire County Council,1111/1001,Surplus or Deficit from Trading Undertak,TRADING,Data Unavailable,DU,13/08/2013,05-10001,559.44,Higher Kings Mill Ltd,y,,,,,,,,,,
Nottinghamshire County Council,1111/1001,Surplus or Deficit from Trading Undertak,TRADING,Data Unavailable,DU,29/08/2013,05-10001,2465.4,Higher Kings Mill Ltd,y,,,,,,,,,,
Nottinghamshire County Council,1111/1001,Surplus or Deficit from Trading Undertak,TRADING,Data Unavailable,DU,09/08/2013,05-10001,553.64,Pentel Stationery Limited,y,,,,,,,,,,
Nottinghamshire County Council,1111/1001,Surplus or Deficit from Trading Undertak,TRADING,Data Unavailable,DU,06/08/2013,05-10001,1081.24,Slater Harrison & Co Ltd,y,,,,,,,,,,
Nottinghamshire County Council,1111/1001,Surplus or Deficit from Trading Undertak,TRADING,Data Unavailable,DU,06/08/2013,05-10001,556.8,Slater Harrison & Co Ltd,y,,,,,,,,,,
Nottinghamshire County Council,1111/1001,Surplus or Deficit from Trading Undertak,TRADING,Data Unavailable,DU,06/08/2013,05-10001,766,Slater Harrison & Co Ltd,y,,,,,,,,,,
Nottinghamshire County Council,1111/1001,Surplus or Deficit from Trading Undertak,TRADING,Data Unavailable,DU,06/08/2013,05-10001,1225.6,Slater Harrison & Co Ltd,y,,,,,,,,,,
Nottinghamshire County Council,1111/1001,Surplus or Deficit from Trading Undertak,TRADING,Data Unavailable,DU,06/08/2013,05-10001,660.05,Slater Harrison & Co Ltd,y,,,,,,,,,,
Nottinghamshire County Council,1111/1001,Surplus or Deficit from Trading Undertak,TRADING,Data Unavailable,DU,07/08/2013,05-10001,1225.6,Slater Harrison & Co Ltd,y,,,,,,,,,,
Nottinghamshire County Council,1111/1001,Surplus or Deficit from Trading Undertak,TRADING,Data Unavailable,DU,07/08/2013,05-10001,964.56,Slater Harrison & Co Ltd,y,,,,,,,,,,
Nottinghamshire County Council,1111/1001,Surplus or Deficit from Trading Undertak,TRADING,Data Unavailable,DU,16/08/2013,05-10001,1163.7,Slater Harrison & Co Ltd,y,,,,,,,,,,
Nottinghamshire County Council,1111/1001,Surplus or Deficit from Trading Undertak,TRADING,Data Unavailable,DU,16/08/2013,05-10001,530.84,Slater Harrison & Co Ltd,y,,,,,,,,,,
Nottinghamshire County Council,1111/1001,Surplus or Deficit from Trading Undertak,TRADING,Data Unavailable,DU,21/08/2013,05-10001,1225.6,Slater Harrison & Co Ltd,y,,,,,,,,,,
Nottinghamshire County Council,1111/1001,Surplus or Deficit from Trading Undertak,TRADING,Data Unavailable,DU,29/08/2013,05-10001,1206.4,Slater Harrison & Co Ltd,y,,,,,,,,,,
Nottinghamshire County Council,1111/1001,Surplus or Deficit from Trading Undertak,TRADING,Data Unavailable,DU,29/08/2013,05-10001,1013.5,Slater Harrison & Co Ltd,y,,,,,,,,,,
Nottinghamshire County Council,1111/1001,Surplus or Deficit from Trading Undertak,TRADING,Data Unavailable,DU,06/08/2013,05-10001,545.67,Creativity International Ltd,y,,,,,,,,,,
Nottinghamshire County Council,1111/1001,Surplus or Deficit from Trading Undertak,TRADING,Data Unavailable,DU,29/08/2013,05-10001,951.8,Creativity International Ltd,y,,,,,,,,,,
Nottinghamshire County Council,1111/1001,Surplus or Deficit from Trading Undertak,TRADING,Data Unavailable,DU,29/08/2013,05-10001,751.19,Creativity International Ltd,y,,,,,,,,,,
Nottinghamshire County Council,1111/1001,Surplus or Deficit from Trading Undertak,TRADING,Data Unavailable,DU,29/08/2013,05-10001,776.28,Creativity International Ltd,y,,,,,,,,,,
Nottinghamshire County Council,1111/1001,Surplus or Deficit from Trading Undertak,TRADING,Data Unavailable,DU,06/08/2013,05-10001,591.86,Valentine Clays,y,,,,,,,,,,
Nottinghamshire County Council,1111/1001,Surplus or Deficit from Trading Undertak,TRADING,Data Unavailable,DU,09/08/2013,05-10001,530.58,Bright Ideas Marketing Ltd,y,,,,,,,,,,
Nottinghamshire County Council,1111/1001,Surplus or Deficit from Trading Undertak,TRADING,Data Unavailable,DU,09/08/2013,05-10001,619.04,Bright Ideas Marketing Ltd,y,,,,,,,,,,
Nottinghamshire County Council,1111/1001,Surplus or Deficit from Trading Undertak,TRADING,Supplies & Services,DAA,07/08/2013,05-10001,751.36,Primo Play Ltd,y,,,,,,,,,,
Nottinghamshire County Council,1111/1001,Surplus or Deficit from Trading Undertak,TRADING,Supplies & Services,DAA,09/08/2013,05-10001,504,Eastpoint,y,,,,,,,,,,
Nottinghamshire County Council,1111/1001,Surplus or Deficit from Trading Undertak,TRADING,Supplies & Services,DAA,09/08/2013,05-10001,1878.03,Eastpoint,y,,,,,,,,,,
Nottinghamshire County Council,1111/1001,Surplus or Deficit from Trading Undertak,TRADING,Supplies & Services,DAA,16/08/2013,05-10001,2941.37,Eastpoint,y,,,,,,,,,,
Nottinghamshire County Council,1111/1001,Surplus or Deficit from Trading Undertak,TRADING,Supplies & Services,DAA,16/08/2013,05-10001,1031.32,Eastpoint,y,,,,,,,,,,
Nottinghamshire County Council,1111/1001,Surplus or Deficit from Trading Undertak,TRADING,Supplies & Services,DAA,21/08/2013,05-10001,2616.76,Eastpoint,y,,,,,,,,,,
Nottinghamshire County Council,1111/1001,Surplus or Deficit from Trading Undertak,TRADING,Supplies & Services,DAA,29/08/2013,05-10001,3313.5,Eastpoint,y,,,,,,,,,,
Nottinghamshire County Council,1111/1001,Surplus or Deficit from Trading Undertak,TRADING,Supplies & Services,DAA,13/08/2013,05-10001,577.41,Kit For Kids Ltd,y,,,,,,,,,,
Nottinghamshire County Council,1111/1001,Surplus or Deficit from Trading Undertak,TRADING,Supplies & Services,DAA,13/08/2013,05-10001,671.88,Kit For Kids Ltd,y,,,,,,,,,,
Nottinghamshire County Council,1111/1001,Surplus or Deficit from Trading Undertak,TRADING,Supplies & Services,DAA,13/08/2013,05-10001,545.91,Kit For Kids Ltd,y,,,,,,,,,,
Nottinghamshire County Council,1111/1001,Surplus or Deficit from Trading Undertak,TRADING,Supplies & Services,DAA,09/08/2013,05-10001,661.22,Education Essentials,y,,,,,,,,,,
Nottinghamshire County Council,1111/1001,Surplus or Deficit from Trading Undertak,TRADING,Supplies & Services,DAA,06/08/2013,05-10001,1561.6,Brian Clegg (Educational Products) Ltd,y,,,,,,,,,,
Nottinghamshire County Council,1111/1001,Surplus or Deficit from Trading Undertak,TRADING,Supplies & Services,DAA,07/08/2013,05-10001,754.44,Brian Clegg (Educational Products) Ltd,y,,,,,,,,,,
Nottinghamshire County Council,1111/1001,Surplus or Deficit from Trading Undertak,TRADING,Supplies & Services,DAA,07/08/2013,05-10001,907.48,Brian Clegg (Educational Products) Ltd,y,,,,,,,,,,
Nottinghamshire County Council,1111/1001,Surplus or Deficit from Trading Undertak,TRADING,Supplies & Services,DAA,07/08/2013,05-10001,545.8,Brian Clegg (Educational Products) Ltd,y,,,,,,,,,,
Nottinghamshire County Council,1111/1001,Surplus or Deficit from Trading Undertak,TRADING,Supplies & Services,DAA,13/08/2013,05-10001,1439.6,Brian Clegg (Educational Products) Ltd,y,,,,,,,,,,
Nottinghamshire County Council,1111/1001,Surplus or Deficit from Trading Undertak,TRADING,Supplies & Services,DAA,13/08/2013,05-10001,884,Brian Clegg (Educational Products) Ltd,y,,,,,,,,,,
Nottinghamshire County Council,1111/1001,Surplus or Deficit from Trading Undertak,TRADING,Supplies & Services,DAA,21/08/2013,05-10001,569.68,Brian Clegg (Educational Products) Ltd,y,,,,,,,,,,
Nottinghamshire County Council,1111/1001,Surplus or Deficit from Trading Undertak,TRADING,Supplies & Services,DAA,23/08/2013,05-10001,1585.81,Brian Clegg (Educational Products) Ltd,y,,,,,,,,,,
Nottinghamshire County Council,1111/1001,Surplus or Deficit from Trading Undertak,TRADING,Supplies & Services,DAA,09/08/2013,05-10001,536.5,Commotion Technology Supplies,y,,,,,,,,,,
Nottinghamshire County Council,1111/1001,Surplus or Deficit from Trading Undertak,TRADING,Supplies & Services,DAA,07/08/2013,05-10001,2015.52,Profile Education Ltd,y,,,,,,,,,,
Nottinghamshire County Council,1111/1001,Surplus or Deficit from Trading Undertak,TRADING,Supplies & Services,DAA,07/08/2013,05-10001,2351.8,Monarch Computer Furniture,y,,,,,,,,,,
Nottinghamshire County Council,1111/1001,Surplus or Deficit from Trading Undertak,TRADING,Supplies & Services,DAA,07/08/2013,05-10001,696.36,Monarch Computer Furniture,y,,,,,,,,,,
Nottinghamshire County Council,1111/1001,Surplus or Deficit from Trading Undertak,TRADING,Supplies & Services,DAA,13/08/2013,05-10001,2675.5,Monarch Computer Furniture,y,,,,,,,,,,
Nottinghamshire County Council,1111/1001,Surplus or Deficit from Trading Undertak,TRADING,Supplies & Services,DAA,13/08/2013,05-10001,608.76,Monarch Computer Furniture,y,,,,,,,,,,
Nottinghamshire County Council,1111/1001,Surplus or Deficit from Trading Undertak,TRADING,Supplies & Services,DAA,14/08/2013,05-10001,750,Monarch Computer Furniture,y,,,,,,,,,,
Nottinghamshire County Council,1111/1001,Surplus or Deficit from Trading Undertak,TRADING,Supplies & Services,DAA,16/08/2013,05-10001,547.18,Monarch Computer Furniture,y,,,,,,,,,,
Nottinghamshire County Council,1111/1001,Surplus or Deficit from Trading Undertak,TRADING,Supplies & Services,DAA,28/08/2013,05-10001,801.82,Monarch Computer Furniture,y,,,,,,,,,,
Nottinghamshire County Council,1111/1001,Surplus or Deficit from Trading Undertak,TRADING,Supplies & Services,DAA,28/08/2013,05-10001,2815.36,Monarch Computer Furniture,y,,,,,,,,,,
Nottinghamshire County Council,1111/1001,Surplus or Deficit from Trading Undertak,TRADING,Supplies & Services,DAA,29/08/2013,05-10001,592.52,Monarch Computer Furniture,y,,,,,,,,,,
Nottinghamshire County Council,1111/1001,Surplus or Deficit from Trading Undertak,TRADING,Supplies & Services,DFA,16/08/2013,05-10001,500,Frama Uk Ltd,y,,,,,,,,,,
Nottinghamshire County Council,1111/1001,Surplus or Deficit from Trading Undertak,TRADING,Employee Related,AAA,13/08/2013,05-10001,2590.71,Frontline Recruitment Ltd,y,,,,,,,,,,
Nottinghamshire County Council,1111/1001,Surplus or Deficit from Trading Undertak,TRADING,Employee Related,AAA,16/08/2013,05-10001,1168.09,Frontline Recruitment Ltd,y,,,,,,,,,,
Nottinghamshire County Council,1111/1001,Children and Young People,CYP,Premises Related,BDA,22/08/2013,05-14026,875,The Derbyshire Hotel,y,,,,,,,,,,
Nottinghamshire County Council,1111/1001,Children and Young People,CYP,Transport Related,CCA,15/08/2013,05-13738,16720,Nottm Minibuses & Coaches,y,,,,,,,,,,
Nottinghamshire County Council,1111/1001,Children and Young People,CYP,Transport Related,CCA,29/08/2013,05-14380,1923.04,Diamond Cars,y,,,,,,,,,,
Nottinghamshire County Council,1111/1001,Children and Young People,CYP,Transport Related,CCA,29/08/2013,05-14381,1551.36,Diamond Cars,y,,,,,,,,,,
Nottinghamshire County Council,1111/1001,Children and Young People,CYP,Transport Related,CCA,29/08/2013,05-14382,2026.06,Diamond Cars,y,,,,,,,,,,
Nottinghamshire County Council,1111/1001,Children and Young People,CYP,Transport Related,CDA,15/08/2013,05-13739,54565.3,Nottm Minibuses & Coaches,y,,,,,,,,,,
Nottinghamshire County Council,1111/1001,Children and Young People,CYP,Supplies & Services,DAA,12/08/2013,05-10355,51703.55,Arnold Hill Academy,y,,,,,,,,,,
Nottinghamshire County Council,1111/1001,Children and Young People,CYP,Supplies & Services,DBA,05/08/2013,05-10091,405.35,Hallam Country Fresh Foods Ltd,y,,,,,,,,,,
Nottinghamshire County Council,1111/1001,Children and Young People,CYP,Supplies & Services,DBA,06/08/2013,05-10239,314.91,Brake Bros Ltd,y,,,,,,,,,,
Nottinghamshire County Council,1111/1001,Children and Young People,CYP,Supplies & Services,DBA,06/08/2013,05-10240,98.02,Brake Bros Ltd,y,,,,,,,,,,
Nottinghamshire County Council,1111/1001,Children and Young People,CYP,Supplies & Services,DBA,12/08/2013,05-10359,305.21,M Maloney Country Butchers & B Ltd,y,,,,,,,,,,
Nottinghamshire County Council,1111/1001,Children and Young People,CYP,Supplies & Services,DBA,12/08/2013,05-10360,287.59,M Maloney Country Butchers & B Ltd,y,,,,,,,,,,
Nottinghamshire County Council,1111/1001,Children and Young People,CYP,Supplies & Services,DBA,19/08/2013,05-13785,480.02,Brake Bros Ltd,y,,,,,,,,,,
Nottinghamshire County Council,1111/1001,Children and Young People,CYP,Supplies & Services,DBA,22/08/2013,05-14024,338.24,M Maloney Country Butchers & B Ltd,y,,,,,,,,,,
Nottinghamshire County Council,1111/1001,Children and Young People,CYP,Supplies & Services,DBA,28/08/2013,05-14163,541.56,Hallam Country Fresh Foods Ltd,y,,,,,,,,,,
Nottinghamshire County Council,1111/1001,Children and Young People,CYP,Supplies & Services,DBA,29/08/2013,05-14378,25.31,Brake Bros Ltd,y,,,,,,,,,,
Nottinghamshire County Council,1111/1001,Children and Young People,CYP,Supplies & Services,DEA,02/08/2013,05-10088,3916.67,Adoptionplus Ltd,y,,,,,,,,,,
Nottinghamshire County Council,1111/1001,Children and Young People,CYP,Supplies & Services,DEA,02/08/2013,05-10089,3916.67,Adoptionplus Ltd,y,,,,,,,,,,
Nottinghamshire County Council,1111/1001,Children and Young People,CYP,Supplies & Services,DHA,19/08/2013,05-13787,2440,The Mobility Equipment Company Ltd,y,,,,,,,,,,
Nottinghamshire County Council,1111/1001,Children and Young People,CYP,Supplies & Services,DKA,01/08/2013,05-10080,2000,Buckinghamshire County Council,y,,,,,,,,,,
Nottinghamshire County Council,1111/1001,Children and Young People,CYP,Supplies & Services,DKA,07/08/2013,05-10246,1715,Welbeck Hotel,y,,,,,,,,,,
Nottinghamshire County Council,1111/1001,Children and Young People,CYP,Supplies & Services,DKA,07/08/2013,05-10247,870.05,Nottm Community Housing Ass,y,,,,,,,,,,
Nottinghamshire County Council,1111/1001,Children and Young People,CYP,Supplies & Services,DKA,12/08/2013,05-10356,16793.15,Bunny C Of E Primary School,y,,,,,,,,,,
Nottinghamshire County Council,1111/1001,Children and Young People,CYP,Supplies & Services,DKA,12/08/2013,05-10361,862.5,Midland Hotel,y,,,,,,,,,,
Nottinghamshire County Council,1111/1001,Children and Young People,CYP,Supplies & Services,DKA,15/08/2013,05-13778,18649.45,Bunny C Of E Primary School,y,,,,,,,,,,
Nottinghamshire County Council,1111/1001,Children and Young People,CYP,Supplies & Services,DKA,20/08/2013,05-13925,894.33,Carefirst Services,y,,,,,,,,,,
Nottinghamshire County Council,1111/1001,Children and Young People,CYP,Supplies & Services,DKA,22/08/2013,05-14025,18305.96,George Spencer Academy,y,,,,,,,,,,
Nottinghamshire County Council,1111/1001,Children and Young People,CYP,Supplies & Services,DKA,22/08/2013,05-14027,733.6,D Cameron,n,,,,,,,,,,
Nottinghamshire County Council,1111/1001,Children and Young People,CYP,Supplies & Services,DKA,22/08/2013,05-14028,21972.64,George Spencer Academy,y,,,,,,,,,,
Nottinghamshire County Council,1111/1001,Children and Young People,CYP,Supplies & Services,DKA,27/08/2013,05-14047,880,S & P Williams,y,,,,,,,,,,
Nottinghamshire County Council,1111/1001,Children and Young People,CYP,Supplies & Services,DKA,27/08/2013,05-14162,1742.68,Commited Social Care Ltd,y,,,,,,,,,,
Nottinghamshire County Council,1111/1001,Children and Young People,CYP,Third Party Payments,EBA,15/08/2013,05-13747,26092.85,Home Group Limited,y,,,,,,,,,,
Nottinghamshire County Council,1111/1001,Children and Young People,CYP,Third Party Payments,EBA,15/08/2013,05-13748,6136.99,The Kirkby Trust,y,,,,,,,,,,
Nottinghamshire County Council,1111/1001,Children and Young People,CYP,Third Party Payments,EBA,15/08/2013,05-13757,1723.88,Metropolitan Support Trust,y,,,,,,,,,,
Nottinghamshire County Council,1111/1001,Children and Young People,CYP,Third Party Payments,EBA,15/08/2013,05-13762,20609.23,Newark Emmaus Trust,y,,,,,,,,,,
Nottinghamshire County Council,1111/1001,Children and Young People,CYP,Third Party Payments,EBA,15/08/2013,05-13767,10571.57,Framework Housing Association,y,,,,,,,,,,
Nottinghamshire County Council,1111/1001,Children and Young People,CYP,Third Party Payments,EBA,15/08/2013,05-13768,44237.93,Nottingham Community Housing,y,,,,,,,,,,
Nottinghamshire County Council,1111/1001,Children and Young People,CYP,Third Party Payments,EDA,16/08/2013,05-14398,604,National Church Of England Academy,y,,,,,,,,,,
Nottinghamshire County Council,1111/1001,Children and Young People,CYP,Third Party Payments,EDA,16/08/2013,05-14399,1311,Tuxford Academy,y,,,,,,,,,,
Nottinghamshire County Council,1111/1001,Children and Young People,CYP,Third Party Payments,EDA,16/08/2013,05-14400,553,The Manor Academy,y,,,,,,,,,,
Nottinghamshire County Council,1111/1001,Children and Young People,CYP,Third Party Payments,EDA,16/08/2013,05-14401,1371,West Bridgford Academy,y,,,,,,,,,,
Nottinghamshire County Council,1111/1001,Children and Young People,CYP,Third Party Payments,EDA,16/08/2013,05-14402,570,Queen Elizabeth's Academy,y,,,,,,,,,,
Nottinghamshire County Council,1111/1001,Children and Young People,CYP,Third Party Payments,EDA,16/08/2013,05-14403,8166,The Carlton Academy,y,,,,,,,,,,
Nottinghamshire County Council,1111/1001,Children and Young People,CYP,Third Party Payments,EDA,16/08/2013,05-14404,1418,South Nottinghamshire Academy,y,,,,,,,,,,
Nottinghamshire County Council,1111/1001,Children and Young People,CYP,Third Party Payments,EDA,16/08/2013,05-14405,1444,Toothill Academy,y,,,,,,,,,,
Nottinghamshire County Council,1111/1001,Children and Young People,CYP,Third Party Payments,EDA,16/08/2013,05-14406,1011,The Becket Catholic Voluntary Acada,y,,,,,,,,,,
Nottinghamshire County Council,1111/1001,Children and Young People,CYP,Third Party Payments,EDA,16/08/2013,05-14407,6328,Serlby Park Academy,y,,,,,,,,,,
Nottinghamshire County Council,1111/1001,Children and Young People,CYP,Third Party Payments,EDA,16/08/2013,05-14408,1430,Arnold Hill Academy,y,,,,,,,,,,
Nottinghamshire County Council,1111/1001,Children and Young People,CYP,Third Party Payments,EDA,16/08/2013,05-14409,969,The Brunts Academy,y,,,,,,,,,,
Nottinghamshire County Council,1111/1001,Children and Young People,CYP,Third Party Payments,EDA,16/08/2013,05-14410,994,Carlton Le Willows Academy,y,,,,,,,,,,
Nottinghamshire County Council,1111/1001,Children and Young People,CYP,Third Party Payments,EDA,16/08/2013,05-14411,1046,Rushcliffe School Academy Trust,y,,,,,,,,,,
Nottinghamshire County Council,1111/1001,Children and Young People,CYP,Third Party Payments,EDA,16/08/2013,05-14412,14883,Outwood Academy Portland,y,,,,,,,,,,
Nottinghamshire County Council,1111/1001,Children and Young People,CYP,Third Party Payments,EDA,16/08/2013,05-14413,823,Outwood Academy Portland,y,,,,,,,,,,
Nottinghamshire County Council,1111/1001,Children and Young People,CYP,Third Party Payments,EDA,16/08/2013,05-14414,1140,Ashfield Academy,y,,,,,,,,,,
Nottinghamshire County Council,1111/1001,Children and Young People,CYP,Third Party Payments,EDA,16/08/2013,05-14415,2499,Ashfield Academy,y,,,,,,,,,,
Nottinghamshire County Council,1111/1001,Children and Young People,CYP,Third Party Payments,EDA,16/08/2013,05-14416,9122,Retford Oaks Academy,y,,,,,,,,,,
Nottinghamshire County Council,1111/1001,Children and Young People,CYP,Third Party Payments,EDA,16/08/2013,05-14417,26877,The Elizabethan Academy,y,,,,,,,,,,
Nottinghamshire County Council,1111/1001,Children and Young People,CYP,Third Party Payments,EDA,16/08/2013,05-14418,694,The Elizabethan Academy,y,,,,,,,,,,
Nottinghamshire County Council,1111/1001,Children and Young People,CYP,Third Party Payments,EDA,16/08/2013,05-14419,639,The South Wolds Academy & Sixth For,y,,,,,,,,,,
Nottinghamshire County Council,1111/1001,Children and Young People,CYP,Third Party Payments,EDA,16/08/2013,05-14420,814,Outwood Academy - Valley,y,,,,,,,,,,
Nottinghamshire County Council,1111/1001,Children and Young People,CYP,Third Party Payments,EDA,16/08/2013,05-14421,13709,Meden School - A Torch Academy,y,,,,,,,,,,
Nottinghamshire County Council,1111/1001,Children and Young People,CYP,Third Party Payments,EDA,16/08/2013,05-14422,690,The Kimberley School (Academy),y,,,,,,,,,,
Nottinghamshire County Council,1111/1001,Children and Young People,CYP,Third Party Payments,EDA,16/08/2013,05-14423,3413,Sherwood E-ACT Academy,y,,,,,,,,,,
Nottinghamshire County Council,1111/1001,Children and Young People,CYP,Third Party Payments,EDA,16/08/2013,05-14424,69321,Foxwood Academy,y,,,,,,,,,,
Nottinghamshire County Council,1111/1001,Children and Young People,CYP,Third Party Payments,EDA,16/08/2013,05-14425,18209,Sutton Community Academy,y,,,,,,,,,,
Nottinghamshire County Council,1111/1001,Children and Young People,CYP,Third Party Payments,EDA,16/08/2013,05-14426,566,Sutton Community Academy,y,,,,,,,,,,
Nottinghamshire County Council,1111/1001,Children and Young People,CYP,Third Party Payments,EDA,16/08/2013,05-14427,11584,The Newark Academy,y,,,,,,,,,,
Nottinghamshire County Council,1111/1001,Children and Young People,CYP,Third Party Payments,EDA,16/08/2013,05-14428,1363,East Leake Academy,y,,,,,,,,,,
Nottinghamshire County Council,1111/1001,Children and Young People,CYP,Third Party Payments,EDA,16/08/2013,05-14429,17608,The Bramcote School,n,,,,,,,,,,
Nottinghamshire County Council,1111/1001,Children and Young People,CYP,Third Party Payments,EDA,16/08/2013,05-14430,887,George Spencer Academy,y,,,,,,,,,,
Nottinghamshire County Council,1111/1001,Children and Young People,CYP,Third Party Payments,EDA,16/08/2013,05-14431,740,Redhill Academy,y,,,,,,,,,,
Nottinghamshire County Council,1111/1001,Children and Young People,CYP,Third Party Payments,EDA,16/08/2013,05-14432,3147,Alderman White School,n,,,,,,,,,,
Nottinghamshire County Council,1111/1001,Children and Young People,CYP,Third Party Payments,EDA,16/08/2013,05-14433,861,Alderman White School,n,,,,,,,,,,
Nottinghamshire County Council,1111/1001,Children and Young People,CYP,Third Party Payments,EDA,16/08/2013,05-14434,611,Quarrydale Academy,y,,,,,,,,,,
Nottinghamshire County Council,1111/1001,Children and Young People,CYP,Third Party Payments,EDA,16/08/2013,05-14435,544,Quarrydale Academy,y,,,,,,,,,,
Nottinghamshire County Council,1111/1001,Children and Young People,CYP,Third Party Payments,EGA,02/08/2013,05-14385,1155074.33,Nottinghamshire Healthcare Nhs Trus,y,,,,,,,,,,
Nottinghamshire County Council,1111/1001,Children and Young People,CYP,Third Party Payments,EGA,05/08/2013,05-10099,893.28,Heathlands Out Of School Club,y,,,,,,,,,,
Nottinghamshire County Council,1111/1001,Children and Young People,CYP,Third Party Payments,EGA,05/08/2013,05-10100,1191.04,Church House Day Nursery,y,,,,,,,,,,
Nottinghamshire County Council,1111/1001,Children and Young People,CYP,Third Party Payments,EGA,05/08/2013,05-10101,894.81,Early Years Playgroup,y,,,,,,,,,,
Nottinghamshire County Council,1111/1001,Children and Young People,CYP,Third Party Payments,EGA,07/08/2013,05-10248,1680,Core Assets Childrens Services Ltd,y,,,,,,,,,,
Nottinghamshire County Council,1111/1001,Children and Young People,CYP,Third Party Payments,EGA,07/08/2013,05-10250,2200,Social Home Choices,y,,,,,,,,,,
Nottinghamshire County Council,1111/1001,Children and Young People,CYP,Third Party Payments,EGA,07/08/2013,05-10251,3478.2,Anglia Fostering Agency Ltd,y,,,,,,,,,,
Nottinghamshire County Council,1111/1001,Children and Young People,CYP,Third Party Payments,EGA,07/08/2013,05-10255,3366,Anglia Fostering Agency Ltd,y,,,,,,,,,,
Nottinghamshire County Council,1111/1001,Children and Young People,CYP,Third Party Payments,EGA,07/08/2013,05-10257,1226.75,Banya Family Placement Agency Ltd,y,,,,,,,,,,
Nottinghamshire County Council,1111/1001,Children and Young People,CYP,Third Party Payments,EGA,07/08/2013,05-10258,20979.43,Castle Homes Care Ltd,y,,,,,,,,,,
Nottinghamshire County Council,1111/1001,Children and Young People,CYP,Third Party Payments,EGA,21/08/2013,05-13946,1344.9,East Leake Pre-School Playgroup,y,,,,,,,,,,
Nottinghamshire County Council,1111/1001,Children and Young People,CYP,Third Party Payments,EGA,21/08/2013,05-13947,1053.62,Early Years Playgroup,y,,,,,,,,,,
Nottinghamshire County Council,1111/1001,Children and Young People,CYP,Third Party Payments,EGA,21/08/2013,05-13948,4158.52,Rainbow Day Nursery,y,,,,,,,,,,
Nottinghamshire County Council,1111/1001,Children and Young People,CYP,Third Party Payments,EGA,28/08/2013,05-14164,16211.16,Nottinghamshire Healthcare NHS Trus,y,,,,,,,,,,
Nottinghamshire County Council,1111/1001,Children and Young People,CYP,Third Party Payments,EGA,28/08/2013,05-14165,26380.03,Treetops Nurseries Ltd,y,,,,,,,,,,
Nottinghamshire County Council,1111/1001,Children and Young People,CYP,Third Party Payments,EGA,28/08/2013,05-14166,5172.44,Pre School Learning Alliance,y,,,,,,,,,,
Nottinghamshire County Council,1111/1001,Children and Young People,CYP,Third Party Payments,EGA,28/08/2013,05-14167,15541.73,Pre-School 345,y,,,,,,,,,,
Nottinghamshire County Council,1111/1001,Children and Young People,CYP,Third Party Payments,EGA,28/08/2013,05-14168,5394.41,Pre School Learning Alliance,y,,,,,,,,,,
Nottinghamshire County Council,1111/1001,Children and Young People,CYP,Third Party Payments,EGA,28/08/2013,05-14169,8867.04,Pre School Learning Alliance,y,,,,,,,,,,
Nottinghamshire County Council,1111/1001,Children and Young People,CYP,Third Party Payments,EGA,28/08/2013,05-14170,1718.14,Pre School Learning Alliance,y,,,,,,,,,,
Nottinghamshire County Council,1111/1001,Children and Young People,CYP,Third Party Payments,EGA,28/08/2013,05-14171,1709.58,Pre School Learning Alliance,y,,,,,,,,,,
Nottinghamshire County Council,1111/1001,Children and Young People,CYP,Third Party Payments,EGA,28/08/2013,05-14172,1496.46,L G Whitchurch,n,,,,,,,,,,
Nottinghamshire County Council,1111/1001,Children and Young People,CYP,Third Party Payments,EGA,28/08/2013,05-14173,748.23,L Reynolds,n,,,,,,,,,,
Nottinghamshire County Council,1111/1001,Children and Young People,CYP,Third Party Payments,EGA,28/08/2013,05-14174,748.23,H Jackson,n,,,,,,,,,,
Nottinghamshire County Council,1111/1001,Children and Young People,CYP,Third Party Payments,EGA,28/08/2013,05-14175,2244.69,C Brett Childminding,y,,,,,,,,,,
Nottinghamshire County Council,1111/1001,Children and Young People,CYP,Third Party Payments,EGA,28/08/2013,05-14176,15074.85,Shaping Futures Day Nursery,y,,,,,,,,,,
Nottinghamshire County Council,1111/1001,Children and Young People,CYP,Third Party Payments,EGA,28/08/2013,05-14177,4211.84,Shaping Futures Day Nursery,y,,,,,,,,,,
Nottinghamshire County Council,1111/1001,Children and Young People,CYP,Third Party Payments,EGA,28/08/2013,05-14178,12192.18,Shaping Futures Day Nursery,y,,,,,,,,,,
Nottinghamshire County Council,1111/1001,Children and Young People,CYP,Third Party Payments,EGA,28/08/2013,05-14179,4821.6,Young Rascals Day Nursery,y,,,,,,,,,,
Nottinghamshire County Council,1111/1001,Children and Young People,CYP,Third Party Payments,EGA,28/08/2013,05-14180,554.19,G Wright,n,,,,,,,,,,
Nottinghamshire County Council,1111/1001,Children and Young People,CYP,Third Party Payments,EGA,28/08/2013,05-14181,11835.92,Woodard Schs Notts Ltd Ranby Schola,y,,,,,,,,,,
Nottinghamshire County Council,1111/1001,Children and Young People,CYP,Third Party Payments,EGA,28/08/2013,05-14182,748.23,Sues Childminding Services,y,,,,,,,,,,
Nottinghamshire County Council,1111/1001,Children and Young People,CYP,Third Party Payments,EGA,28/08/2013,05-14183,23913.37,The White House Day Nursery,y,,,,,,,,,,
Nottinghamshire County Council,1111/1001,Children and Young People,CYP,Third Party Payments,EGA,28/08/2013,05-14184,27524.77,Westdale Pre-School,y,,,,,,,,,,
Nottinghamshire County Council,1111/1001,Children and Young People,CYP,Third Party Payments,EGA,28/08/2013,05-14185,14575.34,Westbourne House Nursery School,y,,,,,,,,,,
Nottinghamshire County Council,1111/1001,Children and Young People,CYP,Third Party Payments,EGA,28/08/2013,05-14186,14408.94,West Bridgford Out Of School Care L,y,,,,,,,,,,
Nottinghamshire County Council,1111/1001,Children and Young People,CYP,Third Party Payments,EGA,28/08/2013,05-14187,1302.42,W Young,n,,,,,,,,,,
Nottinghamshire County Council,1111/1001,Children and Young People,CYP,Third Party Payments,EGA,28/08/2013,05-14188,13115.83,Wellow House School,y,,,,,,,,,,
Nottinghamshire County Council,1111/1001,Children and Young People,CYP,Third Party Payments,EGA,28/08/2013,05-14189,7980.34,Wellin Lane Playgroup,y,,,,,,,,,,
Nottinghamshire County Council,1111/1001,Children and Young People,CYP,Third Party Payments,EGA,28/08/2013,05-14190,24024.21,Woodthorpe Day Nursery Ltd,y,,,,,,,,,,
Nottinghamshire County Council,1111/1001,Children and Young People,CYP,Third Party Payments,EGA,28/08/2013,05-14191,12746.37,Woodborough Village Pre School,y,,,,,,,,,,
Nottinghamshire County Council,1111/1001,Children and Young People,CYP,Third Party Payments,EGA,28/08/2013,05-14192,18399.99,Wollaton Village Day Nurseries Ltd.,y,,,,,,,,,,
Nottinghamshire County Council,1111/1001,Children and Young People,CYP,Third Party Payments,EGA,28/08/2013,05-14193,15461.95,Wishing Well Day Nursery,y,,,,,,,,,,
Nottinghamshire County Council,1111/1001,Children and Young People,CYP,Third Party Payments,EGA,28/08/2013,05-14194,2586.22,Windmills Pre-School Playgroup,y,,,,,,,,,,
Nottinghamshire County Council,1111/1001,Children and Young People,CYP,Third Party Payments,EGA,28/08/2013,05-14195,5708.3,Windmill Kindergarten Playgroup,y,,,,,,,,,,
Nottinghamshire County Council,1111/1001,Children and Young People,CYP,Third Party Payments,EGA,28/08/2013,05-14196,1496.46,Jammie Dodgers Childminding Group,y,,,,,,,,,,
Nottinghamshire County Council,1111/1001,Children and Young People,CYP,Third Party Payments,EGA,28/08/2013,05-14197,5320.22,Willow Brook Pre-School,y,,,,,,,,,,
Nottinghamshire County Council,1111/1001,Children and Young People,CYP,Third Party Payments,EGA,28/08/2013,05-14198,2216.76,Willoughby On The Wolds Playgroup,y,,,,,,,,,,
Nottinghamshire County Council,1111/1001,Children and Young People,CYP,Third Party Payments,EGA,28/08/2013,05-14199,18814.78,Weaverthorpe Pre-School Playgroup,y,,,,,,,,,,
Nottinghamshire County Council,1111/1001,Children and Young People,CYP,Third Party Payments,EGA,28/08/2013,05-14200,12303.02,Watnall Pre-School Playgroup,y,,,,,,,,,,
Nottinghamshire County Council,1111/1001,Children and Young People,CYP,Third Party Payments,EGA,28/08/2013,05-14201,13383.76,Walesby School Playgroup,y,,,,,,,,,,
Nottinghamshire County Council,1111/1001,Children and Young People,CYP,Third Party Payments,EGA,28/08/2013,05-14202,19950.84,Village Day Nursery,y,,,,,,,,,,
Nottinghamshire County Council,1111/1001,Children and Young People,CYP,Third Party Payments,EGA,28/08/2013,05-14203,7758.66,Valmarys Childrens Centre 2,y,,,,,,,,,,
Nottinghamshire County Council,1111/1001,Children and Young People,CYP,Third Party Payments,EGA,28/08/2013,05-14204,4433.52,Treetops Nursery (Clipstone),y,,,,,,,,,,
Nottinghamshire County Council,1111/1001,Children and Young People,CYP,Third Party Payments,EGA,28/08/2013,05-14205,12303.02,Treetops Nursery,y,,,,,,,,,,
Nottinghamshire County Council,1111/1001,Children and Young People,CYP,Third Party Payments,EGA,28/08/2013,05-14206,2521.79,Toton Tots Pre-School,y,,,,,,,,,,
Nottinghamshire County Council,1111/1001,Children and Young People,CYP,Third Party Payments,EGA,28/08/2013,05-14207,12857.21,Tollerton Playgroup,y,,,,,,,,,,
Nottinghamshire County Council,1111/1001,Children and Young People,CYP,Third Party Payments,EGA,28/08/2013,05-14208,3879.33,Toddlers University (Bee),y,,,,,,,,,,
Nottinghamshire County Council,1111/1001,Children and Young People,CYP,Third Party Payments,EGA,28/08/2013,05-14209,13744.5,Tiny World Mansfield,y,,,,,,,,,,
Nottinghamshire County Council,1111/1001,Children and Young People,CYP,Third Party Payments,EGA,28/08/2013,05-14210,8894.97,Tiny Teddies Day Nursery,y,,,,,,,,,,
Nottinghamshire County Council,1111/1001,Children and Young People,CYP,Third Party Payments,EGA,28/08/2013,05-14211,3616.45,DUPLICATE-Thrumpton Kids Clubs,y,,,,,,,,,,
Nottinghamshire County Council,1111/1001,Children and Young People,CYP,Third Party Payments,EGA,28/08/2013,05-14212,3546.82,The Wolds Day Nursery,y,,,,,,,,,,
Nottinghamshire County Council,1111/1001,Children and Young People,CYP,Third Party Payments,EGA,28/08/2013,05-14213,3325.14,Stapleford Day Nursery,y,,,,,,,,,,
Nottinghamshire County Council,1111/1001,Children and Young People,CYP,Third Party Payments,EGA,28/08/2013,05-14214,9975.42,Stepping Stones II,y,,,,,,,,,,
Nottinghamshire County Council,1111/1001,Children and Young People,CYP,Third Party Payments,EGA,28/08/2013,05-14215,1773.41,Sunbeams Pre-School,y,,,,,,,,,,
Nottinghamshire County Council,1111/1001,Children and Young People,CYP,Third Party Payments,EGA,28/08/2013,05-14216,9642.91,Sutton Bonington Playgroup,y,,,,,,,,,,
Nottinghamshire County Council,1111/1001,Children and Young People,CYP,Third Party Payments,EGA,28/08/2013,05-14217,15332.59,Sutton Centre Under 5'S Playgroup,y,,,,,,,,,,
Nottinghamshire County Council,1111/1001,Children and Young People,CYP,Third Party Payments,EGA,28/08/2013,05-14218,7019.74,The Grange Nursery Ltd,y,,,,,,,,,,
Nottinghamshire County Council,1111/1001,Children and Young People,CYP,Third Party Payments,EGA,28/08/2013,05-14219,17069.64,The Learning Tree Day Nursery 2,y,,,,,,,,,,
Nottinghamshire County Council,1111/1001,Children and Young People,CYP,Third Party Payments,EGA,28/08/2013,05-14220,9310.39,The Secret Garden Private Day Nurse,y,,,,,,,,,,
Nottinghamshire County Council,1111/1001,Children and Young People,CYP,Third Party Payments,EGA,28/08/2013,05-14221,10169.46,St Mary's Pre-School,y,,,,,,,,,,
Nottinghamshire County Council,1111/1001,Children and Young People,CYP,Third Party Payments,EGA,28/08/2013,05-14222,5104.13,Speckled Frogs Pre-School,y,,,,,,,,,,
Nottinghamshire County Council,1111/1001,Children and Young People,CYP,Third Party Payments,EGA,28/08/2013,05-14223,12746.37,Scotts Wood Private Day Nursery,y,,,,,,,,,,
Nottinghamshire County Council,1111/1001,Children and Young People,CYP,Third Party Payments,EGA,28/08/2013,05-14224,11637.99,Scottswood Pdn Ltd,y,,,,,,,,,,
Nottinghamshire County Council,1111/1001,Children and Young People,CYP,Third Party Payments,EGA,28/08/2013,05-14225,3519.18,Sconce Hills Pre-School Playgroup,y,,,,,,,,,,
Nottinghamshire County Council,1111/1001,Children and Young People,CYP,Third Party Payments,EGA,28/08/2013,05-14226,8748.29,Saville House School,y,,,,,,,,,,
Nottinghamshire County Council,1111/1001,Children and Young People,CYP,Third Party Payments,EGA,28/08/2013,05-14227,997.54,Catherine Sansone,y,,,,,,,,,,
Nottinghamshire County Council,1111/1001,Children and Young People,CYP,Third Party Payments,EGA,28/08/2013,05-14228,7204.47,Salterford House School,y,,,,,,,,,,
Nottinghamshire County Council,1111/1001,Children and Young People,CYP,Third Party Payments,EGA,28/08/2013,05-14229,19480.44,Safe Haven Day Nursery,y,,,,,,,,,,
Nottinghamshire County Council,1111/1001,Children and Young People,CYP,Third Party Payments,EGA,28/08/2013,05-14230,13411.4,Rushcliffe Pre-School Cic,y,,,,,,,,,,
Nottinghamshire County Council,1111/1001,Children and Young People,CYP,Third Party Payments,EGA,28/08/2013,05-14231,27543.68,The Rocking Horse Child Care Centre,y,,,,,,,,,,
Nottinghamshire County Council,1111/1001,Children and Young People,CYP,Third Party Payments,EGA,28/08/2013,05-14232,10160.15,Ravenshead Pre-School Playgroup,y,,,,,,,,,,
Nottinghamshire County Council,1111/1001,Children and Young People,CYP,Third Party Payments,EGA,28/08/2013,05-14233,10058.62,Ranskill Nursery,y,,,,,,,,,,
Nottinghamshire County Council,1111/1001,Children and Young People,CYP,Third Party Payments,EGA,28/08/2013,05-14234,9375.56,Rainbows Day Nursery,y,,,,,,,,,,
Nottinghamshire County Council,1111/1001,Children and Young People,CYP,Third Party Payments,EGA,28/08/2013,05-14235,10991.44,Railway Children Playgroup,y,,,,,,,,,,
Nottinghamshire County Council,1111/1001,Children and Young People,CYP,Third Party Payments,EGA,28/08/2013,05-14236,10480.02,Radcliffe On Trent Pre School Playg,y,,,,,,,,,,
Nottinghamshire County Council,1111/1001,Children and Young People,CYP,Third Party Payments,EGA,28/08/2013,05-14237,748.23,C A Quinn,n,,,,,,,,,,
Nottinghamshire County Council,1111/1001,Children and Young People,CYP,Third Party Payments,EGA,28/08/2013,05-14238,5929.98,Pump Farm Day Nursery,y,,,,,,,,,,
Nottinghamshire County Council,1111/1001,Children and Young People,CYP,Third Party Payments,EGA,28/08/2013,05-14239,22093.86,Puddleducks Pre-School,y,,,,,,,,,,
Nottinghamshire County Council,1111/1001,Children and Young People,CYP,Third Party Payments,EGA,28/08/2013,05-14240,9881.34,Prebend Pre-School Playgroup,y,,,,,,,,,,
Nottinghamshire County Council,1111/1001,Children and Young People,CYP,Third Party Payments,EGA,28/08/2013,05-14241,5541.9,Portland Place Pre-School,y,,,,,,,,,,
Nottinghamshire County Council,1111/1001,Children and Young People,CYP,Third Party Payments,EGA,28/08/2013,05-14242,1108.38,Happy Times,y,,,,,,,,,,
Nottinghamshire County Council,1111/1001,Children and Young People,CYP,Third Party Payments,EGA,28/08/2013,05-14243,13477.9,Plumtree School,y,,,,,,,,,,
Nottinghamshire County Council,1111/1001,Children and Young People,CYP,Third Party Payments,EGA,28/08/2013,05-14244,14076.43,Pippins Pre-School,y,,,,,,,,,,
Nottinghamshire County Council,1111/1001,Children and Young People,CYP,Third Party Payments,EGA,28/08/2013,05-14245,2964.99,Sparkle Daycare,y,,,,,,,,,,
Nottinghamshire County Council,1111/1001,Children and Young People,CYP,Third Party Payments,EGA,28/08/2013,05-14246,8312.85,Southwell Pre-School,y,,,,,,,,,,
Nottinghamshire County Council,1111/1001,Children and Young People,CYP,Third Party Payments,EGA,28/08/2013,05-14247,9061.08,Southfields Pre-School,y,,,,,,,,,,
Nottinghamshire County Council,1111/1001,Children and Young People,CYP,Third Party Payments,EGA,28/08/2013,05-14248,7204.47,Smarties Private Day Nursery,y,,,,,,,,,,
Nottinghamshire County Council,1111/1001,Children and Young People,CYP,Third Party Payments,EGA,28/08/2013,05-14249,16736.54,Serendipity's Day Nursery,y,,,,,,,,,,
Nottinghamshire County Council,1111/1001,Children and Young People,CYP,Third Party Payments,EGA,28/08/2013,05-14250,8756.2,Serendipity's Day Nursery,y,,,,,,,,,,
Nottinghamshire County Council,1111/1001,Children and Young People,CYP,Third Party Payments,EGA,28/08/2013,05-14251,10862.42,Serendipity's Day Nursery,y,,,,,,,,,,
Nottinghamshire County Council,1111/1001,Children and Young People,CYP,Third Party Payments,EGA,28/08/2013,05-14252,4341.16,Pelham Pre-School,y,,,,,,,,,,
Nottinghamshire County Council,1111/1001,Children and Young People,CYP,Third Party Payments,EGA,28/08/2013,05-14253,1754.94,DUPLICATE-Pea Pod Day Nursery Ltd,y,,,,,,,,,,
Nottinghamshire County Council,1111/1001,Children and Young People,CYP,Third Party Payments,EGA,28/08/2013,05-14254,24218.25,Papermoon Day Nursery,y,,,,,,,,,,
Nottinghamshire County Council,1111/1001,Children and Young People,CYP,Third Party Payments,EGA,28/08/2013,05-14255,27250.32,Papermoon Day Nursery,y,,,,,,,,,,
Nottinghamshire County Council,1111/1001,Children and Young People,CYP,Third Party Payments,EGA,28/08/2013,05-14256,40484.54,Papermoon Day Nursery Sutton In Ash,y,,,,,,,,,,
Nottinghamshire County Council,1111/1001,Children and Young People,CYP,Third Party Payments,EGA,28/08/2013,05-14257,17290.73,Papermoon Day Nursery,y,,,,,,,,,,
Nottinghamshire County Council,1111/1001,Children and Young People,CYP,Third Party Payments,EGA,28/08/2013,05-14258,8128.12,Orchard School Nursery,y,,,,,,,,,,
Nottinghamshire County Council,1111/1001,Children and Young People,CYP,Third Party Payments,EGA,28/08/2013,05-14259,29372.07,The Orchard Day Nursery,y,,,,,,,,,,
Nottinghamshire County Council,1111/1001,Children and Young People,CYP,Third Party Payments,EGA,28/08/2013,05-14260,4987.71,Old Cooperative Day Nursery,y,,,,,,,,,,
Nottinghamshire County Council,1111/1001,Children and Young People,CYP,Third Party Payments,EGA,28/08/2013,05-14261,21973.85,Oceans Day Nursery,y,,,,,,,,,,
Nottinghamshire County Council,1111/1001,Children and Young People,CYP,Third Party Payments,EGA,28/08/2013,05-14262,554.19,A Marsden,n,,,,,,,,,,
Nottinghamshire County Council,1111/1001,Children and Young People,CYP,Third Party Payments,EGA,28/08/2013,05-14263,16293.19,Lowdham & Epperstone Pre-School,y,,,,,,,,,,
Nottinghamshire County Council,1111/1001,Children and Young People,CYP,Third Party Payments,EGA,28/08/2013,05-14264,9532.07,Lowater Street Playgroup,y,,,,,,,,,,
Nottinghamshire County Council,1111/1001,Children and Young People,CYP,Third Party Payments,EGA,28/08/2013,05-14265,554.19,A Llewellyn,n,,,,,,,,,,
Nottinghamshire County Council,1111/1001,Children and Young People,CYP,Third Party Payments,EGA,28/08/2013,05-14266,4295.34,St Johns College Nottingham,y,,,,,,,,,,
Nottinghamshire County Council,1111/1001,Children and Young People,CYP,Third Party Payments,EGA,28/08/2013,05-14267,22804.99,Little Oaks Nursery,y,,,,,,,,,,
Nottinghamshire County Council,1111/1001,Children and Young People,CYP,Third Party Payments,EGA,28/08/2013,05-14268,25040.23,Little Nippers Pre-School,y,,,,,,,,,,
Nottinghamshire County Council,1111/1001,Children and Young People,CYP,Third Party Payments,EGA,28/08/2013,05-14269,8867.04,Little Millers Day Nursery,y,,,,,,,,,,
Nottinghamshire County Council,1111/1001,Children and Young People,CYP,Third Party Payments,EGA,28/08/2013,05-14270,4627.56,Misson Pre-School,y,,,,,,,,,,
Nottinghamshire County Council,1111/1001,Children and Young People,CYP,Third Party Payments,EGA,28/08/2013,05-14271,1662.57,Mulberry Bush Day Nursery,y,,,,,,,,,,
Nottinghamshire County Council,1111/1001,Children and Young People,CYP,Third Party Payments,EGA,28/08/2013,05-14272,8272.28,Noahs Ark Playgroup,y,,,,,,,,,,
Nottinghamshire County Council,1111/1001,Children and Young People,CYP,Third Party Payments,EGA,28/08/2013,05-14273,4433.52,Montessori Care Ltd,y,,,,,,,,,,
Nottinghamshire County Council,1111/1001,Children and Young People,CYP,Third Party Payments,EGA,28/08/2013,05-14274,12192.18,Nurseryworld & Friends Nursery & Pr,y,,,,,,,,,,
Nottinghamshire County Council,1111/1001,Children and Young People,CYP,Third Party Payments,EGA,28/08/2013,05-14275,8100.93,Little Kites Playgroup,y,,,,,,,,,,
Nottinghamshire County Council,1111/1001,Children and Young People,CYP,Third Party Payments,EGA,28/08/2013,05-14276,8312.85,Little Friends Day Nursery,y,,,,,,,,,,
Nottinghamshire County Council,1111/1001,Children and Young People,CYP,Third Party Payments,EGA,28/08/2013,05-14277,14963.13,Little Bears Day Nursery,y,,,,,,,,,,
Nottinghamshire County Council,1111/1001,Children and Young People,CYP,Third Party Payments,EGA,28/08/2013,05-14278,14713.82,Little Acorns Pre School,y,,,,,,,,,,
Nottinghamshire County Council,1111/1001,Children and Young People,CYP,Third Party Payments,EGA,28/08/2013,05-14279,14316.58,Little Acorns Shireoaks,y,,,,,,,,,,
Nottinghamshire County Council,1111/1001,Children and Young People,CYP,Third Party Payments,EGA,28/08/2013,05-14280,7112.11,North Leverton Pre-School Playgroup,y,,,,,,,,,,
Nottinghamshire County Council,1111/1001,Children and Young People,CYP,Third Party Payments,EGA,28/08/2013,05-14281,5874.41,Leo's Childrens Nurseries Ltd,y,,,,,,,,,,
Nottinghamshire County Council,1111/1001,Children and Young People,CYP,Third Party Payments,EGA,28/08/2013,05-14282,11832.03,Leos Childrens Nurseries Ltd,y,,,,,,,,,,
Nottinghamshire County Council,1111/1001,Children and Young People,CYP,Third Party Payments,EGA,28/08/2013,05-14283,14131.99,Learning Ladder Childcare Ltd,y,,,,,,,,,,
Nottinghamshire County Council,1111/1001,Children and Young People,CYP,Third Party Payments,EGA,28/08/2013,05-14284,15018.7,Leahurst Road Pre-School,y,,,,,,,,,,
Nottinghamshire County Council,1111/1001,Children and Young People,CYP,Third Party Payments,EGA,28/08/2013,05-14285,6096.09,Lambley Day Nursery Ltd,y,,,,,,,,,,
Nottinghamshire County Council,1111/1001,Children and Young People,CYP,Third Party Payments,EGA,28/08/2013,05-14286,2693.43,Kirkby Cross Playgroup,y,,,,,,,,,,
Nottinghamshire County Council,1111/1001,Children and Young People,CYP,Third Party Payments,EGA,28/08/2013,05-14287,9975.42,Kingfisher Day Nursery,y,,,,,,,,,,
Nottinghamshire County Council,1111/1001,Children and Young People,CYP,Third Party Payments,EGA,28/08/2013,05-14288,15077.69,Killisick Pre-School,y,,,,,,,,,,
Nottinghamshire County Council,1111/1001,Children and Young People,CYP,Third Party Payments,EGA,28/08/2013,05-14289,13300.56,Huthwaite Children's Centre,y,,,,,,,,,,
Nottinghamshire County Council,1111/1001,Children and Young People,CYP,Third Party Payments,EGA,28/08/2013,05-14290,1496.46,J Hursthouse,y,,,,,,,,,,
Nottinghamshire County Council,1111/1001,Children and Young People,CYP,Third Party Payments,EGA,28/08/2013,05-14291,7851.03,Horsendale Playgroup,y,,,,,,,,,,
Nottinghamshire County Council,1111/1001,Children and Young People,CYP,Third Party Payments,EGA,28/08/2013,05-14292,8867.04,Honey Pot Day Private Day Nursery L,y,,,,,,,,,,
Nottinghamshire County Council,1111/1001,Children and Young People,CYP,Third Party Payments,EGA,28/08/2013,05-14293,11278.13,Quinton Day Nurseries T/A Honey Bee,y,,,,,,,,,,
Nottinghamshire County Council,1111/1001,Children and Young People,CYP,Third Party Payments,EGA,28/08/2013,05-14294,11527.15,Homestead Day Nursery Ltd,y,,,,,,,,,,
Nottinghamshire County Council,1111/1001,Children and Young People,CYP,Third Party Payments,EGA,28/08/2013,05-14295,2770.95,SPBC Day Care Ltd,y,,,,,,,,,,
Nottinghamshire County Council,1111/1001,Children and Young People,CYP,Third Party Payments,EGA,28/08/2013,05-14296,11176.17,Highfields School & Nursery,y,,,,,,,,,,
Nottinghamshire County Council,1111/1001,Children and Young People,CYP,Third Party Payments,EGA,28/08/2013,05-14297,11268.53,Hickory House Day Nursery,y,,,,,,,,,,
Nottinghamshire County Council,1111/1001,Children and Young People,CYP,Third Party Payments,EGA,28/08/2013,05-14298,2586.22,Hickling Pre-School,y,,,,,,,,,,
Nottinghamshire County Council,1111/1001,Children and Young People,CYP,Third Party Payments,EGA,29/08/2013,05-14372,17041.42,Carnarvon Pre-School,y,,,,,,,,,,
Nottinghamshire County Council,1111/1001,Children and Young People,CYP,Third Party Payments,EGA,29/08/2013,05-14374,1290.31,Treetops Nursery (Clipstone),y,,,,,,,,,,
Nottinghamshire County Council,1111/1001,Children and Young People,CYP,Support Services,HAA,02/08/2013,05-10090,799.95,Elkingtons Park Garage,y,,,,,,,,,,
Nottinghamshire County Council,1111/1001,Adult Social Care and Health,ASCH,Premises Related,BAA,02/08/2013,05-10087,664.5,Cw Plumbing Heating & Gas Services,y,,,,,,,,,,
Nottinghamshire County Council,1111/1001,Adult Social Care and Health,ASCH,Premises Related,BAA,16/08/2013,05-13784,503,J C Ulyatt,n,,,,,,,,,,
Nottinghamshire County Council,1111/1001,Adult Social Care and Health,ASCH,Premises Related,BAA,21/08/2013,05-13949,1108.5,IPSUM (UK) LTD,y,,,,,,,,,,
Nottinghamshire County Council,1111/1001,Adult Social Care and Health,ASCH,Premises Related,BAA,21/08/2013,05-13950,649,Pgs Joinery Services Ltd,y,,,,,,,,,,
Nottinghamshire County Council,1111/1001,Adult Social Care and Health,ASCH,Premises Related,BAA,21/08/2013,05-13952,523.5,Intex Building & Maintenance,y,,,,,,,,,,
Nottinghamshire County Council,1111/1001,Adult Social Care and Health,ASCH,Premises Related,BDA,16/08/2013,05-13779,891.72,Progress Care Housing Assoc Ltd,y,,,,,,,,,,
Nottinghamshire County Council,1111/1001,Adult Social Care and Health,ASCH,Premises Related,BDA,16/08/2013,05-13780,1305.28,Renaissance Social Housing Ltd,y,,,,,,,,,,
Nottinghamshire County Council,1111/1001,Adult Social Care and Health,ASCH,Premises Related,BDA,16/08/2013,05-13781,2936.88,Renaissance Social Housing Ltd,y,,,,,,,,,,
Nottinghamshire County Council,1111/1001,Adult Social Care and Health,ASCH,Premises Related,BDA,16/08/2013,05-13783,3569.59,Progress Care Housing Assoc Ltd,y,,,,,,,,,,
Nottinghamshire County Council,1111/1001,Adult Social Care and Health,ASCH,Transport Related,CCA,13/08/2013,05-10374,966,A & V Squires Plant Co,y,,,,,,,,,,
Nottinghamshire County Council,1111/1001,Adult Social Care and Health,ASCH,Supplies & Services,DBA,05/08/2013,05-10091,1771.23,Hallam Country Fresh Foods Ltd,y,,,,,,,,,,
Nottinghamshire County Council,1111/1001,Adult Social Care and Health,ASCH,Supplies & Services,DBA,06/08/2013,05-10239,1442.03,Brake Bros Ltd,y,,,,,,,,,,
Nottinghamshire County Council,1111/1001,Adult Social Care and Health,ASCH,Supplies & Services,DBA,06/08/2013,05-10240,605.84,Brake Bros Ltd,y,,,,,,,,,,
Nottinghamshire County Council,1111/1001,Adult Social Care and Health,ASCH,Supplies & Services,DBA,12/08/2013,05-10359,2795.11,M Maloney Country Butchers & B Ltd,y,,,,,,,,,,
Nottinghamshire County Council,1111/1001,Adult Social Care and Health,ASCH,Supplies & Services,DBA,12/08/2013,05-10360,5109.69,M Maloney Country Butchers & B Ltd,y,,,,,,,,,,
Nottinghamshire County Council,1111/1001,Adult Social Care and Health,ASCH,Supplies & Services,DBA,19/08/2013,05-13785,95.88,Brake Bros Ltd,y,,,,,,,,,,
Nottinghamshire County Council,1111/1001,Adult Social Care and Health,ASCH,Supplies & Services,DBA,22/08/2013,05-14024,3407.79,M Maloney Country Butchers & B Ltd,y,,,,,,,,,,
Nottinghamshire County Council,1111/1001,Adult Social Care and Health,ASCH,Supplies & Services,DBA,28/08/2013,05-14163,1989.59,Hallam Country Fresh Foods Ltd,y,,,,,,,,,,
Nottinghamshire County Council,1111/1001,Adult Social Care and Health,ASCH,Supplies & Services,DBA,29/08/2013,05-14377,648.16,Brake Bros Ltd,y,,,,,,,,,,
Nottinghamshire County Council,1111/1001,Adult Social Care and Health,ASCH,Supplies & Services,DBA,29/08/2013,05-14378,144.74,Brake Bros Ltd,y,,,,,,,,,,
Nottinghamshire County Council,1111/1001,Adult Social Care and Health,ASCH,Supplies & Services,DHA,16/08/2013,05-13782,2500,Housing Options Ltd,y,,,,,,,,,,
Nottinghamshire County Council,1111/1001,Adult Social Care and Health,ASCH,Third Party Payments,EBA,15/08/2013,05-13741,30497.63,Ashfield District Council,y,,,,,,,,,,
Nottinghamshire County Council,1111/1001,Adult Social Care and Health,ASCH,Third Party Payments,EBA,15/08/2013,05-13742,41398.33,Bassetlaw District Council,y,,,,,,,,,,
Nottinghamshire County Council,1111/1001,Adult Social Care and Health,ASCH,Third Party Payments,EBA,15/08/2013,05-13743,8565.81,Newark & Sherwood District Council,y,,,,,,,,,,
Nottinghamshire County Council,1111/1001,Adult Social Care and Health,ASCH,Third Party Payments,EBA,15/08/2013,05-13744,61614.12,Mansfield District Council,y,,,,,,,,,,
Nottinghamshire County Council,1111/1001,Adult Social Care and Health,ASCH,Third Party Payments,EBA,15/08/2013,05-13745,31696.31,Broxtowe Borough Council,y,,,,,,,,,,
Nottinghamshire County Council,1111/1001,Adult Social Care and Health,ASCH,Third Party Payments,EBA,15/08/2013,05-13746,1770.46,Nene Housing Society Limited,y,,,,,,,,,,
Nottinghamshire County Council,1111/1001,Adult Social Care and Health,ASCH,Third Party Payments,EBA,15/08/2013,05-13747,11767.74,Home Group Limited,y,,,,,,,,,,
Nottinghamshire County Council,1111/1001,Adult Social Care and Health,ASCH,Third Party Payments,EBA,15/08/2013,05-13749,973.08,East Midlands Housing,y,,,,,,,,,,
Nottinghamshire County Council,1111/1001,Adult Social Care and Health,ASCH,Third Party Payments,EBA,15/08/2013,05-13750,14080,Flexible Support Options (UK) Ltd,y,,,,,,,,,,
Nottinghamshire County Council,1111/1001,Adult Social Care and Health,ASCH,Third Party Payments,EBA,15/08/2013,05-13751,38650.98,Nottinghamshire Womens Aid Ltd,y,,,,,,,,,,
Nottinghamshire County Council,1111/1001,Adult Social Care and Health,ASCH,Third Party Payments,EBA,15/08/2013,05-13752,10827.25,Jigsaw Mansfield Floating Support S,y,,,,,,,,,,
Nottinghamshire County Council,1111/1001,Adult Social Care and Health,ASCH,Third Party Payments,EBA,15/08/2013,05-13753,907.11,Longhurst Housing Ltd,y,,,,,,,,,,
Nottinghamshire County Council,1111/1001,Adult Social Care and Health,ASCH,Third Party Payments,EBA,15/08/2013,05-13754,1280,Advance Housing & Support Ltd,y,,,,,,,,,,
Nottinghamshire County Council,1111/1001,Adult Social Care and Health,ASCH,Third Party Payments,EBA,15/08/2013,05-13755,1644.84,De Montfort Housing Association,y,,,,,,,,,,
Nottinghamshire County Council,1111/1001,Adult Social Care and Health,ASCH,Third Party Payments,EBA,15/08/2013,05-13756,1080,Reach Housing Gloria Miller,y,,,,,,,,,,
Nottinghamshire County Council,1111/1001,Adult Social Care and Health,ASCH,Third Party Payments,EBA,15/08/2013,05-13757,6566,Metropolitan Support Trust,y,,,,,,,,,,
Nottinghamshire County Council,1111/1001,Adult Social Care and Health,ASCH,Third Party Payments,EBA,15/08/2013,05-13758,43515.56,Royal Society Mencap,y,,,,,,,,,,
Nottinghamshire County Council,1111/1001,Adult Social Care and Health,ASCH,Third Party Payments,EBA,15/08/2013,05-13759,756.14,Sanctuary Housing Association,y,,,,,,,,,,
Nottinghamshire County Council,1111/1001,Adult Social Care and Health,ASCH,Third Party Payments,EBA,15/08/2013,05-13760,1208.62,Nottingham City Homes,y,,,,,,,,,,
Nottinghamshire County Council,1111/1001,Adult Social Care and Health,ASCH,Third Party Payments,EBA,15/08/2013,05-13761,24765.39,Metropolitan Support Trust,y,,,,,,,,,,
Nottinghamshire County Council,1111/1001,Adult Social Care and Health,ASCH,Third Party Payments,EBA,15/08/2013,05-13763,93968.28,Eden Supported Living Ltd,y,,,,,,,,,,
Nottinghamshire County Council,1111/1001,Adult Social Care and Health,ASCH,Third Party Payments,EBA,15/08/2013,05-13764,1111.47,United Charities Of Abel Collin,y,,,,,,,,,,
Nottinghamshire County Council,1111/1001,Adult Social Care and Health,ASCH,Third Party Payments,EBA,15/08/2013,05-13765,28236.97,Women's Aid Integrated Services,y,,,,,,,,,,
Nottinghamshire County Council,1111/1001,Adult Social Care and Health,ASCH,Third Party Payments,EBA,15/08/2013,05-13766,2920,Care UK Learning Disabilities Servi,y,,,,,,,,,,
Nottinghamshire County Council,1111/1001,Adult Social Care and Health,ASCH,Third Party Payments,EBA,15/08/2013,05-13767,378448.54,Framework Housing Association,y,,,,,,,,,,
Nottinghamshire County Council,1111/1001,Adult Social Care and Health,ASCH,Third Party Payments,EBA,15/08/2013,05-13768,6015.45,Nottingham Community Housing,y,,,,,,,,,,
Nottinghamshire County Council,1111/1001,Adult Social Care and Health,ASCH,Third Party Payments,EBA,15/08/2013,05-13769,15167.92,Lifeways Community Care Ltd,y,,,,,,,,,,
Nottinghamshire County Council,1111/1001,Adult Social Care and Health,ASCH,Third Party Payments,EBA,15/08/2013,05-13770,4800,Voyage Ltd,y,,,,,,,,,,
Nottinghamshire County Council,1111/1001,Adult Social Care and Health,ASCH,Third Party Payments,EBA,15/08/2013,05-13771,1187.63,Housing 21,y,,,,,,,,,,
Nottinghamshire County Council,1111/1001,Adult Social Care and Health,ASCH,Third Party Payments,EBA,15/08/2013,05-13772,28836.56,Thera East Midlands,y,,,,,,,,,,
Nottinghamshire County Council,1111/1001,Adult Social Care and Health,ASCH,Third Party Payments,EBA,15/08/2013,05-13773,12040,United Response,y,,,,,,,,,,
Nottinghamshire County Council,1111/1001,Adult Social Care and Health,ASCH,Third Party Payments,EBA,15/08/2013,05-13774,1840,Heritage Care,y,,,,,,,,,,
Nottinghamshire County Council,1111/1001,Adult Social Care and Health,ASCH,Third Party Payments,EBA,15/08/2013,05-13775,2360,Real Life Options,y,,,,,,,,,,
Nottinghamshire County Council,1111/1001,Adult Social Care and Health,ASCH,Third Party Payments,EBA,15/08/2013,05-13776,22505.13,Gedling Homes,y,,,,,,,,,,
Nottinghamshire County Council,1111/1001,Adult Social Care and Health,ASCH,Third Party Payments,EBA,15/08/2013,05-13777,5521.2,NCHA Ltd,y,,,,,,,,,,
Nottinghamshire County Council,1111/1001,Adult Social Care and Health,ASCH,Third Party Payments,ECA,02/08/2013,05-10083,36867.34,Nottinghamshire Healthcare Nhs Trus,y,,,,,,,,,,
Nottinghamshire County Council,1111/1001,Adult Social Care and Health,ASCH,Third Party Payments,ECA,05/08/2013,05-10119,781.25,The Grange Nursing Home,y,,,,,,,,,,
Nottinghamshire County Council,1111/1001,Adult Social Care and Health,ASCH,Third Party Payments,ECA,05/08/2013,05-10121,627.37,Ashcroft,y,,,,,,,,,,
Nottinghamshire County Council,1111/1001,Adult Social Care and Health,ASCH,Third Party Payments,ECA,05/08/2013,05-10122,1129.27,Ashcroft,y,,,,,,,,,,
Nottinghamshire County Council,1111/1001,Adult Social Care and Health,ASCH,Third Party Payments,ECA,05/08/2013,05-10126,643.06,Silverwood Care Home,y,,,,,,,,,,
Nottinghamshire County Council,1111/1001,Adult Social Care and Health,ASCH,Third Party Payments,ECA,05/08/2013,05-10127,1035.16,Spring Water Lodge,y,,,,,,,,,,
Nottinghamshire County Council,1111/1001,Adult Social Care and Health,ASCH,Third Party Payments,ECA,05/08/2013,05-10128,815.58,Spring Water Lodge,y,,,,,,,,,,
Nottinghamshire County Council,1111/1001,Adult Social Care and Health,ASCH,Third Party Payments,ECA,05/08/2013,05-10129,643.06,Oaks Care Centre,y,,,,,,,,,,
Nottinghamshire County Council,1111/1001,Adult Social Care and Health,ASCH,Third Party Payments,ECA,05/08/2013,05-10130,1537.06,Oaks Care Centre,y,,,,,,,,,,
Nottinghamshire County Council,1111/1001,Adult Social Care and Health,ASCH,Third Party Payments,ECA,05/08/2013,05-10135,188.21,Churchfield Nursing Home,y,,,,,,,,,,
Nottinghamshire County Council,1111/1001,Adult Social Care and Health,ASCH,Third Party Payments,ECA,05/08/2013,05-10140,737.16,St Augustine's Court,y,,,,,,,,,,
Nottinghamshire County Council,1111/1001,Adult Social Care and Health,ASCH,Third Party Payments,ECA,05/08/2013,05-10142,862.64,Berry Hill Park,y,,,,,,,,,,
Nottinghamshire County Council,1111/1001,Adult Social Care and Health,ASCH,Third Party Payments,ECA,05/08/2013,05-10144,219.58,Berry Hill Park,y,,,,,,,,,,
Nottinghamshire County Council,1111/1001,Adult Social Care and Health,ASCH,Third Party Payments,ECA,05/08/2013,05-10151,1066.53,Lawn Park Nursing Home,y,,,,,,,,,,
Nottinghamshire County Council,1111/1001,Adult Social Care and Health,ASCH,Third Party Payments,ECA,05/08/2013,05-10152,627.37,Ashley House Nursing Home,y,,,,,,,,,,
Nottinghamshire County Council,1111/1001,Adult Social Care and Health,ASCH,Third Party Payments,ECA,05/08/2013,05-10157,298,Forest Hill Nursing Home,y,,,,,,,,,,
Nottinghamshire County Council,1111/1001,Adult Social Care and Health,ASCH,Third Party Payments,ECA,05/08/2013,05-10158,329.37,Forest Hill Nursing Home,y,,,,,,,,,,
Nottinghamshire County Council,1111/1001,Adult Social Care and Health,ASCH,Third Party Payments,ECA,05/08/2013,05-10159,580.32,Forest Hill Nursing Home,y,,,,,,,,,,
Nottinghamshire County Council,1111/1001,Adult Social Care and Health,ASCH,Third Party Payments,ECA,05/08/2013,05-10160,2178.09,Church Farm Nursing Home Ltd,y,,,,,,,,,,
Nottinghamshire County Council,1111/1001,Adult Social Care and Health,ASCH,Third Party Payments,ECA,05/08/2013,05-10161,1474.32,Countrywide Care Homes Ltd T/A Gate,y,,,,,,,,,,
Nottinghamshire County Council,1111/1001,Adult Social Care and Health,ASCH,Third Party Payments,ECA,05/08/2013,05-10170,1160.64,Eton Park Nursing Home,y,,,,,,,,,,
Nottinghamshire County Council,1111/1001,Adult Social Care and Health,ASCH,Third Party Payments,ECA,05/08/2013,05-10173,1960.54,Adbolton Hall Nursing Home,y,,,,,,,,,,
Nottinghamshire County Council,1111/1001,Adult Social Care and Health,ASCH,Third Party Payments,ECA,05/08/2013,05-10174,1411.59,Adbolton Hall Nursing Home,y,,,,,,,,,,
Nottinghamshire County Council,1111/1001,Adult Social Care and Health,ASCH,Third Party Payments,ECA,05/08/2013,05-10177,298,Balmore Country House,y,,,,,,,,,,
Nottinghamshire County Council,1111/1001,Adult Social Care and Health,ASCH,Third Party Payments,ECA,05/08/2013,05-10178,1160.64,Balmore Country House,y,,,,,,,,,,
Nottinghamshire County Council,1111/1001,Adult Social Care and Health,ASCH,Third Party Payments,ECA,05/08/2013,05-10179,862.64,Balmore Country House,y,,,,,,,,,,
Nottinghamshire County Council,1111/1001,Adult Social Care and Health,ASCH,Third Party Payments,ECA,05/08/2013,05-10180,1160.64,Field House Nursing Home,y,,,,,,,,,,
Nottinghamshire County Council,1111/1001,Adult Social Care and Health,ASCH,Third Party Payments,ECA,05/08/2013,05-10187,2084.92,Broadgate Nursing Home,y,,,,,,,,,,
Nottinghamshire County Council,1111/1001,Adult Social Care and Health,ASCH,Third Party Payments,ECA,05/08/2013,05-10188,219.58,Victoria Care Home,y,,,,,,,,,,
Nottinghamshire County Council,1111/1001,Adult Social Care and Health,ASCH,Third Party Payments,ECA,05/08/2013,05-10189,966.19,Woodleigh Christian Care Home,y,,,,,,,,,,
Nottinghamshire County Council,1111/1001,Adult Social Care and Health,ASCH,Third Party Payments,ECA,05/08/2013,05-10196,517.58,Pathfinders Neurological Care Centr,y,,,,,,,,,,
Nottinghamshire County Council,1111/1001,Adult Social Care and Health,ASCH,Third Party Payments,ECA,05/08/2013,05-10201,988.11,Parkside Care Home,y,,,,,,,,,,
Nottinghamshire County Council,1111/1001,Adult Social Care and Health,ASCH,Third Party Payments,ECA,05/08/2013,05-10203,1286.11,Forest Manor Care Home,y,,,,,,,,,,
Nottinghamshire County Council,1111/1001,Adult Social Care and Health,ASCH,Third Party Payments,ECA,14/08/2013,05-10386,439.16,Bramcote Hills Care Home,y,,,,,,,,,,
Nottinghamshire County Council,1111/1001,Adult Social Care and Health,ASCH,Third Party Payments,ECA,14/08/2013,05-10393,439.16,Bramcote Hills Care Home,y,,,,,,,,,,
Nottinghamshire County Council,1111/1001,Adult Social Care and Health,ASCH,Third Party Payments,ECA,14/08/2013,05-10394,439.16,Bramcote Hills Care Home,y,,,,,,,,,,
Nottinghamshire County Council,1111/1001,Adult Social Care and Health,ASCH,Third Party Payments,ECA,14/08/2013,05-10396,439.16,Bramcote Hills Care Home,y,,,,,,,,,,
Nottinghamshire County Council,1111/1001,Adult Social Care and Health,ASCH,Third Party Payments,ECA,14/08/2013,05-10397,439.16,Bramcote Hills Care Home,y,,,,,,,,,,
Nottinghamshire County Council,1111/1001,Adult Social Care and Health,ASCH,Third Party Payments,ECA,14/08/2013,05-10398,439.16,Bramcote Hills Care Home,y,,,,,,,,,,
Nottinghamshire County Council,1111/1001,Adult Social Care and Health,ASCH,Third Party Payments,ECA,14/08/2013,05-10408,439.16,The Grange Nursing Home,y,,,,,,,,,,
Nottinghamshire County Council,1111/1001,Adult Social Care and Health,ASCH,Third Party Payments,ECA,14/08/2013,05-10410,439.16,The Grange Nursing Home,y,,,,,,,,,,
Nottinghamshire County Council,1111/1001,Adult Social Care and Health,ASCH,Third Party Payments,ECA,14/08/2013,05-10412,439.16,The Grange Nursing Home,y,,,,,,,,,,
Nottinghamshire County Council,1111/1001,Adult Social Care and Health,ASCH,Third Party Payments,ECA,14/08/2013,05-10413,439.16,The Grange Nursing Home,y,,,,,,,,,,
Nottinghamshire County Council,1111/1001,Adult Social Care and Health,ASCH,Third Party Payments,ECA,14/08/2013,05-10414,439.16,The Grange Nursing Home,y,,,,,,,,,,
Nottinghamshire County Council,1111/1001,Adult Social Care and Health,ASCH,Third Party Payments,ECA,14/08/2013,05-10434,439.16,Belle Vue,y,,,,,,,,,,
Nottinghamshire County Council,1111/1001,Adult Social Care and Health,ASCH,Third Party Payments,ECA,14/08/2013,05-10435,439.16,Belle Vue,y,,,,,,,,,,
Nottinghamshire County Council,1111/1001,Adult Social Care and Health,ASCH,Third Party Payments,ECA,14/08/2013,05-10436,439.16,Belle Vue,y,,,,,,,,,,
Nottinghamshire County Council,1111/1001,Adult Social Care and Health,ASCH,Third Party Payments,ECA,14/08/2013,05-10439,439.16,Belle Vue,y,,,,,,,,,,
Nottinghamshire County Council,1111/1001,Adult Social Care and Health,ASCH,Third Party Payments,ECA,14/08/2013,05-10440,439.16,Belle Vue,y,,,,,,,,,,
Nottinghamshire County Council,1111/1001,Adult Social Care and Health,ASCH,Third Party Payments,ECA,14/08/2013,05-10441,439.16,Belle Vue,y,,,,,,,,,,
Nottinghamshire County Council,1111/1001,Adult Social Care and Health,ASCH,Third Party Payments,ECA,14/08/2013,05-10442,439.16,Belle Vue,y,,,,,,,,,,
Nottinghamshire County Council,1111/1001,Adult Social Care and Health,ASCH,Third Party Payments,ECA,14/08/2013,05-10443,439.16,Belle Vue,y,,,,,,,,,,
Nottinghamshire County Council,1111/1001,Adult Social Care and Health,ASCH,Third Party Payments,ECA,14/08/2013,05-10444,439.16,Belle Vue,y,,,,,,,,,,
Nottinghamshire County Council,1111/1001,Adult Social Care and Health,ASCH,Third Party Payments,ECA,14/08/2013,05-10450,439.16,Ashcroft,y,,,,,,,,,,
Nottinghamshire County Council,1111/1001,Adult Social Care and Health,ASCH,Third Party Payments,ECA,14/08/2013,05-10452,439.16,Ashcroft,y,,,,,,,,,,
Nottinghamshire County Council,1111/1001,Adult Social Care and Health,ASCH,Third Party Payments,ECA,14/08/2013,05-10453,439.16,Ashcroft,y,,,,,,,,,,
Nottinghamshire County Council,1111/1001,Adult Social Care and Health,ASCH,Third Party Payments,ECA,14/08/2013,05-10454,439.16,Ashcroft,y,,,,,,,,,,
Nottinghamshire County Council,1111/1001,Adult Social Care and Health,ASCH,Third Party Payments,ECA,14/08/2013,05-10455,439.16,Ashcroft,y,,,,,,,,,,
Nottinghamshire County Council,1111/1001,Adult Social Care and Health,ASCH,Third Party Payments,ECA,14/08/2013,05-10459,439.16,Ashcroft,y,,,,,,,,,,
Nottinghamshire County Council,1111/1001,Adult Social Care and Health,ASCH,Third Party Payments,ECA,14/08/2013,05-10460,439.16,Ashcroft,y,,,,,,,,,,
Nottinghamshire County Council,1111/1001,Adult Social Care and Health,ASCH,Third Party Payments,ECA,14/08/2013,05-10462,439.16,Ashcroft,y,,,,,,,,,,
Nottinghamshire County Council,1111/1001,Adult Social Care and Health,ASCH,Third Party Payments,ECA,14/08/2013,05-10463,439.16,Ashcroft,y,,,,,,,,,,
Nottinghamshire County Council,1111/1001,Adult Social Care and Health,ASCH,Third Party Payments,ECA,14/08/2013,05-10464,439.16,Ashcroft,y,,,,,,,,,,
Nottinghamshire County Council,1111/1001,Adult Social Care and Health,ASCH,Third Party Payments,ECA,14/08/2013,05-10471,439.16,Ashcroft,y,,,,,,,,,,
Nottinghamshire County Council,1111/1001,Adult Social Care and Health,ASCH,Third Party Payments,ECA,14/08/2013,05-10475,439.16,Ashcroft,y,,,,,,,,,,
Nottinghamshire County Council,1111/1001,Adult Social Care and Health,ASCH,Third Party Payments,ECA,14/08/2013,05-10477,439.16,Kingsthorpe View Nursing Home,y,,,,,,,,,,
Nottinghamshire County Council,1111/1001,Adult Social Care and Health,ASCH,Third Party Payments,ECA,14/08/2013,05-10478,439.16,Kingsthorpe View Nursing Home,y,,,,,,,,,,
Nottinghamshire County Council,1111/1001,Adult Social Care and Health,ASCH,Third Party Payments,ECA,14/08/2013,05-10479,439.16,Kingsthorpe View Nursing Home,y,,,,,,,,,,
Nottinghamshire County Council,1111/1001,Adult Social Care and Health,ASCH,Third Party Payments,ECA,14/08/2013,05-10480,439.16,Kingsthorpe View Nursing Home,y,,,,,,,,,,
Nottinghamshire County Council,1111/1001,Adult Social Care and Health,ASCH,Third Party Payments,ECA,14/08/2013,05-10481,439.16,Kingsthorpe View Nursing Home,y,,,,,,,,,,
Nottinghamshire County Council,1111/1001,Adult Social Care and Health,ASCH,Third Party Payments,ECA,14/08/2013,05-10482,440.25,Kingsthorpe View Nursing Home,y,,,,,,,,,,
Nottinghamshire County Council,1111/1001,Adult Social Care and Health,ASCH,Third Party Payments,ECA,14/08/2013,05-10491,439.16,Beauvale Nursing Home,y,,,,,,,,,,
Nottinghamshire County Council,1111/1001,Adult Social Care and Health,ASCH,Third Party Payments,ECA,14/08/2013,05-10493,439.16,Beauvale Nursing Home,y,,,,,,,,,,
Nottinghamshire County Council,1111/1001,Adult Social Care and Health,ASCH,Third Party Payments,ECA,14/08/2013,05-10494,439.16,Beauvale Nursing Home,y,,,,,,,,,,
Nottinghamshire County Council,1111/1001,Adult Social Care and Health,ASCH,Third Party Payments,ECA,14/08/2013,05-10496,439.16,Beauvale Nursing Home,y,,,,,,,,,,
Nottinghamshire County Council,1111/1001,Adult Social Care and Health,ASCH,Third Party Payments,ECA,14/08/2013,05-10498,439.16,Beauvale Nursing Home,y,,,,,,,,,,
Nottinghamshire County Council,1111/1001,Adult Social Care and Health,ASCH,Third Party Payments,ECA,14/08/2013,05-10499,439.16,Beauvale Nursing Home,y,,,,,,,,,,
Nottinghamshire County Council,1111/1001,Adult Social Care and Health,ASCH,Third Party Payments,ECA,14/08/2013,05-10500,439.16,Beauvale Nursing Home,y,,,,,,,,,,
Nottinghamshire County Council,1111/1001,Adult Social Care and Health,ASCH,Third Party Payments,ECA,14/08/2013,05-10501,439.16,Beauvale Nursing Home,y,,,,,,,,,,
Nottinghamshire County Council,1111/1001,Adult Social Care and Health,ASCH,Third Party Payments,ECA,14/08/2013,05-10503,439.16,Beauvale Nursing Home,y,,,,,,,,,,
Nottinghamshire County Council,1111/1001,Adult Social Care and Health,ASCH,Third Party Payments,ECA,14/08/2013,05-10504,439.16,Beauvale Nursing Home,y,,,,,,,,,,
Nottinghamshire County Council,1111/1001,Adult Social Care and Health,ASCH,Third Party Payments,ECA,14/08/2013,05-10518,439.16,Avalon Nursing Home,y,,,,,,,,,,
Nottinghamshire County Council,1111/1001,Adult Social Care and Health,ASCH,Third Party Payments,ECA,14/08/2013,05-10520,439.16,Avalon Nursing Home,y,,,,,,,,,,
Nottinghamshire County Council,1111/1001,Adult Social Care and Health,ASCH,Third Party Payments,ECA,14/08/2013,05-10524,439.16,Avalon Nursing Home,y,,,,,,,,,,
Nottinghamshire County Council,1111/1001,Adult Social Care and Health,ASCH,Third Party Payments,ECA,14/08/2013,05-10525,925.37,Avalon Nursing Home,y,,,,,,,,,,
Nottinghamshire County Council,1111/1001,Adult Social Care and Health,ASCH,Third Party Payments,ECA,14/08/2013,05-10526,439.16,Avalon Nursing Home,y,,,,,,,,,,
Nottinghamshire County Council,1111/1001,Adult Social Care and Health,ASCH,Third Party Payments,ECA,14/08/2013,05-10527,439.16,Avalon Nursing Home,y,,,,,,,,,,
Nottinghamshire County Council,1111/1001,Adult Social Care and Health,ASCH,Third Party Payments,ECA,14/08/2013,05-10529,439.16,Avalon Nursing Home,y,,,,,,,,,,
Nottinghamshire County Council,1111/1001,Adult Social Care and Health,ASCH,Third Party Payments,ECA,14/08/2013,05-10530,439.16,Avalon Nursing Home,y,,,,,,,,,,
Nottinghamshire County Council,1111/1001,Adult Social Care and Health,ASCH,Third Party Payments,ECA,14/08/2013,05-10534,439.16,Avalon Nursing Home,y,,,,,,,,,,
Nottinghamshire County Council,1111/1001,Adult Social Care and Health,ASCH,Third Party Payments,ECA,14/08/2013,05-10535,439.16,Avalon Nursing Home,y,,,,,,,,,,
Nottinghamshire County Council,1111/1001,Adult Social Care and Health,ASCH,Third Party Payments,ECA,14/08/2013,05-10539,439.16,Silverwood Care Home,y,,,,,,,,,,
Nottinghamshire County Council,1111/1001,Adult Social Care and Health,ASCH,Third Party Payments,ECA,14/08/2013,05-10540,439.16,Silverwood Care Home,y,,,,,,,,,,
Nottinghamshire County Council,1111/1001,Adult Social Care and Health,ASCH,Third Party Payments,ECA,14/08/2013,05-10541,439.16,Silverwood Care Home,y,,,,,,,,,,
Nottinghamshire County Council,1111/1001,Adult Social Care and Health,ASCH,Third Party Payments,ECA,14/08/2013,05-10545,439.16,Silverwood Care Home,y,,,,,,,,,,
Nottinghamshire County Council,1111/1001,Adult Social Care and Health,ASCH,Third Party Payments,ECA,14/08/2013,05-10547,439.16,Silverwood Care Home,y,,,,,,,,,,
Nottinghamshire County Council,1111/1001,Adult Social Care and Health,ASCH,Third Party Payments,ECA,14/08/2013,05-10549,439.16,Silverwood Care Home,y,,,,,,,,,,
Nottinghamshire County Council,1111/1001,Adult Social Care and Health,ASCH,Third Party Payments,ECA,14/08/2013,05-10550,439.16,Silverwood Care Home,y,,,,,,,,,,
Nottinghamshire County Council,1111/1001,Adult Social Care and Health,ASCH,Third Party Payments,ECA,14/08/2013,05-10553,439.16,Silverwood Care Home,y,,,,,,,,,,
Nottinghamshire County Council,1111/1001,Adult Social Care and Health,ASCH,Third Party Payments,ECA,14/08/2013,05-10554,439.16,Silverwood Care Home,y,,,,,,,,,,
Nottinghamshire County Council,1111/1001,Adult Social Care and Health,ASCH,Third Party Payments,ECA,14/08/2013,05-10555,439.16,Silverwood Care Home,y,,,,,,,,,,
Nottinghamshire County Council,1111/1001,Adult Social Care and Health,ASCH,Third Party Payments,ECA,14/08/2013,05-10558,439.16,Silverwood Care Home,y,,,,,,,,,,
Nottinghamshire County Council,1111/1001,Adult Social Care and Health,ASCH,Third Party Payments,ECA,14/08/2013,05-10559,439.16,Silverwood Care Home,y,,,,,,,,,,
Nottinghamshire County Council,1111/1001,Adult Social Care and Health,ASCH,Third Party Payments,ECA,14/08/2013,05-10563,439.16,Acacia Care Centre,y,,,,,,,,,,
Nottinghamshire County Council,1111/1001,Adult Social Care and Health,ASCH,Third Party Payments,ECA,14/08/2013,05-10567,439.16,Spring Water Lodge,y,,,,,,,,,,
Nottinghamshire County Council,1111/1001,Adult Social Care and Health,ASCH,Third Party Payments,ECA,14/08/2013,05-10569,439.16,Spring Water Lodge,y,,,,,,,,,,
Nottinghamshire County Council,1111/1001,Adult Social Care and Health,ASCH,Third Party Payments,ECA,14/08/2013,05-10572,439.16,Spring Water Lodge,y,,,,,,,,,,
Nottinghamshire County Council,1111/1001,Adult Social Care and Health,ASCH,Third Party Payments,ECA,14/08/2013,05-10573,439.16,Spring Water Lodge,y,,,,,,,,,,
Nottinghamshire County Council,1111/1001,Adult Social Care and Health,ASCH,Third Party Payments,ECA,14/08/2013,05-10619,439.16,Oaks Care Centre,y,,,,,,,,,,
Nottinghamshire County Council,1111/1001,Adult Social Care and Health,ASCH,Third Party Payments,ECA,14/08/2013,05-10622,439.16,Oaks Care Centre,y,,,,,,,,,,
Nottinghamshire County Council,1111/1001,Adult Social Care and Health,ASCH,Third Party Payments,ECA,14/08/2013,05-10624,439.16,Oaks Care Centre,y,,,,,,,,,,
Nottinghamshire County Council,1111/1001,Adult Social Care and Health,ASCH,Third Party Payments,ECA,14/08/2013,05-10625,439.16,Oaks Care Centre,y,,,,,,,,,,
Nottinghamshire County Council,1111/1001,Adult Social Care and Health,ASCH,Third Party Payments,ECA,14/08/2013,05-10628,439.16,Oaks Care Centre,y,,,,,,,,,,
Nottinghamshire County Council,1111/1001,Adult Social Care and Health,ASCH,Third Party Payments,ECA,14/08/2013,05-10639,439.16,Oaks Care Centre,y,,,,,,,,,,
Nottinghamshire County Council,1111/1001,Adult Social Care and Health,ASCH,Third Party Payments,ECA,14/08/2013,05-10640,439.16,Oaks Care Centre,y,,,,,,,,,,
Nottinghamshire County Council,1111/1001,Adult Social Care and Health,ASCH,Third Party Payments,ECA,14/08/2013,05-10642,439.16,Oaks Care Centre,y,,,,,,,,,,
Nottinghamshire County Council,1111/1001,Adult Social Care and Health,ASCH,Third Party Payments,ECA,14/08/2013,05-10643,439.16,Oaks Care Centre,y,,,,,,,,,,
Nottinghamshire County Council,1111/1001,Adult Social Care and Health,ASCH,Third Party Payments,ECA,14/08/2013,05-10652,439.16,Oaks Care Centre,y,,,,,,,,,,
Nottinghamshire County Council,1111/1001,Adult Social Care and Health,ASCH,Third Party Payments,ECA,14/08/2013,05-10654,439.16,Oaks Care Centre,y,,,,,,,,,,
Nottinghamshire County Council,1111/1001,Adult Social Care and Health,ASCH,Third Party Payments,ECA,14/08/2013,05-10655,-596,Oaks Care Centre,y,,,,,,,,,,
Nottinghamshire County Council,1111/1001,Adult Social Care and Health,ASCH,Third Party Payments,ECA,14/08/2013,05-10674,439.16,Charnwood House,y,,,,,,,,,,
Nottinghamshire County Council,1111/1001,Adult Social Care and Health,ASCH,Third Party Payments,ECA,14/08/2013,05-10675,439.16,Charnwood House,y,,,,,,,,,,
Nottinghamshire County Council,1111/1001,Adult Social Care and Health,ASCH,Third Party Payments,ECA,14/08/2013,05-10679,439.16,Charnwood House,y,,,,,,,,,,
Nottinghamshire County Council,1111/1001,Adult Social Care and Health,ASCH,Third Party Payments,ECA,14/08/2013,05-10681,439.16,Charnwood House,y,,,,,,,,,,
Nottinghamshire County Council,1111/1001,Adult Social Care and Health,ASCH,Third Party Payments,ECA,14/08/2013,05-10683,439.16,Charnwood House,y,,,,,,,,,,
Nottinghamshire County Council,1111/1001,Adult Social Care and Health,ASCH,Third Party Payments,ECA,14/08/2013,05-10684,439.16,Charnwood House,y,,,,,,,,,,
Nottinghamshire County Council,1111/1001,Adult Social Care and Health,ASCH,Third Party Payments,ECA,14/08/2013,05-10689,439.16,Charnwood House,y,,,,,,,,,,
Nottinghamshire County Council,1111/1001,Adult Social Care and Health,ASCH,Third Party Payments,ECA,14/08/2013,05-10695,439.16,Charnwood House,y,,,,,,,,,,
Nottinghamshire County Council,1111/1001,Adult Social Care and Health,ASCH,Third Party Payments,ECA,14/08/2013,05-10696,439.16,Charnwood House,y,,,,,,,,,,
Nottinghamshire County Council,1111/1001,Adult Social Care and Health,ASCH,Third Party Payments,ECA,14/08/2013,05-10700,1176.32,Four Seasons (Evedale) Ltd Re Charn,y,,,,,,,,,,
Nottinghamshire County Council,1111/1001,Adult Social Care and Health,ASCH,Third Party Payments,ECA,14/08/2013,05-10702,439.16,Four Seasons (Evedale) Ltd Re Sycam,y,,,,,,,,,,
Nottinghamshire County Council,1111/1001,Adult Social Care and Health,ASCH,Third Party Payments,ECA,14/08/2013,05-10705,439.16,Four Seasons (Evedale) Ltd Re Sycam,y,,,,,,,,,,
Nottinghamshire County Council,1111/1001,Adult Social Care and Health,ASCH,Third Party Payments,ECA,14/08/2013,05-10706,439.16,Four Seasons (Evedale) Ltd Re Sycam,y,,,,,,,,,,
Nottinghamshire County Council,1111/1001,Adult Social Care and Health,ASCH,Third Party Payments,ECA,14/08/2013,05-10708,439.16,Four Seasons (Evedale) Ltd Re Sycam,y,,,,,,,,,,
Nottinghamshire County Council,1111/1001,Adult Social Care and Health,ASCH,Third Party Payments,ECA,14/08/2013,05-10716,439.16,Four Seasons (Evedale) Ltd Re Sycam,y,,,,,,,,,,
Nottinghamshire County Council,1111/1001,Adult Social Care and Health,ASCH,Third Party Payments,ECA,14/08/2013,05-10717,439.16,Four Seasons (Evedale) Ltd Re Sycam,y,,,,,,,,,,
Nottinghamshire County Council,1111/1001,Adult Social Care and Health,ASCH,Third Party Payments,ECA,14/08/2013,05-10728,439.16,Ferndene Care Home,y,,,,,,,,,,
Nottinghamshire County Council,1111/1001,Adult Social Care and Health,ASCH,Third Party Payments,ECA,14/08/2013,05-10738,439.16,Howson Care Centre,y,,,,,,,,,,
Nottinghamshire County Council,1111/1001,Adult Social Care and Health,ASCH,Third Party Payments,ECA,14/08/2013,05-10739,439.16,Howson Care Centre,y,,,,,,,,,,
Nottinghamshire County Council,1111/1001,Adult Social Care and Health,ASCH,Third Party Payments,ECA,14/08/2013,05-10740,604.4,Howson Care Centre,y,,,,,,,,,,
Nottinghamshire County Council,1111/1001,Adult Social Care and Health,ASCH,Third Party Payments,ECA,14/08/2013,05-10742,604.4,Howson Care Centre,y,,,,,,,,,,
Nottinghamshire County Council,1111/1001,Adult Social Care and Health,ASCH,Third Party Payments,ECA,14/08/2013,05-10743,439.16,Howson Care Centre,y,,,,,,,,,,
Nottinghamshire County Council,1111/1001,Adult Social Care and Health,ASCH,Third Party Payments,ECA,14/08/2013,05-10744,439.16,Howson Care Centre,y,,,,,,,,,,
Nottinghamshire County Council,1111/1001,Adult Social Care and Health,ASCH,Third Party Payments,ECA,14/08/2013,05-10746,439.16,Churchfield Drive Care Home,y,,,,,,,,,,
Nottinghamshire County Council,1111/1001,Adult Social Care and Health,ASCH,Third Party Payments,ECA,14/08/2013,05-10749,439.16,Churchfield Drive Care Home,y,,,,,,,,,,
Nottinghamshire County Council,1111/1001,Adult Social Care and Health,ASCH,Third Party Payments,ECA,14/08/2013,05-10751,439.16,Churchfield Drive Care Home,y,,,,,,,,,,
Nottinghamshire County Council,1111/1001,Adult Social Care and Health,ASCH,Third Party Payments,ECA,14/08/2013,05-10752,439.16,Churchfield Drive Care Home,y,,,,,,,,,,
Nottinghamshire County Council,1111/1001,Adult Social Care and Health,ASCH,Third Party Payments,ECA,14/08/2013,05-10757,439.16,Churchfield Drive Care Home,y,,,,,,,,,,
Nottinghamshire County Council,1111/1001,Adult Social Care and Health,ASCH,Third Party Payments,ECA,14/08/2013,05-10758,439.16,Churchfield Drive Care Home,y,,,,,,,,,,
Nottinghamshire County Council,1111/1001,Adult Social Care and Health,ASCH,Third Party Payments,ECA,14/08/2013,05-10759,439.16,Churchfield Drive Care Home,y,,,,,,,,,,
Nottinghamshire County Council,1111/1001,Adult Social Care and Health,ASCH,Third Party Payments,ECA,14/08/2013,05-10764,439.16,Churchfield Drive Care Home,y,,,,,,,,,,
Nottinghamshire County Council,1111/1001,Adult Social Care and Health,ASCH,Third Party Payments,ECA,14/08/2013,05-10765,439.16,Churchfield Drive Care Home,y,,,,,,,,,,
Nottinghamshire County Council,1111/1001,Adult Social Care and Health,ASCH,Third Party Payments,ECA,14/08/2013,05-10794,439.16,Churchfield Nursing Home,y,,,,,,,,,,
Nottinghamshire County Council,1111/1001,Adult Social Care and Health,ASCH,Third Party Payments,ECA,14/08/2013,05-10795,439.16,Churchfield Nursing Home,y,,,,,,,,,,
Nottinghamshire County Council,1111/1001,Adult Social Care and Health,ASCH,Third Party Payments,ECA,14/08/2013,05-10796,439.16,Churchfield Nursing Home,y,,,,,,,,,,
Nottinghamshire County Council,1111/1001,Adult Social Care and Health,ASCH,Third Party Payments,ECA,14/08/2013,05-10819,439.16,Kirkby Manor Care Home,y,,,,,,,,,,
Nottinghamshire County Council,1111/1001,Adult Social Care and Health,ASCH,Third Party Payments,ECA,14/08/2013,05-10820,598.4,Kirkby Manor Care Home,y,,,,,,,,,,
Nottinghamshire County Council,1111/1001,Adult Social Care and Health,ASCH,Third Party Payments,ECA,14/08/2013,05-10821,598.4,Kirkby Manor Care Home,y,,,,,,,,,,
Nottinghamshire County Council,1111/1001,Adult Social Care and Health,ASCH,Third Party Payments,ECA,14/08/2013,05-10822,439.16,Kirkby Manor Care Home,y,,,,,,,,,,
Nottinghamshire County Council,1111/1001,Adult Social Care and Health,ASCH,Third Party Payments,ECA,14/08/2013,05-10824,439.16,Kirkby Manor Care Home,y,,,,,,,,,,
Nottinghamshire County Council,1111/1001,Adult Social Care and Health,ASCH,Third Party Payments,ECA,14/08/2013,05-10825,439.16,Kirkby Manor Care Home,y,,,,,,,,,,
Nottinghamshire County Council,1111/1001,Adult Social Care and Health,ASCH,Third Party Payments,ECA,14/08/2013,05-10826,439.16,Kirkby Manor Care Home,y,,,,,,,,,,
Nottinghamshire County Council,1111/1001,Adult Social Care and Health,ASCH,Third Party Payments,ECA,14/08/2013,05-10827,439.16,Kirkby Manor Care Home,y,,,,,,,,,,
Nottinghamshire County Council,1111/1001,Adult Social Care and Health,ASCH,Third Party Payments,ECA,14/08/2013,05-10828,439.16,Kirkby Manor Care Home,y,,,,,,,,,,
Nottinghamshire County Council,1111/1001,Adult Social Care and Health,ASCH,Third Party Payments,ECA,14/08/2013,05-10829,439.16,Kirkby Manor Care Home,y,,,,,,,,,,
Nottinghamshire County Council,1111/1001,Adult Social Care and Health,ASCH,Third Party Payments,ECA,14/08/2013,05-10864,439.16,Stoneyford Christian Nursing Home,y,,,,,,,,,,
Nottinghamshire County Council,1111/1001,Adult Social Care and Health,ASCH,Third Party Payments,ECA,14/08/2013,05-10865,439.16,Stoneyford Christian Nursing Home,y,,,,,,,,,,
Nottinghamshire County Council,1111/1001,Adult Social Care and Health,ASCH,Third Party Payments,ECA,14/08/2013,05-10866,439.16,Stoneyford Christian Nursing Home,y,,,,,,,,,,
Nottinghamshire County Council,1111/1001,Adult Social Care and Health,ASCH,Third Party Payments,ECA,14/08/2013,05-10868,439.16,Stoneyford Christian Nursing Home,y,,,,,,,,,,
Nottinghamshire County Council,1111/1001,Adult Social Care and Health,ASCH,Third Party Payments,ECA,14/08/2013,05-10870,439.16,Stoneyford Christian Nursing Home,y,,,,,,,,,,
Nottinghamshire County Council,1111/1001,Adult Social Care and Health,ASCH,Third Party Payments,ECA,14/08/2013,05-10872,439.16,Stoneyford Christian Nursing Home,y,,,,,,,,,,
Nottinghamshire County Council,1111/1001,Adult Social Care and Health,ASCH,Third Party Payments,ECA,14/08/2013,05-10876,439.16,Stoneyford Christian Nursing Home,y,,,,,,,,,,
Nottinghamshire County Council,1111/1001,Adult Social Care and Health,ASCH,Third Party Payments,ECA,14/08/2013,05-10877,439.16,Stoneyford Christian Nursing Home,y,,,,,,,,,,
Nottinghamshire County Council,1111/1001,Adult Social Care and Health,ASCH,Third Party Payments,ECA,14/08/2013,05-10878,439.16,Stoneyford Christian Nursing Home,y,,,,,,,,,,
Nottinghamshire County Council,1111/1001,Adult Social Care and Health,ASCH,Third Party Payments,ECA,14/08/2013,05-10879,1144.95,Stoneyford Christian Nursing Home,y,,,,,,,,,,
Nottinghamshire County Council,1111/1001,Adult Social Care and Health,ASCH,Third Party Payments,ECA,14/08/2013,05-10880,439.16,Stoneyford Christian Nursing Home,y,,,,,,,,,,
Nottinghamshire County Council,1111/1001,Adult Social Care and Health,ASCH,Third Party Payments,ECA,14/08/2013,05-10882,439.16,Stoneyford Christian Nursing Home,y,,,,,,,,,,
Nottinghamshire County Council,1111/1001,Adult Social Care and Health,ASCH,Third Party Payments,ECA,14/08/2013,05-10883,439.16,Stoneyford Christian Nursing Home,y,,,,,,,,,,
Nottinghamshire County Council,1111/1001,Adult Social Care and Health,ASCH,Third Party Payments,ECA,14/08/2013,05-10886,439.16,Stoneyford Christian Nursing Home,y,,,,,,,,,,
Nottinghamshire County Council,1111/1001,Adult Social Care and Health,ASCH,Third Party Payments,ECA,14/08/2013,05-10887,439.16,Stoneyford Christian Nursing Home,y,,,,,,,,,,
Nottinghamshire County Council,1111/1001,Adult Social Care and Health,ASCH,Third Party Payments,ECA,14/08/2013,05-10888,439.16,Stoneyford Christian Nursing Home,y,,,,,,,,,,
Nottinghamshire County Council,1111/1001,Adult Social Care and Health,ASCH,Third Party Payments,ECA,14/08/2013,05-10889,439.16,St Augustine's Court,y,,,,,,,,,,
Nottinghamshire County Council,1111/1001,Adult Social Care and Health,ASCH,Third Party Payments,ECA,14/08/2013,05-10891,439.16,St Augustine's Court,y,,,,,,,,,,
Nottinghamshire County Council,1111/1001,Adult Social Care and Health,ASCH,Third Party Payments,ECA,14/08/2013,05-10893,439.16,St Augustine's Court,y,,,,,,,,,,
Nottinghamshire County Council,1111/1001,Adult Social Care and Health,ASCH,Third Party Payments,ECA,14/08/2013,05-10894,-5625.43,St Augustine's Court,y,,,,,,,,,,
Nottinghamshire County Council,1111/1001,Adult Social Care and Health,ASCH,Third Party Payments,ECA,14/08/2013,05-10898,439.16,Beeches Nursing Home,y,,,,,,,,,,
Nottinghamshire County Council,1111/1001,Adult Social Care and Health,ASCH,Third Party Payments,ECA,14/08/2013,05-10899,439.16,Beeches Nursing Home,y,,,,,,,,,,
Nottinghamshire County Council,1111/1001,Adult Social Care and Health,ASCH,Third Party Payments,ECA,14/08/2013,05-10900,439.16,Beeches Nursing Home,y,,,,,,,,,,
Nottinghamshire County Council,1111/1001,Adult Social Care and Health,ASCH,Third Party Payments,ECA,14/08/2013,05-10904,439.16,Beeches Nursing Home,y,,,,,,,,,,
Nottinghamshire County Council,1111/1001,Adult Social Care and Health,ASCH,Third Party Payments,ECA,14/08/2013,05-10905,439.16,Beeches Nursing Home,y,,,,,,,,,,
Nottinghamshire County Council,1111/1001,Adult Social Care and Health,ASCH,Third Party Payments,ECA,14/08/2013,05-10907,439.16,Beeches Nursing Home,y,,,,,,,,,,
Nottinghamshire County Council,1111/1001,Adult Social Care and Health,ASCH,Third Party Payments,ECA,14/08/2013,05-10908,439.16,Beeches Nursing Home,y,,,,,,,,,,
Nottinghamshire County Council,1111/1001,Adult Social Care and Health,ASCH,Third Party Payments,ECA,14/08/2013,05-10910,439.16,Beeches Nursing Home,y,,,,,,,,,,
Nottinghamshire County Council,1111/1001,Adult Social Care and Health,ASCH,Third Party Payments,ECA,14/08/2013,05-10912,439.16,Berry Hill Park,y,,,,,,,,,,
Nottinghamshire County Council,1111/1001,Adult Social Care and Health,ASCH,Third Party Payments,ECA,14/08/2013,05-10913,439.16,Berry Hill Park,y,,,,,,,,,,
Nottinghamshire County Council,1111/1001,Adult Social Care and Health,ASCH,Third Party Payments,ECA,14/08/2013,05-10914,439.16,Berry Hill Park,y,,,,,,,,,,
Nottinghamshire County Council,1111/1001,Adult Social Care and Health,ASCH,Third Party Payments,ECA,14/08/2013,05-10916,439.16,Berry Hill Park,y,,,,,,,,,,
Nottinghamshire County Council,1111/1001,Adult Social Care and Health,ASCH,Third Party Payments,ECA,14/08/2013,05-10919,439.16,Berry Hill Park,y,,,,,,,,,,
Nottinghamshire County Council,1111/1001,Adult Social Care and Health,ASCH,Third Party Payments,ECA,14/08/2013,05-10921,439.16,Berry Hill Park,y,,,,,,,,,,
Nottinghamshire County Council,1111/1001,Adult Social Care and Health,ASCH,Third Party Payments,ECA,14/08/2013,05-10922,439.16,Berry Hill Park,y,,,,,,,,,,
Nottinghamshire County Council,1111/1001,Adult Social Care and Health,ASCH,Third Party Payments,ECA,14/08/2013,05-10923,1882.11,Berry Hill Park,y,,,,,,,,,,
Nottinghamshire County Council,1111/1001,Adult Social Care and Health,ASCH,Third Party Payments,ECA,14/08/2013,05-10924,658.74,Berry Hill Park,y,,,,,,,,,,
Nottinghamshire County Council,1111/1001,Adult Social Care and Health,ASCH,Third Party Payments,ECA,14/08/2013,05-10926,439.16,Berry Hill Park,y,,,,,,,,,,
Nottinghamshire County Council,1111/1001,Adult Social Care and Health,ASCH,Third Party Payments,ECA,14/08/2013,05-10927,439.16,Berry Hill Park,y,,,,,,,,,,
Nottinghamshire County Council,1111/1001,Adult Social Care and Health,ASCH,Third Party Payments,ECA,14/08/2013,05-10931,439.16,Berry Hill Park,y,,,,,,,,,,
Nottinghamshire County Council,1111/1001,Adult Social Care and Health,ASCH,Third Party Payments,ECA,14/08/2013,05-10933,439.16,Berry Hill Park,y,,,,,,,,,,
Nottinghamshire County Council,1111/1001,Adult Social Care and Health,ASCH,Third Party Payments,ECA,14/08/2013,05-10934,439.16,Berry Hill Park,y,,,,,,,,,,
Nottinghamshire County Council,1111/1001,Adult Social Care and Health,ASCH,Third Party Payments,ECA,14/08/2013,05-10937,470.53,Berry Hill Park,y,,,,,,,,,,
Nottinghamshire County Council,1111/1001,Adult Social Care and Health,ASCH,Third Party Payments,ECA,14/08/2013,05-10957,439.16,Countrywide Care Homes Ltd T/A Clum,y,,,,,,,,,,
Nottinghamshire County Council,1111/1001,Adult Social Care and Health,ASCH,Third Party Payments,ECA,14/08/2013,05-10958,439.16,Countrywide Care Homes Ltd T/A Clum,y,,,,,,,,,,
Nottinghamshire County Council,1111/1001,Adult Social Care and Health,ASCH,Third Party Payments,ECA,14/08/2013,05-10959,439.16,Countrywide Care Homes Ltd T/A Clum,y,,,,,,,,,,
Nottinghamshire County Council,1111/1001,Adult Social Care and Health,ASCH,Third Party Payments,ECA,14/08/2013,05-10960,439.16,Countrywide Care Homes Ltd T/A Clum,y,,,,,,,,,,
Nottinghamshire County Council,1111/1001,Adult Social Care and Health,ASCH,Third Party Payments,ECA,14/08/2013,05-10962,439.16,Countrywide Care Homes Ltd T/A Clum,y,,,,,,,,,,
Nottinghamshire County Council,1111/1001,Adult Social Care and Health,ASCH,Third Party Payments,ECA,14/08/2013,05-10963,439.16,Countrywide Care Homes Ltd T/A Clum,y,,,,,,,,,,
Nottinghamshire County Council,1111/1001,Adult Social Care and Health,ASCH,Third Party Payments,ECA,14/08/2013,05-10964,439.16,Countrywide Care Homes Ltd T/A Clum,y,,,,,,,,,,
Nottinghamshire County Council,1111/1001,Adult Social Care and Health,ASCH,Third Party Payments,ECA,14/08/2013,05-10967,439.16,Countrywide Care Homes Ltd T/A Clum,y,,,,,,,,,,
Nottinghamshire County Council,1111/1001,Adult Social Care and Health,ASCH,Third Party Payments,ECA,14/08/2013,05-10968,125.47,Countrywide Care Homes Ltd T/A Clum,y,,,,,,,,,,
Nottinghamshire County Council,1111/1001,Adult Social Care and Health,ASCH,Third Party Payments,ECA,14/08/2013,05-10969,439.16,Countrywide Care Homes Ltd T/A Clum,y,,,,,,,,,,
Nottinghamshire County Council,1111/1001,Adult Social Care and Health,ASCH,Third Party Payments,ECA,14/08/2013,05-10972,643.06,Countrywide Care Homes Ltd T/A Clum,y,,,,,,,,,,
Nottinghamshire County Council,1111/1001,Adult Social Care and Health,ASCH,Third Party Payments,ECA,14/08/2013,05-10974,598.4,Countrywide Care Homes Ltd T/A Clum,y,,,,,,,,,,
Nottinghamshire County Council,1111/1001,Adult Social Care and Health,ASCH,Third Party Payments,ECA,14/08/2013,05-10975,439.16,Countrywide Care Homes Ltd T/A Clum,y,,,,,,,,,,
Nottinghamshire County Council,1111/1001,Adult Social Care and Health,ASCH,Third Party Payments,ECA,14/08/2013,05-10976,439.16,Countrywide Care Homes Ltd T/A Clum,y,,,,,,,,,,
Nottinghamshire County Council,1111/1001,Adult Social Care and Health,ASCH,Third Party Payments,ECA,14/08/2013,05-10977,598.4,Countrywide Care Homes Ltd T/A Clum,y,,,,,,,,,,
Nottinghamshire County Council,1111/1001,Adult Social Care and Health,ASCH,Third Party Payments,ECA,14/08/2013,05-10978,439.16,Countrywide Care Homes Ltd T/A Clum,y,,,,,,,,,,
Nottinghamshire County Council,1111/1001,Adult Social Care and Health,ASCH,Third Party Payments,ECA,14/08/2013,05-10979,439.16,Countrywide Care Homes Ltd T/A Clum,y,,,,,,,,,,
Nottinghamshire County Council,1111/1001,Adult Social Care and Health,ASCH,Third Party Payments,ECA,14/08/2013,05-10980,439.16,Countrywide Care Homes Ltd T/A Clum,y,,,,,,,,,,
Nottinghamshire County Council,1111/1001,Adult Social Care and Health,ASCH,Third Party Payments,ECA,14/08/2013,05-10982,439.16,Countrywide Care Homes Ltd T/A Clum,y,,,,,,,,,,
Nottinghamshire County Council,1111/1001,Adult Social Care and Health,ASCH,Third Party Payments,ECA,14/08/2013,05-10983,439.16,Countrywide Care Homes Ltd T/A Clum,y,,,,,,,,,,
Nottinghamshire County Council,1111/1001,Adult Social Care and Health,ASCH,Third Party Payments,ECA,14/08/2013,05-10989,439.16,Landermeads Nursing Home,y,,,,,,,,,,
Nottinghamshire County Council,1111/1001,Adult Social Care and Health,ASCH,Third Party Payments,ECA,14/08/2013,05-10991,439.16,Landermeads Nursing Home,y,,,,,,,,,,
Nottinghamshire County Council,1111/1001,Adult Social Care and Health,ASCH,Third Party Payments,ECA,14/08/2013,05-10992,439.16,Landermeads Nursing Home,y,,,,,,,,,,
Nottinghamshire County Council,1111/1001,Adult Social Care and Health,ASCH,Third Party Payments,ECA,14/08/2013,05-10993,439.16,Landermeads Nursing Home,y,,,,,,,,,,
Nottinghamshire County Council,1111/1001,Adult Social Care and Health,ASCH,Third Party Payments,ECA,14/08/2013,05-10994,439.16,Landermeads Nursing Home,y,,,,,,,,,,
Nottinghamshire County Council,1111/1001,Adult Social Care and Health,ASCH,Third Party Payments,ECA,14/08/2013,05-10995,439.16,Landermeads Nursing Home,y,,,,,,,,,,
Nottinghamshire County Council,1111/1001,Adult Social Care and Health,ASCH,Third Party Payments,ECA,14/08/2013,05-10996,439.16,Landermeads Nursing Home,y,,,,,,,,,,
Nottinghamshire County Council,1111/1001,Adult Social Care and Health,ASCH,Third Party Payments,ECA,14/08/2013,05-10997,439.16,Landermeads Nursing Home,y,,,,,,,,,,
Nottinghamshire County Council,1111/1001,Adult Social Care and Health,ASCH,Third Party Payments,ECA,14/08/2013,05-10998,439.16,Landermeads Nursing Home,y,,,,,,,,,,
Nottinghamshire County Council,1111/1001,Adult Social Care and Health,ASCH,Third Party Payments,ECA,14/08/2013,05-10999,439.16,Landermeads Nursing Home,y,,,,,,,,,,
Nottinghamshire County Council,1111/1001,Adult Social Care and Health,ASCH,Third Party Payments,ECA,14/08/2013,05-11000,439.16,Landermeads Nursing Home,y,,,,,,,,,,
Nottinghamshire County Council,1111/1001,Adult Social Care and Health,ASCH,Third Party Payments,ECA,14/08/2013,05-11001,598.4,Landermeads Nursing Home,y,,,,,,,,,,
Nottinghamshire County Council,1111/1001,Adult Social Care and Health,ASCH,Third Party Payments,ECA,14/08/2013,05-11002,604.4,Landermeads Nursing Home,y,,,,,,,,,,
Nottinghamshire County Council,1111/1001,Adult Social Care and Health,ASCH,Third Party Payments,ECA,14/08/2013,05-11004,439.16,Landermeads Nursing Home,y,,,,,,,,,,
Nottinghamshire County Council,1111/1001,Adult Social Care and Health,ASCH,Third Party Payments,ECA,14/08/2013,05-11005,423.48,Landermeads Nursing Home,y,,,,,,,,,,
Nottinghamshire County Council,1111/1001,Adult Social Care and Health,ASCH,Third Party Payments,ECA,14/08/2013,05-11006,439.16,Landermeads Nursing Home,y,,,,,,,,,,
Nottinghamshire County Council,1111/1001,Adult Social Care and Health,ASCH,Third Party Payments,ECA,14/08/2013,05-11007,439.16,Landermeads Nursing Home,y,,,,,,,,,,
Nottinghamshire County Council,1111/1001,Adult Social Care and Health,ASCH,Third Party Payments,ECA,14/08/2013,05-11009,439.16,Landermeads Nursing Home,y,,,,,,,,,,
Nottinghamshire County Council,1111/1001,Adult Social Care and Health,ASCH,Third Party Payments,ECA,14/08/2013,05-11010,439.16,Landermeads Nursing Home,y,,,,,,,,,,
Nottinghamshire County Council,1111/1001,Adult Social Care and Health,ASCH,Third Party Payments,ECA,14/08/2013,05-11013,439.16,Landermeads Nursing Home,y,,,,,,,,,,
Nottinghamshire County Council,1111/1001,Adult Social Care and Health,ASCH,Third Party Payments,ECA,14/08/2013,05-11014,3875.06,Landermeads Nursing Home,y,,,,,,,,,,
Nottinghamshire County Council,1111/1001,Adult Social Care and Health,ASCH,Third Party Payments,ECA,14/08/2013,05-11015,439.16,Landermeads Nursing Home,y,,,,,,,,,,
Nottinghamshire County Council,1111/1001,Adult Social Care and Health,ASCH,Third Party Payments,ECA,14/08/2013,05-11016,439.16,Landermeads Nursing Home,y,,,,,,,,,,
Nottinghamshire County Council,1111/1001,Adult Social Care and Health,ASCH,Third Party Payments,ECA,14/08/2013,05-11060,439.16,Highfields Nursing Home,y,,,,,,,,,,
Nottinghamshire County Council,1111/1001,Adult Social Care and Health,ASCH,Third Party Payments,ECA,14/08/2013,05-11061,439.16,Highfields Nursing Home,y,,,,,,,,,,
Nottinghamshire County Council,1111/1001,Adult Social Care and Health,ASCH,Third Party Payments,ECA,14/08/2013,05-11062,439.16,Highfields Nursing Home,y,,,,,,,,,,
Nottinghamshire County Council,1111/1001,Adult Social Care and Health,ASCH,Third Party Payments,ECA,14/08/2013,05-11063,439.16,Highfields Nursing Home,y,,,,,,,,,,
Nottinghamshire County Council,1111/1001,Adult Social Care and Health,ASCH,Third Party Payments,ECA,14/08/2013,05-11064,439.16,Highfields Nursing Home,y,,,,,,,,,,
Nottinghamshire County Council,1111/1001,Adult Social Care and Health,ASCH,Third Party Payments,ECA,14/08/2013,05-11096,439.16,Albemarle Hall Nursing Home,y,,,,,,,,,,
Nottinghamshire County Council,1111/1001,Adult Social Care and Health,ASCH,Third Party Payments,ECA,14/08/2013,05-11098,439.16,Albemarle Hall Nursing Home,y,,,,,,,,,,
Nottinghamshire County Council,1111/1001,Adult Social Care and Health,ASCH,Third Party Payments,ECA,14/08/2013,05-11099,439.16,Albemarle Hall Nursing Home,y,,,,,,,,,,
Nottinghamshire County Council,1111/1001,Adult Social Care and Health,ASCH,Third Party Payments,ECA,14/08/2013,05-11102,439.16,Albemarle Hall Nursing Home,y,,,,,,,,,,
Nottinghamshire County Council,1111/1001,Adult Social Care and Health,ASCH,Third Party Payments,ECA,14/08/2013,05-11106,439.16,Alexandra House Nursing Home,y,,,,,,,,,,
Nottinghamshire County Council,1111/1001,Adult Social Care and Health,ASCH,Third Party Payments,ECA,14/08/2013,05-11107,439.16,Alexandra House Nursing Home,y,,,,,,,,,,
Nottinghamshire County Council,1111/1001,Adult Social Care and Health,ASCH,Third Party Payments,ECA,14/08/2013,05-11108,439.16,Alexandra House Nursing Home,y,,,,,,,,,,
Nottinghamshire County Council,1111/1001,Adult Social Care and Health,ASCH,Third Party Payments,ECA,14/08/2013,05-11110,439.16,Alexandra House Nursing Home,y,,,,,,,,,,
Nottinghamshire County Council,1111/1001,Adult Social Care and Health,ASCH,Third Party Payments,ECA,14/08/2013,05-11112,439.16,Alexandra House Nursing Home,y,,,,,,,,,,
Nottinghamshire County Council,1111/1001,Adult Social Care and Health,ASCH,Third Party Payments,ECA,14/08/2013,05-11114,439.16,Alexandra House Nursing Home,y,,,,,,,,,,
Nottinghamshire County Council,1111/1001,Adult Social Care and Health,ASCH,Third Party Payments,ECA,14/08/2013,05-11115,439.16,Alexandra House Nursing Home,y,,,,,,,,,,
Nottinghamshire County Council,1111/1001,Adult Social Care and Health,ASCH,Third Party Payments,ECA,14/08/2013,05-11116,439.16,Alexandra House Nursing Home,y,,,,,,,,,,
Nottinghamshire County Council,1111/1001,Adult Social Care and Health,ASCH,Third Party Payments,ECA,14/08/2013,05-11118,439.16,Lawn Park Nursing Home,y,,,,,,,,,,
Nottinghamshire County Council,1111/1001,Adult Social Care and Health,ASCH,Third Party Payments,ECA,14/08/2013,05-11119,439.16,Lawn Park Nursing Home,y,,,,,,,,,,
Nottinghamshire County Council,1111/1001,Adult Social Care and Health,ASCH,Third Party Payments,ECA,14/08/2013,05-11120,434.8,Lawn Park Nursing Home,y,,,,,,,,,,
Nottinghamshire County Council,1111/1001,Adult Social Care and Health,ASCH,Third Party Payments,ECA,14/08/2013,05-11122,439.16,Lawn Park Nursing Home,y,,,,,,,,,,
Nottinghamshire County Council,1111/1001,Adult Social Care and Health,ASCH,Third Party Payments,ECA,14/08/2013,05-11124,439.16,Lawn Park Nursing Home,y,,,,,,,,,,
Nottinghamshire County Council,1111/1001,Adult Social Care and Health,ASCH,Third Party Payments,ECA,14/08/2013,05-11127,439.16,Lawn Park Nursing Home,y,,,,,,,,,,
Nottinghamshire County Council,1111/1001,Adult Social Care and Health,ASCH,Third Party Payments,ECA,14/08/2013,05-11128,439.16,Lawn Park Nursing Home,y,,,,,,,,,,
Nottinghamshire County Council,1111/1001,Adult Social Care and Health,ASCH,Third Party Payments,ECA,14/08/2013,05-11131,439.16,Lawn Park Nursing Home,y,,,,,,,,,,
Nottinghamshire County Council,1111/1001,Adult Social Care and Health,ASCH,Third Party Payments,ECA,14/08/2013,05-11134,439.16,Lawn Park Nursing Home,y,,,,,,,,,,
Nottinghamshire County Council,1111/1001,Adult Social Care and Health,ASCH,Third Party Payments,ECA,14/08/2013,05-11135,439.16,Lawn Park Nursing Home,y,,,,,,,,,,
Nottinghamshire County Council,1111/1001,Adult Social Care and Health,ASCH,Third Party Payments,ECA,14/08/2013,05-11136,439.16,Lawn Park Nursing Home,y,,,,,,,,,,
Nottinghamshire County Council,1111/1001,Adult Social Care and Health,ASCH,Third Party Payments,ECA,14/08/2013,05-11137,439.16,Lawn Park Nursing Home,y,,,,,,,,,,
Nottinghamshire County Council,1111/1001,Adult Social Care and Health,ASCH,Third Party Payments,ECA,14/08/2013,05-11141,439.16,Lawn Park Nursing Home,y,,,,,,,,,,
Nottinghamshire County Council,1111/1001,Adult Social Care and Health,ASCH,Third Party Payments,ECA,14/08/2013,05-11144,439.16,Lawn Park Nursing Home,y,,,,,,,,,,
Nottinghamshire County Council,1111/1001,Adult Social Care and Health,ASCH,Third Party Payments,ECA,14/08/2013,05-11146,1411.59,Lawn Park Nursing Home,y,,,,,,,,,,
Nottinghamshire County Council,1111/1001,Adult Social Care and Health,ASCH,Third Party Payments,ECA,14/08/2013,05-11148,439.16,Eliot House,y,,,,,,,,,,
Nottinghamshire County Council,1111/1001,Adult Social Care and Health,ASCH,Third Party Payments,ECA,14/08/2013,05-11149,446.28,Eliot House,y,,,,,,,,,,
Nottinghamshire County Council,1111/1001,Adult Social Care and Health,ASCH,Third Party Payments,ECA,14/08/2013,05-11170,439.16,Ashley House Nursing Home,y,,,,,,,,,,
Nottinghamshire County Council,1111/1001,Adult Social Care and Health,ASCH,Third Party Payments,ECA,14/08/2013,05-11171,439.16,Ashley House Nursing Home,y,,,,,,,,,,
Nottinghamshire County Council,1111/1001,Adult Social Care and Health,ASCH,Third Party Payments,ECA,14/08/2013,05-11172,598.4,Ashley House Nursing Home,y,,,,,,,,,,
Nottinghamshire County Council,1111/1001,Adult Social Care and Health,ASCH,Third Party Payments,ECA,14/08/2013,05-11173,439.16,Ashley House Nursing Home,y,,,,,,,,,,
Nottinghamshire County Council,1111/1001,Adult Social Care and Health,ASCH,Third Party Payments,ECA,14/08/2013,05-11175,439.16,Ashley House Nursing Home,y,,,,,,,,,,
Nottinghamshire County Council,1111/1001,Adult Social Care and Health,ASCH,Third Party Payments,ECA,14/08/2013,05-11177,439.16,Ashley House Nursing Home,y,,,,,,,,,,
Nottinghamshire County Council,1111/1001,Adult Social Care and Health,ASCH,Third Party Payments,ECA,14/08/2013,05-11178,439.16,Ashley House Nursing Home,y,,,,,,,,,,
Nottinghamshire County Council,1111/1001,Adult Social Care and Health,ASCH,Third Party Payments,ECA,14/08/2013,05-11179,439.16,Ashley House Nursing Home,y,,,,,,,,,,
Nottinghamshire County Council,1111/1001,Adult Social Care and Health,ASCH,Third Party Payments,ECA,14/08/2013,05-11180,598.4,Ashley House Nursing Home,y,,,,,,,,,,
Nottinghamshire County Council,1111/1001,Adult Social Care and Health,ASCH,Third Party Payments,ECA,14/08/2013,05-11181,598.4,Ashley House Nursing Home,y,,,,,,,,,,
Nottinghamshire County Council,1111/1001,Adult Social Care and Health,ASCH,Third Party Payments,ECA,14/08/2013,05-11182,439.16,Ashley House Nursing Home,y,,,,,,,,,,
Nottinghamshire County Council,1111/1001,Adult Social Care and Health,ASCH,Third Party Payments,ECA,14/08/2013,05-11183,439.16,Ashley House Nursing Home,y,,,,,,,,,,
Nottinghamshire County Council,1111/1001,Adult Social Care and Health,ASCH,Third Party Payments,ECA,14/08/2013,05-11184,439.16,Ashley House Nursing Home,y,,,,,,,,,,
Nottinghamshire County Council,1111/1001,Adult Social Care and Health,ASCH,Third Party Payments,ECA,14/08/2013,05-11185,439.16,Ashley House Nursing Home,y,,,,,,,,,,
Nottinghamshire County Council,1111/1001,Adult Social Care and Health,ASCH,Third Party Payments,ECA,14/08/2013,05-11186,439.16,Ashley House Nursing Home,y,,,,,,,,,,
Nottinghamshire County Council,1111/1001,Adult Social Care and Health,ASCH,Third Party Payments,ECA,14/08/2013,05-11187,439.16,Ashley House Nursing Home,y,,,,,,,,,,
Nottinghamshire County Council,1111/1001,Adult Social Care and Health,ASCH,Third Party Payments,ECA,14/08/2013,05-11188,598.4,Ashley House Nursing Home,y,,,,,,,,,,
Nottinghamshire County Council,1111/1001,Adult Social Care and Health,ASCH,Third Party Payments,ECA,14/08/2013,05-11190,1192.01,Ashley House Nursing Home,y,,,,,,,,,,
Nottinghamshire County Council,1111/1001,Adult Social Care and Health,ASCH,Third Party Payments,ECA,14/08/2013,05-11192,439.16,Aslockton Hall Nursing Home,y,,,,,,,,,,
Nottinghamshire County Council,1111/1001,Adult Social Care and Health,ASCH,Third Party Payments,ECA,14/08/2013,05-11194,439.16,Aslockton Hall Nursing Home,y,,,,,,,,,,
Nottinghamshire County Council,1111/1001,Adult Social Care and Health,ASCH,Third Party Payments,ECA,14/08/2013,05-11195,439.16,Aslockton Hall Nursing Home,y,,,,,,,,,,
Nottinghamshire County Council,1111/1001,Adult Social Care and Health,ASCH,Third Party Payments,ECA,14/08/2013,05-11196,439.16,Aslockton Hall Nursing Home,y,,,,,,,,,,
Nottinghamshire County Council,1111/1001,Adult Social Care and Health,ASCH,Third Party Payments,ECA,14/08/2013,05-11197,439.16,Aslockton Hall Nursing Home,y,,,,,,,,,,
Nottinghamshire County Council,1111/1001,Adult Social Care and Health,ASCH,Third Party Payments,ECA,14/08/2013,05-11199,439.16,Aslockton Hall Nursing Home,y,,,,,,,,,,
Nottinghamshire County Council,1111/1001,Adult Social Care and Health,ASCH,Third Party Payments,ECA,14/08/2013,05-11200,439.16,Aslockton Hall Nursing Home,y,,,,,,,,,,
Nottinghamshire County Council,1111/1001,Adult Social Care and Health,ASCH,Third Party Payments,ECA,14/08/2013,05-11210,439.16,Pinxton Manor,y,,,,,,,,,,
Nottinghamshire County Council,1111/1001,Adult Social Care and Health,ASCH,Third Party Payments,ECA,14/08/2013,05-11211,439.16,Rodenvine Nottm Ltd T/A Parker Hous,y,,,,,,,,,,
Nottinghamshire County Council,1111/1001,Adult Social Care and Health,ASCH,Third Party Payments,ECA,14/08/2013,05-11212,439.16,Rodenvine Nottm Ltd T/A Parker Hous,y,,,,,,,,,,
Nottinghamshire County Council,1111/1001,Adult Social Care and Health,ASCH,Third Party Payments,ECA,14/08/2013,05-11214,439.16,Rodenvine Nottm Ltd T/A Parker Hous,y,,,,,,,,,,
Nottinghamshire County Council,1111/1001,Adult Social Care and Health,ASCH,Third Party Payments,ECA,14/08/2013,05-11216,439.16,Rodenvine Nottm Ltd T/A Parker Hous,y,,,,,,,,,,
Nottinghamshire County Council,1111/1001,Adult Social Care and Health,ASCH,Third Party Payments,ECA,14/08/2013,05-11219,439.16,Rodenvine Nottm Ltd T/A Parker Hous,y,,,,,,,,,,
Nottinghamshire County Council,1111/1001,Adult Social Care and Health,ASCH,Third Party Payments,ECA,14/08/2013,05-11220,439.16,Gables Nursing Home,y,,,,,,,,,,
Nottinghamshire County Council,1111/1001,Adult Social Care and Health,ASCH,Third Party Payments,ECA,14/08/2013,05-11221,439.16,Gables Nursing Home,y,,,,,,,,,,
Nottinghamshire County Council,1111/1001,Adult Social Care and Health,ASCH,Third Party Payments,ECA,14/08/2013,05-11222,439.16,Gables Nursing Home,y,,,,,,,,,,
Nottinghamshire County Council,1111/1001,Adult Social Care and Health,ASCH,Third Party Payments,ECA,14/08/2013,05-11223,439.16,Gables Nursing Home,y,,,,,,,,,,
Nottinghamshire County Council,1111/1001,Adult Social Care and Health,ASCH,Third Party Payments,ECA,14/08/2013,05-11224,439.16,Gables Nursing Home,y,,,,,,,,,,
Nottinghamshire County Council,1111/1001,Adult Social Care and Health,ASCH,Third Party Payments,ECA,14/08/2013,05-11225,439.16,Gables Nursing Home,y,,,,,,,,,,
Nottinghamshire County Council,1111/1001,Adult Social Care and Health,ASCH,Third Party Payments,ECA,14/08/2013,05-11248,439.16,Forest Hill Nursing Home,y,,,,,,,,,,
Nottinghamshire County Council,1111/1001,Adult Social Care and Health,ASCH,Third Party Payments,ECA,14/08/2013,05-11249,439.16,Forest Hill Nursing Home,y,,,,,,,,,,
Nottinghamshire County Council,1111/1001,Adult Social Care and Health,ASCH,Third Party Payments,ECA,14/08/2013,05-11250,439.16,Forest Hill Nursing Home,y,,,,,,,,,,
Nottinghamshire County Council,1111/1001,Adult Social Care and Health,ASCH,Third Party Payments,ECA,14/08/2013,05-11251,439.16,Forest Hill Nursing Home,y,,,,,,,,,,
Nottinghamshire County Council,1111/1001,Adult Social Care and Health,ASCH,Third Party Payments,ECA,14/08/2013,05-11252,439.16,Forest Hill Nursing Home,y,,,,,,,,,,
Nottinghamshire County Council,1111/1001,Adult Social Care and Health,ASCH,Third Party Payments,ECA,14/08/2013,05-11253,4247.75,Forest Hill Nursing Home,y,,,,,,,,,,
Nottinghamshire County Council,1111/1001,Adult Social Care and Health,ASCH,Third Party Payments,ECA,14/08/2013,05-11254,768.53,Forest Hill Nursing Home,y,,,,,,,,,,
Nottinghamshire County Council,1111/1001,Adult Social Care and Health,ASCH,Third Party Payments,ECA,14/08/2013,05-11255,439.16,Forest Hill Nursing Home,y,,,,,,,,,,
Nottinghamshire County Council,1111/1001,Adult Social Care and Health,ASCH,Third Party Payments,ECA,14/08/2013,05-11256,439.16,Forest Hill Nursing Home,y,,,,,,,,,,
Nottinghamshire County Council,1111/1001,Adult Social Care and Health,ASCH,Third Party Payments,ECA,14/08/2013,05-11257,439.16,Forest Hill Nursing Home,y,,,,,,,,,,
Nottinghamshire County Council,1111/1001,Adult Social Care and Health,ASCH,Third Party Payments,ECA,14/08/2013,05-11258,439.16,Forest Hill Nursing Home,y,,,,,,,,,,
Nottinghamshire County Council,1111/1001,Adult Social Care and Health,ASCH,Third Party Payments,ECA,14/08/2013,05-11259,439.16,Forest Hill Nursing Home,y,,,,,,,,,,
Nottinghamshire County Council,1111/1001,Adult Social Care and Health,ASCH,Third Party Payments,ECA,14/08/2013,05-11260,439.16,Forest Hill Nursing Home,y,,,,,,,,,,
Nottinghamshire County Council,1111/1001,Adult Social Care and Health,ASCH,Third Party Payments,ECA,14/08/2013,05-11261,439.16,Forest Hill Nursing Home,y,,,,,,,,,,
Nottinghamshire County Council,1111/1001,Adult Social Care and Health,ASCH,Third Party Payments,ECA,14/08/2013,05-11262,439.16,Forest Hill Nursing Home,y,,,,,,,,,,
Nottinghamshire County Council,1111/1001,Adult Social Care and Health,ASCH,Third Party Payments,ECA,14/08/2013,05-11263,439.16,Forest Hill Nursing Home,y,,,,,,,,,,
Nottinghamshire County Council,1111/1001,Adult Social Care and Health,ASCH,Third Party Payments,ECA,14/08/2013,05-11264,439.16,Forest Hill Nursing Home,y,,,,,,,,,,
Nottinghamshire County Council,1111/1001,Adult Social Care and Health,ASCH,Third Party Payments,ECA,14/08/2013,05-11265,439.16,Forest Hill Nursing Home,y,,,,,,,,,,
Nottinghamshire County Council,1111/1001,Adult Social Care and Health,ASCH,Third Party Payments,ECA,14/08/2013,05-11266,439.16,Forest Hill Nursing Home,y,,,,,,,,,,
Nottinghamshire County Council,1111/1001,Adult Social Care and Health,ASCH,Third Party Payments,ECA,14/08/2013,05-11267,439.16,Forest Hill Nursing Home,y,,,,,,,,,,
Nottinghamshire County Council,1111/1001,Adult Social Care and Health,ASCH,Third Party Payments,ECA,14/08/2013,05-11275,439.16,Woodhall Park Nursing Home,y,,,,,,,,,,
Nottinghamshire County Council,1111/1001,Adult Social Care and Health,ASCH,Third Party Payments,ECA,14/08/2013,05-11276,439.16,Woodthorpe Manor Nursing Home,y,,,,,,,,,,
Nottinghamshire County Council,1111/1001,Adult Social Care and Health,ASCH,Third Party Payments,ECA,14/08/2013,05-11277,439.16,Woodthorpe Manor Nursing Home,y,,,,,,,,,,
Nottinghamshire County Council,1111/1001,Adult Social Care and Health,ASCH,Third Party Payments,ECA,14/08/2013,05-11278,439.16,Woodthorpe Manor Nursing Home,y,,,,,,,,,,
Nottinghamshire County Council,1111/1001,Adult Social Care and Health,ASCH,Third Party Payments,ECA,14/08/2013,05-11279,439.16,Woodthorpe Manor Nursing Home,y,,,,,,,,,,
Nottinghamshire County Council,1111/1001,Adult Social Care and Health,ASCH,Third Party Payments,ECA,14/08/2013,05-11280,439.16,Woodthorpe Manor Nursing Home,y,,,,,,,,,,
Nottinghamshire County Council,1111/1001,Adult Social Care and Health,ASCH,Third Party Payments,ECA,14/08/2013,05-11296,439.16,Burkitt Care Home,y,,,,,,,,,,
Nottinghamshire County Council,1111/1001,Adult Social Care and Health,ASCH,Third Party Payments,ECA,14/08/2013,05-11298,439.16,Burkitt Care Home,y,,,,,,,,,,
Nottinghamshire County Council,1111/1001,Adult Social Care and Health,ASCH,Third Party Payments,ECA,14/08/2013,05-11299,439.16,Burkitt Care Home,y,,,,,,,,,,
Nottinghamshire County Council,1111/1001,Adult Social Care and Health,ASCH,Third Party Payments,ECA,14/08/2013,05-11300,439.16,Burkitt Care Home,y,,,,,,,,,,
Nottinghamshire County Council,1111/1001,Adult Social Care and Health,ASCH,Third Party Payments,ECA,14/08/2013,05-11301,1803.69,Burkitt Care Home,y,,,,,,,,,,
Nottinghamshire County Council,1111/1001,Adult Social Care and Health,ASCH,Third Party Payments,ECA,14/08/2013,05-11302,439.16,Burkitt Care Home,y,,,,,,,,,,
Nottinghamshire County Council,1111/1001,Adult Social Care and Health,ASCH,Third Party Payments,ECA,14/08/2013,05-11303,439.16,Burkitt Care Home,y,,,,,,,,,,
Nottinghamshire County Council,1111/1001,Adult Social Care and Health,ASCH,Third Party Payments,ECA,14/08/2013,05-11304,439.16,Burkitt Care Home,y,,,,,,,,,,
Nottinghamshire County Council,1111/1001,Adult Social Care and Health,ASCH,Third Party Payments,ECA,14/08/2013,05-11305,439.16,Burkitt Care Home,y,,,,,,,,,,
Nottinghamshire County Council,1111/1001,Adult Social Care and Health,ASCH,Third Party Payments,ECA,14/08/2013,05-11307,439.16,Burkitt Care Home,y,,,,,,,,,,
Nottinghamshire County Council,1111/1001,Adult Social Care and Health,ASCH,Third Party Payments,ECA,14/08/2013,05-11308,1832.38,Burkitt Care Home,y,,,,,,,,,,
Nottinghamshire County Council,1111/1001,Adult Social Care and Health,ASCH,Third Party Payments,ECA,14/08/2013,05-11327,439.16,Church Farm Nursing Home Ltd,y,,,,,,,,,,
Nottinghamshire County Council,1111/1001,Adult Social Care and Health,ASCH,Third Party Payments,ECA,14/08/2013,05-11328,439.16,Church Farm Nursing Home Ltd,y,,,,,,,,,,
Nottinghamshire County Council,1111/1001,Adult Social Care and Health,ASCH,Third Party Payments,ECA,14/08/2013,05-11329,439.16,Church Farm Nursing Home Ltd,y,,,,,,,,,,
Nottinghamshire County Council,1111/1001,Adult Social Care and Health,ASCH,Third Party Payments,ECA,14/08/2013,05-11330,439.16,Church Farm Nursing Home Ltd,y,,,,,,,,,,
Nottinghamshire County Council,1111/1001,Adult Social Care and Health,ASCH,Third Party Payments,ECA,14/08/2013,05-11331,439.16,Church Farm Nursing Home Ltd,y,,,,,,,,,,
Nottinghamshire County Council,1111/1001,Adult Social Care and Health,ASCH,Third Party Payments,ECA,14/08/2013,05-11332,2054.64,Church Farm Nursing Home Ltd,y,,,,,,,,,,
Nottinghamshire County Council,1111/1001,Adult Social Care and Health,ASCH,Third Party Payments,ECA,14/08/2013,05-11334,8083.31,Church Farm Nursing Home Ltd,y,,,,,,,,,,
Nottinghamshire County Council,1111/1001,Adult Social Care and Health,ASCH,Third Party Payments,ECA,14/08/2013,05-11335,439.16,Church Farm Nursing Home Ltd,y,,,,,,,,,,
Nottinghamshire County Council,1111/1001,Adult Social Care and Health,ASCH,Third Party Payments,ECA,14/08/2013,05-11336,439.16,Church Farm Nursing Home Ltd,y,,,,,,,,,,
Nottinghamshire County Council,1111/1001,Adult Social Care and Health,ASCH,Third Party Payments,ECA,14/08/2013,05-11337,439.16,Church Farm Nursing Home Ltd,y,,,,,,,,,,
Nottinghamshire County Council,1111/1001,Adult Social Care and Health,ASCH,Third Party Payments,ECA,14/08/2013,05-11338,439.16,Church Farm Nursing Home Ltd,y,,,,,,,,,,
Nottinghamshire County Council,1111/1001,Adult Social Care and Health,ASCH,Third Party Payments,ECA,14/08/2013,05-11339,439.16,Church Farm Nursing Home Ltd,y,,,,,,,,,,
Nottinghamshire County Council,1111/1001,Adult Social Care and Health,ASCH,Third Party Payments,ECA,14/08/2013,05-11341,439.16,Countrywide Care Homes Ltd T/A Gate,y,,,,,,,,,,
Nottinghamshire County Council,1111/1001,Adult Social Care and Health,ASCH,Third Party Payments,ECA,14/08/2013,05-11343,439.16,Countrywide Care Homes Ltd T/A Gate,y,,,,,,,,,,
Nottinghamshire County Council,1111/1001,Adult Social Care and Health,ASCH,Third Party Payments,ECA,14/08/2013,05-11345,598.4,Countrywide Care Homes Ltd T/A Gate,y,,,,,,,,,,
Nottinghamshire County Council,1111/1001,Adult Social Care and Health,ASCH,Third Party Payments,ECA,14/08/2013,05-11348,439.16,Countrywide Care Homes Ltd T/A Gate,y,,,,,,,,,,
Nottinghamshire County Council,1111/1001,Adult Social Care and Health,ASCH,Third Party Payments,ECA,14/08/2013,05-11349,203.9,Countrywide Care Homes Ltd T/A Gate,y,,,,,,,,,,
Nottinghamshire County Council,1111/1001,Adult Social Care and Health,ASCH,Third Party Payments,ECA,14/08/2013,05-11350,439.16,Countrywide Care Homes Ltd T/A Gate,y,,,,,,,,,,
Nottinghamshire County Council,1111/1001,Adult Social Care and Health,ASCH,Third Party Payments,ECA,14/08/2013,05-11351,439.16,Countrywide Care Homes Ltd T/A Gate,y,,,,,,,,,,
Nottinghamshire County Council,1111/1001,Adult Social Care and Health,ASCH,Third Party Payments,ECA,14/08/2013,05-11356,439.16,Countrywide Care Homes Ltd T/A Gate,y,,,,,,,,,,
Nottinghamshire County Council,1111/1001,Adult Social Care and Health,ASCH,Third Party Payments,ECA,14/08/2013,05-11358,439.16,Countrywide Care Homes Ltd T/A Gate,y,,,,,,,,,,
Nottinghamshire County Council,1111/1001,Adult Social Care and Health,ASCH,Third Party Payments,ECA,14/08/2013,05-11360,598.4,Countrywide Care Homes Ltd T/A Gate,y,,,,,,,,,,
Nottinghamshire County Council,1111/1001,Adult Social Care and Health,ASCH,Third Party Payments,ECA,14/08/2013,05-11361,768.53,Countrywide Care Homes Ltd T/A Gate,y,,,,,,,,,,
Nottinghamshire County Council,1111/1001,Adult Social Care and Health,ASCH,Third Party Payments,ECA,14/08/2013,05-11363,439.16,Countrywide Care Homes Ltd T/A Gate,y,,,,,,,,,,
Nottinghamshire County Council,1111/1001,Adult Social Care and Health,ASCH,Third Party Payments,ECA,14/08/2013,05-11367,439.16,Countrywide Care Homes Ltd T/A Gate,y,,,,,,,,,,
Nottinghamshire County Council,1111/1001,Adult Social Care and Health,ASCH,Third Party Payments,ECA,14/08/2013,05-11369,439.16,Countrywide Care Homes Ltd T/A Gate,y,,,,,,,,,,
Nottinghamshire County Council,1111/1001,Adult Social Care and Health,ASCH,Third Party Payments,ECA,14/08/2013,05-11370,439.16,Countrywide Care Homes Ltd T/A Gate,y,,,,,,,,,,
Nottinghamshire County Council,1111/1001,Adult Social Care and Health,ASCH,Third Party Payments,ECA,14/08/2013,05-11371,815.58,Countrywide Care Homes Ltd T/A Gate,y,,,,,,,,,,
Nottinghamshire County Council,1111/1001,Adult Social Care and Health,ASCH,Third Party Payments,ECA,14/08/2013,05-11372,439.16,Countrywide Care Homes Ltd T/A Gate,y,,,,,,,,,,
Nottinghamshire County Council,1111/1001,Adult Social Care and Health,ASCH,Third Party Payments,ECA,14/08/2013,05-11375,439.16,Countrywide Care Homes Ltd T/A Gate,y,,,,,,,,,,
Nottinghamshire County Council,1111/1001,Adult Social Care and Health,ASCH,Third Party Payments,ECA,14/08/2013,05-11377,439.16,Countrywide Care Homes Ltd T/A Gate,y,,,,,,,,,,
Nottinghamshire County Council,1111/1001,Adult Social Care and Health,ASCH,Third Party Payments,ECA,14/08/2013,05-11385,439.16,Red Rose Nursing Home,y,,,,,,,,,,
Nottinghamshire County Council,1111/1001,Adult Social Care and Health,ASCH,Third Party Payments,ECA,14/08/2013,05-11388,439.16,Red Rose Nursing Home,y,,,,,,,,,,
Nottinghamshire County Council,1111/1001,Adult Social Care and Health,ASCH,Third Party Payments,ECA,14/08/2013,05-11389,439.16,Red Rose Nursing Home,y,,,,,,,,,,
Nottinghamshire County Council,1111/1001,Adult Social Care and Health,ASCH,Third Party Payments,ECA,14/08/2013,05-11390,737.16,Red Rose Nursing Home,y,,,,,,,,,,
Nottinghamshire County Council,1111/1001,Adult Social Care and Health,ASCH,Third Party Payments,ECA,14/08/2013,05-11391,439.16,Red Rose Nursing Home,y,,,,,,,,,,
Nottinghamshire County Council,1111/1001,Adult Social Care and Health,ASCH,Third Party Payments,ECA,14/08/2013,05-11393,439.16,Red Rose Nursing Home,y,,,,,,,,,,
Nottinghamshire County Council,1111/1001,Adult Social Care and Health,ASCH,Third Party Payments,ECA,14/08/2013,05-11394,439.16,Red Rose Nursing Home,y,,,,,,,,,,
Nottinghamshire County Council,1111/1001,Adult Social Care and Health,ASCH,Third Party Payments,ECA,14/08/2013,05-11415,439.16,Wren Hall Nursing Home,y,,,,,,,,,,
Nottinghamshire County Council,1111/1001,Adult Social Care and Health,ASCH,Third Party Payments,ECA,14/08/2013,05-11416,439.16,Wren Hall Nursing Home,y,,,,,,,,,,
Nottinghamshire County Council,1111/1001,Adult Social Care and Health,ASCH,Third Party Payments,ECA,14/08/2013,05-11419,439.16,Wren Hall Nursing Home,y,,,,,,,,,,
Nottinghamshire County Council,1111/1001,Adult Social Care and Health,ASCH,Third Party Payments,ECA,14/08/2013,05-11420,439.16,Wren Hall Nursing Home,y,,,,,,,,,,
Nottinghamshire County Council,1111/1001,Adult Social Care and Health,ASCH,Third Party Payments,ECA,14/08/2013,05-11421,439.16,Wren Hall Nursing Home,y,,,,,,,,,,
Nottinghamshire County Council,1111/1001,Adult Social Care and Health,ASCH,Third Party Payments,ECA,14/08/2013,05-11422,439.16,Wren Hall Nursing Home,y,,,,,,,,,,
Nottinghamshire County Council,1111/1001,Adult Social Care and Health,ASCH,Third Party Payments,ECA,14/08/2013,05-11423,439.16,Wren Hall Nursing Home,y,,,,,,,,,,
Nottinghamshire County Council,1111/1001,Adult Social Care and Health,ASCH,Third Party Payments,ECA,14/08/2013,05-11424,439.16,Wren Hall Nursing Home,y,,,,,,,,,,
Nottinghamshire County Council,1111/1001,Adult Social Care and Health,ASCH,Third Party Payments,ECA,14/08/2013,05-11425,439.16,Wren Hall Nursing Home,y,,,,,,,,,,
Nottinghamshire County Council,1111/1001,Adult Social Care and Health,ASCH,Third Party Payments,ECA,14/08/2013,05-11426,439.16,Wren Hall Nursing Home,y,,,,,,,,,,
Nottinghamshire County Council,1111/1001,Adult Social Care and Health,ASCH,Third Party Payments,ECA,14/08/2013,05-11459,439.16,The Grange Nursing Home,y,,,,,,,,,,
Nottinghamshire County Council,1111/1001,Adult Social Care and Health,ASCH,Third Party Payments,ECA,14/08/2013,05-11460,439.16,The Grange Nursing Home,y,,,,,,,,,,
Nottinghamshire County Council,1111/1001,Adult Social Care and Health,ASCH,Third Party Payments,ECA,14/08/2013,05-11569,439.16,Hawthorne Nursing Home,y,,,,,,,,,,
Nottinghamshire County Council,1111/1001,Adult Social Care and Health,ASCH,Third Party Payments,ECA,14/08/2013,05-11570,439.16,Hawthorne Nursing Home,y,,,,,,,,,,
Nottinghamshire County Council,1111/1001,Adult Social Care and Health,ASCH,Third Party Payments,ECA,14/08/2013,05-11571,439.16,Hawthorne Nursing Home,y,,,,,,,,,,
Nottinghamshire County Council,1111/1001,Adult Social Care and Health,ASCH,Third Party Payments,ECA,14/08/2013,05-11572,439.16,Hawthorne Nursing Home,y,,,,,,,,,,
Nottinghamshire County Council,1111/1001,Adult Social Care and Health,ASCH,Third Party Payments,ECA,14/08/2013,05-11573,598.4,Hawthorne Nursing Home,y,,,,,,,,,,
Nottinghamshire County Council,1111/1001,Adult Social Care and Health,ASCH,Third Party Payments,ECA,14/08/2013,05-11574,439.16,Hawthorne Nursing Home,y,,,,,,,,,,
Nottinghamshire County Council,1111/1001,Adult Social Care and Health,ASCH,Third Party Payments,ECA,14/08/2013,05-11575,439.16,Hawthorne Nursing Home,y,,,,,,,,,,
Nottinghamshire County Council,1111/1001,Adult Social Care and Health,ASCH,Third Party Payments,ECA,14/08/2013,05-11576,439.16,Hawthorne Nursing Home,y,,,,,,,,,,
Nottinghamshire County Council,1111/1001,Adult Social Care and Health,ASCH,Third Party Payments,ECA,14/08/2013,05-11577,439.16,Hawthorne Nursing Home,y,,,,,,,,,,
Nottinghamshire County Council,1111/1001,Adult Social Care and Health,ASCH,Third Party Payments,ECA,14/08/2013,05-11578,439.16,Hawthorne Nursing Home,y,,,,,,,,,,
Nottinghamshire County Council,1111/1001,Adult Social Care and Health,ASCH,Third Party Payments,ECA,14/08/2013,05-11587,266.63,Hazel Grove Nursing Home,y,,,,,,,,,,
Nottinghamshire County Council,1111/1001,Adult Social Care and Health,ASCH,Third Party Payments,ECA,14/08/2013,05-11589,439.16,Hazel Grove Nursing Home,y,,,,,,,,,,
Nottinghamshire County Council,1111/1001,Adult Social Care and Health,ASCH,Third Party Payments,ECA,14/08/2013,05-11591,439.16,Hazel Grove Nursing Home,y,,,,,,,,,,
Nottinghamshire County Council,1111/1001,Adult Social Care and Health,ASCH,Third Party Payments,ECA,14/08/2013,05-11592,439.16,Hazel Grove Nursing Home,y,,,,,,,,,,
Nottinghamshire County Council,1111/1001,Adult Social Care and Health,ASCH,Third Party Payments,ECA,14/08/2013,05-11595,598.4,Hazel Grove Nursing Home,y,,,,,,,,,,
Nottinghamshire County Council,1111/1001,Adult Social Care and Health,ASCH,Third Party Payments,ECA,14/08/2013,05-11596,439.16,Hazel Grove Nursing Home,y,,,,,,,,,,
Nottinghamshire County Council,1111/1001,Adult Social Care and Health,ASCH,Third Party Payments,ECA,14/08/2013,05-11598,439.16,Hazel Grove Nursing Home,y,,,,,,,,,,
Nottinghamshire County Council,1111/1001,Adult Social Care and Health,ASCH,Third Party Payments,ECA,14/08/2013,05-11600,439.16,Hazel Grove Nursing Home,y,,,,,,,,,,
Nottinghamshire County Council,1111/1001,Adult Social Care and Health,ASCH,Third Party Payments,ECA,14/08/2013,05-11601,439.16,Hazel Grove Nursing Home,y,,,,,,,,,,
Nottinghamshire County Council,1111/1001,Adult Social Care and Health,ASCH,Third Party Payments,ECA,14/08/2013,05-11602,439.16,Hazel Grove Nursing Home,y,,,,,,,,,,
Nottinghamshire County Council,1111/1001,Adult Social Care and Health,ASCH,Third Party Payments,ECA,14/08/2013,05-11610,439.16,Carisbrooke Nursing Home,y,,,,,,,,,,
Nottinghamshire County Council,1111/1001,Adult Social Care and Health,ASCH,Third Party Payments,ECA,14/08/2013,05-11612,466.88,Newton House Nursing Home,y,,,,,,,,,,
Nottinghamshire County Council,1111/1001,Adult Social Care and Health,ASCH,Third Party Payments,ECA,14/08/2013,05-11613,641.8,Newton House Nursing Home,y,,,,,,,,,,
Nottinghamshire County Council,1111/1001,Adult Social Care and Health,ASCH,Third Party Payments,ECA,14/08/2013,05-11614,439.16,Newton House Nursing Home,y,,,,,,,,,,
Nottinghamshire County Council,1111/1001,Adult Social Care and Health,ASCH,Third Party Payments,ECA,14/08/2013,05-11624,598.4,Craegmoor Healthcare,y,,,,,,,,,,
Nottinghamshire County Council,1111/1001,Adult Social Care and Health,ASCH,Third Party Payments,ECA,14/08/2013,05-11642,439.16,Aspley Neurodisability Centre,y,,,,,,,,,,
Nottinghamshire County Council,1111/1001,Adult Social Care and Health,ASCH,Third Party Payments,ECA,14/08/2013,05-11645,439.16,Aspley Neurodisability Centre,y,,,,,,,,,,
Nottinghamshire County Council,1111/1001,Adult Social Care and Health,ASCH,Third Party Payments,ECA,14/08/2013,05-11647,439.16,Four Seasons Homes (Ilkeston) Limit,y,,,,,,,,,,
Nottinghamshire County Council,1111/1001,Adult Social Care and Health,ASCH,Third Party Payments,ECA,14/08/2013,05-11648,598.4,Four Seasons Homes (Ilkeston) Limit,y,,,,,,,,,,
Nottinghamshire County Council,1111/1001,Adult Social Care and Health,ASCH,Third Party Payments,ECA,14/08/2013,05-11649,439.16,Four Seasons Homes (Ilkeston) Limit,y,,,,,,,,,,
Nottinghamshire County Council,1111/1001,Adult Social Care and Health,ASCH,Third Party Payments,ECA,14/08/2013,05-11651,439.16,Four Seasons Homes (Ilkeston) Limit,y,,,,,,,,,,
Nottinghamshire County Council,1111/1001,Adult Social Care and Health,ASCH,Third Party Payments,ECA,14/08/2013,05-11652,439.16,Four Seasons Homes (Ilkeston) Limit,y,,,,,,,,,,
Nottinghamshire County Council,1111/1001,Adult Social Care and Health,ASCH,Third Party Payments,ECA,14/08/2013,05-11653,439.16,Four Seasons Homes (Ilkeston) Limit,y,,,,,,,,,,
Nottinghamshire County Council,1111/1001,Adult Social Care and Health,ASCH,Third Party Payments,ECA,14/08/2013,05-11694,439.16,Beeston Lodge Nursing Home,y,,,,,,,,,,
Nottinghamshire County Council,1111/1001,Adult Social Care and Health,ASCH,Third Party Payments,ECA,14/08/2013,05-11695,941.06,Beeston Lodge Nursing Home,y,,,,,,,,,,
Nottinghamshire County Council,1111/1001,Adult Social Care and Health,ASCH,Third Party Payments,ECA,14/08/2013,05-11696,439.16,Beeston Lodge Nursing Home,y,,,,,,,,,,
Nottinghamshire County Council,1111/1001,Adult Social Care and Health,ASCH,Third Party Payments,ECA,14/08/2013,05-11697,439.16,Beeston Lodge Nursing Home,y,,,,,,,,,,
Nottinghamshire County Council,1111/1001,Adult Social Care and Health,ASCH,Third Party Payments,ECA,14/08/2013,05-11698,439.15,Beeston Lodge Nursing Home,y,,,,,,,,,,
Nottinghamshire County Council,1111/1001,Adult Social Care and Health,ASCH,Third Party Payments,ECA,14/08/2013,05-11699,439.16,Beeston Lodge Nursing Home,y,,,,,,,,,,
Nottinghamshire County Council,1111/1001,Adult Social Care and Health,ASCH,Third Party Payments,ECA,14/08/2013,05-11701,439.16,Beeston Lodge Nursing Home,y,,,,,,,,,,
Nottinghamshire County Council,1111/1001,Adult Social Care and Health,ASCH,Third Party Payments,ECA,14/08/2013,05-11702,439.16,Beeston Lodge Nursing Home,y,,,,,,,,,,
Nottinghamshire County Council,1111/1001,Adult Social Care and Health,ASCH,Third Party Payments,ECA,14/08/2013,05-11703,439.16,Beeston Lodge Nursing Home,y,,,,,,,,,,
Nottinghamshire County Council,1111/1001,Adult Social Care and Health,ASCH,Third Party Payments,ECA,14/08/2013,05-11704,439.16,Beeston Lodge Nursing Home,y,,,,,,,,,,
Nottinghamshire County Council,1111/1001,Adult Social Care and Health,ASCH,Third Party Payments,ECA,14/08/2013,05-11705,439.16,Beeston Lodge Nursing Home,y,,,,,,,,,,
Nottinghamshire County Council,1111/1001,Adult Social Care and Health,ASCH,Third Party Payments,ECA,14/08/2013,05-11732,439.16,Eton Park Nursing Home,y,,,,,,,,,,
Nottinghamshire County Council,1111/1001,Adult Social Care and Health,ASCH,Third Party Payments,ECA,14/08/2013,05-11734,439.16,Eton Park Nursing Home,y,,,,,,,,,,
Nottinghamshire County Council,1111/1001,Adult Social Care and Health,ASCH,Third Party Payments,ECA,14/08/2013,05-11735,439.16,Eton Park Nursing Home,y,,,,,,,,,,
Nottinghamshire County Council,1111/1001,Adult Social Care and Health,ASCH,Third Party Payments,ECA,14/08/2013,05-11736,439.16,Eton Park Nursing Home,y,,,,,,,,,,
Nottinghamshire County Council,1111/1001,Adult Social Care and Health,ASCH,Third Party Payments,ECA,14/08/2013,05-11737,439.16,Eton Park Nursing Home,y,,,,,,,,,,
Nottinghamshire County Council,1111/1001,Adult Social Care and Health,ASCH,Third Party Payments,ECA,14/08/2013,05-11738,439.16,Eton Park Nursing Home,y,,,,,,,,,,
Nottinghamshire County Council,1111/1001,Adult Social Care and Health,ASCH,Third Party Payments,ECA,14/08/2013,05-11739,439.16,Eton Park Nursing Home,y,,,,,,,,,,
Nottinghamshire County Council,1111/1001,Adult Social Care and Health,ASCH,Third Party Payments,ECA,14/08/2013,05-11740,439.16,Eton Park Residential Home,y,,,,,,,,,,
Nottinghamshire County Council,1111/1001,Adult Social Care and Health,ASCH,Third Party Payments,ECA,14/08/2013,05-11747,439.16,Eton Park Residential Home,y,,,,,,,,,,
Nottinghamshire County Council,1111/1001,Adult Social Care and Health,ASCH,Third Party Payments,ECA,14/08/2013,05-11766,439.16,Aj & Sa Verjee,y,,,,,,,,,,
Nottinghamshire County Council,1111/1001,Adult Social Care and Health,ASCH,Third Party Payments,ECA,14/08/2013,05-11768,439.16,Aj & Sa Verjee,y,,,,,,,,,,
Nottinghamshire County Council,1111/1001,Adult Social Care and Health,ASCH,Third Party Payments,ECA,14/08/2013,05-11769,439.16,Aj & Sa Verjee,y,,,,,,,,,,
Nottinghamshire County Council,1111/1001,Adult Social Care and Health,ASCH,Third Party Payments,ECA,14/08/2013,05-11770,439.16,Aj & Sa Verjee,y,,,,,,,,,,
Nottinghamshire County Council,1111/1001,Adult Social Care and Health,ASCH,Third Party Payments,ECA,14/08/2013,05-11771,439.16,Aj & Sa Verjee,y,,,,,,,,,,
Nottinghamshire County Council,1111/1001,Adult Social Care and Health,ASCH,Third Party Payments,ECA,14/08/2013,05-11778,125.47,Eagle Nursing Home,y,,,,,,,,,,
Nottinghamshire County Council,1111/1001,Adult Social Care and Health,ASCH,Third Party Payments,ECA,14/08/2013,05-11779,439.16,Eagle Nursing Home,y,,,,,,,,,,
Nottinghamshire County Council,1111/1001,Adult Social Care and Health,ASCH,Third Party Payments,ECA,14/08/2013,05-11796,439.16,Adbolton Hall Nursing Home,y,,,,,,,,,,
Nottinghamshire County Council,1111/1001,Adult Social Care and Health,ASCH,Third Party Payments,ECA,14/08/2013,05-11797,439.16,Adbolton Hall Nursing Home,y,,,,,,,,,,
Nottinghamshire County Council,1111/1001,Adult Social Care and Health,ASCH,Third Party Payments,ECA,14/08/2013,05-11798,439.16,Adbolton Hall Nursing Home,y,,,,,,,,,,
Nottinghamshire County Council,1111/1001,Adult Social Care and Health,ASCH,Third Party Payments,ECA,14/08/2013,05-11799,439.16,Adbolton Hall Nursing Home,y,,,,,,,,,,
Nottinghamshire County Council,1111/1001,Adult Social Care and Health,ASCH,Third Party Payments,ECA,14/08/2013,05-11800,439.16,Adbolton Hall Nursing Home,y,,,,,,,,,,
Nottinghamshire County Council,1111/1001,Adult Social Care and Health,ASCH,Third Party Payments,ECA,14/08/2013,05-11801,439.16,Adbolton Hall Nursing Home,y,,,,,,,,,,
Nottinghamshire County Council,1111/1001,Adult Social Care and Health,ASCH,Third Party Payments,ECA,14/08/2013,05-11802,439.16,Adbolton Hall Nursing Home,y,,,,,,,,,,
Nottinghamshire County Council,1111/1001,Adult Social Care and Health,ASCH,Third Party Payments,ECA,14/08/2013,05-11803,439.16,Adbolton Hall Nursing Home,y,,,,,,,,,,
Nottinghamshire County Council,1111/1001,Adult Social Care and Health,ASCH,Third Party Payments,ECA,14/08/2013,05-11804,439.16,Adbolton Hall Nursing Home,y,,,,,,,,,,
Nottinghamshire County Council,1111/1001,Adult Social Care and Health,ASCH,Third Party Payments,ECA,14/08/2013,05-11805,439.16,Adbolton Hall Nursing Home,y,,,,,,,,,,
Nottinghamshire County Council,1111/1001,Adult Social Care and Health,ASCH,Third Party Payments,ECA,14/08/2013,05-11806,439.16,Adbolton Hall Nursing Home,y,,,,,,,,,,
Nottinghamshire County Council,1111/1001,Adult Social Care and Health,ASCH,Third Party Payments,ECA,14/08/2013,05-11807,768.53,Adbolton Hall Nursing Home,y,,,,,,,,,,
Nottinghamshire County Council,1111/1001,Adult Social Care and Health,ASCH,Third Party Payments,ECA,14/08/2013,05-11808,439.16,Adbolton Hall Nursing Home,y,,,,,,,,,,
Nottinghamshire County Council,1111/1001,Adult Social Care and Health,ASCH,Third Party Payments,ECA,14/08/2013,05-11810,439.16,Adbolton Hall Nursing Home,y,,,,,,,,,,
Nottinghamshire County Council,1111/1001,Adult Social Care and Health,ASCH,Third Party Payments,ECA,14/08/2013,05-11811,439.16,Adbolton Hall Nursing Home,y,,,,,,,,,,
Nottinghamshire County Council,1111/1001,Adult Social Care and Health,ASCH,Third Party Payments,ECA,14/08/2013,05-11867,439.16,Elmbank Nursing Home,y,,,,,,,,,,
Nottinghamshire County Council,1111/1001,Adult Social Care and Health,ASCH,Third Party Payments,ECA,14/08/2013,05-11868,439.16,Elmbank Nursing Home,y,,,,,,,,,,
Nottinghamshire County Council,1111/1001,Adult Social Care and Health,ASCH,Third Party Payments,ECA,14/08/2013,05-11869,3591.46,Elmbank Nursing Home,y,,,,,,,,,,
Nottinghamshire County Council,1111/1001,Adult Social Care and Health,ASCH,Third Party Payments,ECA,14/08/2013,05-11870,439.16,Elmbank Nursing Home,y,,,,,,,,,,
Nottinghamshire County Council,1111/1001,Adult Social Care and Health,ASCH,Third Party Payments,ECA,14/08/2013,05-11871,439.16,Elmbank Nursing Home,y,,,,,,,,,,
Nottinghamshire County Council,1111/1001,Adult Social Care and Health,ASCH,Third Party Payments,ECA,14/08/2013,05-11872,439.16,Elmbank Nursing Home,y,,,,,,,,,,
Nottinghamshire County Council,1111/1001,Adult Social Care and Health,ASCH,Third Party Payments,ECA,14/08/2013,05-11873,439.16,Elmbank Nursing Home,y,,,,,,,,,,
Nottinghamshire County Council,1111/1001,Adult Social Care and Health,ASCH,Third Party Payments,ECA,14/08/2013,05-11874,439.16,Elmbank Nursing Home,y,,,,,,,,,,
Nottinghamshire County Council,1111/1001,Adult Social Care and Health,ASCH,Third Party Payments,ECA,14/08/2013,05-11875,439.16,Park House Nursing Home,y,,,,,,,,,,
Nottinghamshire County Council,1111/1001,Adult Social Care and Health,ASCH,Third Party Payments,ECA,14/08/2013,05-11876,439.16,Park House Nursing Home,y,,,,,,,,,,
Nottinghamshire County Council,1111/1001,Adult Social Care and Health,ASCH,Third Party Payments,ECA,14/08/2013,05-11878,439.16,Park House Nursing Home,y,,,,,,,,,,
Nottinghamshire County Council,1111/1001,Adult Social Care and Health,ASCH,Third Party Payments,ECA,14/08/2013,05-11879,439.16,Park House Nursing Home,y,,,,,,,,,,
Nottinghamshire County Council,1111/1001,Adult Social Care and Health,ASCH,Third Party Payments,ECA,14/08/2013,05-11894,439.16,Rutland Manor Nursing Home,y,,,,,,,,,,
Nottinghamshire County Council,1111/1001,Adult Social Care and Health,ASCH,Third Party Payments,ECA,14/08/2013,05-11895,439.16,Rutland Manor Nursing Home,y,,,,,,,,,,
Nottinghamshire County Council,1111/1001,Adult Social Care and Health,ASCH,Third Party Payments,ECA,14/08/2013,05-11911,439.16,Mansfield Manor Care Home,y,,,,,,,,,,
Nottinghamshire County Council,1111/1001,Adult Social Care and Health,ASCH,Third Party Payments,ECA,14/08/2013,05-11912,439.16,Mansfield Manor Care Home,y,,,,,,,,,,
Nottinghamshire County Council,1111/1001,Adult Social Care and Health,ASCH,Third Party Payments,ECA,14/08/2013,05-11913,439.16,Mansfield Manor Care Home,y,,,,,,,,,,
Nottinghamshire County Council,1111/1001,Adult Social Care and Health,ASCH,Third Party Payments,ECA,14/08/2013,05-11914,439.16,Mansfield Manor Care Home,y,,,,,,,,,,
Nottinghamshire County Council,1111/1001,Adult Social Care and Health,ASCH,Third Party Payments,ECA,14/08/2013,05-11918,439.16,Mansfield Manor Care Home,y,,,,,,,,,,
Nottinghamshire County Council,1111/1001,Adult Social Care and Health,ASCH,Third Party Payments,ECA,14/08/2013,05-11919,439.16,Mansfield Manor Care Home,y,,,,,,,,,,
Nottinghamshire County Council,1111/1001,Adult Social Care and Health,ASCH,Third Party Payments,ECA,14/08/2013,05-11920,439.16,Mansfield Manor Care Home,y,,,,,,,,,,
Nottinghamshire County Council,1111/1001,Adult Social Care and Health,ASCH,Third Party Payments,ECA,14/08/2013,05-11922,439.16,Mansfield Manor Care Home,y,,,,,,,,,,
Nottinghamshire County Council,1111/1001,Adult Social Care and Health,ASCH,Third Party Payments,ECA,14/08/2013,05-11923,219.58,Mansfield Manor Care Home,y,,,,,,,,,,
Nottinghamshire County Council,1111/1001,Adult Social Care and Health,ASCH,Third Party Payments,ECA,14/08/2013,05-11924,439.16,Mansfield Manor Care Home,y,,,,,,,,,,
Nottinghamshire County Council,1111/1001,Adult Social Care and Health,ASCH,Third Party Payments,ECA,14/08/2013,05-11925,439.16,Mansfield Manor Care Home,y,,,,,,,,,,
Nottinghamshire County Council,1111/1001,Adult Social Care and Health,ASCH,Third Party Payments,ECA,14/08/2013,05-11926,439.16,Mansfield Manor Care Home,y,,,,,,,,,,
Nottinghamshire County Council,1111/1001,Adult Social Care and Health,ASCH,Third Party Payments,ECA,14/08/2013,05-11927,439.16,Mansfield Manor Care Home,y,,,,,,,,,,
Nottinghamshire County Council,1111/1001,Adult Social Care and Health,ASCH,Third Party Payments,ECA,14/08/2013,05-11959,439.16,Balmore Country House,y,,,,,,,,,,
Nottinghamshire County Council,1111/1001,Adult Social Care and Health,ASCH,Third Party Payments,ECA,14/08/2013,05-11960,439.16,Balmore Country House,y,,,,,,,,,,
Nottinghamshire County Council,1111/1001,Adult Social Care and Health,ASCH,Third Party Payments,ECA,14/08/2013,05-11961,439.16,Balmore Country House,y,,,,,,,,,,
Nottinghamshire County Council,1111/1001,Adult Social Care and Health,ASCH,Third Party Payments,ECA,14/08/2013,05-11962,439.16,Balmore Country House,y,,,,,,,,,,
Nottinghamshire County Council,1111/1001,Adult Social Care and Health,ASCH,Third Party Payments,ECA,14/08/2013,05-11964,439.16,Balmore Country House,y,,,,,,,,,,
Nottinghamshire County Council,1111/1001,Adult Social Care and Health,ASCH,Third Party Payments,ECA,14/08/2013,05-11966,439.16,Balmore Country House,y,,,,,,,,,,
Nottinghamshire County Council,1111/1001,Adult Social Care and Health,ASCH,Third Party Payments,ECA,14/08/2013,05-11970,439.16,Balmore Country House,y,,,,,,,,,,
Nottinghamshire County Council,1111/1001,Adult Social Care and Health,ASCH,Third Party Payments,ECA,14/08/2013,05-11971,439.16,Balmore Country House,y,,,,,,,,,,
Nottinghamshire County Council,1111/1001,Adult Social Care and Health,ASCH,Third Party Payments,ECA,14/08/2013,05-11973,439.16,Balmore Country House,y,,,,,,,,,,
Nottinghamshire County Council,1111/1001,Adult Social Care and Health,ASCH,Third Party Payments,ECA,14/08/2013,05-11974,439.16,Balmore Country House,y,,,,,,,,,,
Nottinghamshire County Council,1111/1001,Adult Social Care and Health,ASCH,Third Party Payments,ECA,14/08/2013,05-11975,439.16,Balmore Country House,y,,,,,,,,,,
Nottinghamshire County Council,1111/1001,Adult Social Care and Health,ASCH,Third Party Payments,ECA,14/08/2013,05-11986,439.16,Sycamore Lodge Nursing Home,y,,,,,,,,,,
Nottinghamshire County Council,1111/1001,Adult Social Care and Health,ASCH,Third Party Payments,ECA,14/08/2013,05-11994,548.95,Field House Nursing Home,y,,,,,,,,,,
Nottinghamshire County Council,1111/1001,Adult Social Care and Health,ASCH,Third Party Payments,ECA,14/08/2013,05-11996,439.16,Field House Nursing Home,y,,,,,,,,,,
Nottinghamshire County Council,1111/1001,Adult Social Care and Health,ASCH,Third Party Payments,ECA,14/08/2013,05-11998,439.16,Field House Nursing Home,y,,,,,,,,,,
Nottinghamshire County Council,1111/1001,Adult Social Care and Health,ASCH,Third Party Payments,ECA,14/08/2013,05-11999,439.16,Field House Nursing Home,y,,,,,,,,,,
Nottinghamshire County Council,1111/1001,Adult Social Care and Health,ASCH,Third Party Payments,ECA,14/08/2013,05-12001,439.16,Field House Nursing Home,y,,,,,,,,,,
Nottinghamshire County Council,1111/1001,Adult Social Care and Health,ASCH,Third Party Payments,ECA,14/08/2013,05-12002,439.16,Field House Nursing Home,y,,,,,,,,,,
Nottinghamshire County Council,1111/1001,Adult Social Care and Health,ASCH,Third Party Payments,ECA,14/08/2013,05-12003,439.16,Field House Nursing Home,y,,,,,,,,,,
Nottinghamshire County Council,1111/1001,Adult Social Care and Health,ASCH,Third Party Payments,ECA,14/08/2013,05-12004,439.16,Field House Nursing Home,y,,,,,,,,,,
Nottinghamshire County Council,1111/1001,Adult Social Care and Health,ASCH,Third Party Payments,ECA,14/08/2013,05-12023,439.16,Giltbrook Carehomes Ltd,y,,,,,,,,,,
Nottinghamshire County Council,1111/1001,Adult Social Care and Health,ASCH,Third Party Payments,ECA,14/08/2013,05-12024,439.16,Giltbrook Carehomes Ltd,y,,,,,,,,,,
Nottinghamshire County Council,1111/1001,Adult Social Care and Health,ASCH,Third Party Payments,ECA,14/08/2013,05-12030,439.16,Giltbrook Carehomes Ltd,y,,,,,,,,,,
Nottinghamshire County Council,1111/1001,Adult Social Care and Health,ASCH,Third Party Payments,ECA,14/08/2013,05-12032,439.16,Giltbrook Carehomes Ltd,y,,,,,,,,,,
Nottinghamshire County Council,1111/1001,Adult Social Care and Health,ASCH,Third Party Payments,ECA,14/08/2013,05-12033,439.16,Giltbrook Carehomes Ltd,y,,,,,,,,,,
Nottinghamshire County Council,1111/1001,Adult Social Care and Health,ASCH,Third Party Payments,ECA,14/08/2013,05-12034,439.16,Giltbrook Carehomes Ltd,y,,,,,,,,,,
Nottinghamshire County Council,1111/1001,Adult Social Care and Health,ASCH,Third Party Payments,ECA,14/08/2013,05-12036,439.16,Giltbrook Carehomes Ltd,y,,,,,,,,,,
Nottinghamshire County Council,1111/1001,Adult Social Care and Health,ASCH,Third Party Payments,ECA,14/08/2013,05-12039,439.16,The Firs,y,,,,,,,,,,
Nottinghamshire County Council,1111/1001,Adult Social Care and Health,ASCH,Third Party Payments,ECA,14/08/2013,05-12060,598.4,Lowmoor Nursing Home,y,,,,,,,,,,
Nottinghamshire County Council,1111/1001,Adult Social Care and Health,ASCH,Third Party Payments,ECA,14/08/2013,05-12061,439.16,Lowmoor Nursing Home,y,,,,,,,,,,
Nottinghamshire County Council,1111/1001,Adult Social Care and Health,ASCH,Third Party Payments,ECA,14/08/2013,05-12062,439.16,Lowmoor Nursing Home,y,,,,,,,,,,
Nottinghamshire County Council,1111/1001,Adult Social Care and Health,ASCH,Third Party Payments,ECA,14/08/2013,05-12063,439.16,Lowmoor Nursing Home,y,,,,,,,,,,
Nottinghamshire County Council,1111/1001,Adult Social Care and Health,ASCH,Third Party Payments,ECA,14/08/2013,05-12064,439.16,Lowmoor Nursing Home,y,,,,,,,,,,
Nottinghamshire County Council,1111/1001,Adult Social Care and Health,ASCH,Third Party Payments,ECA,14/08/2013,05-12065,439.16,Lowmoor Nursing Home,y,,,,,,,,,,
Nottinghamshire County Council,1111/1001,Adult Social Care and Health,ASCH,Third Party Payments,ECA,14/08/2013,05-12066,439.16,Lowmoor Nursing Home,y,,,,,,,,,,
Nottinghamshire County Council,1111/1001,Adult Social Care and Health,ASCH,Third Party Payments,ECA,14/08/2013,05-12067,439.16,Lowmoor Nursing Home,y,,,,,,,,,,
Nottinghamshire County Council,1111/1001,Adult Social Care and Health,ASCH,Third Party Payments,ECA,14/08/2013,05-12069,439.16,Lowmoor Nursing Home,y,,,,,,,,,,
Nottinghamshire County Council,1111/1001,Adult Social Care and Health,ASCH,Third Party Payments,ECA,14/08/2013,05-12070,439.16,Lowmoor Nursing Home,y,,,,,,,,,,
Nottinghamshire County Council,1111/1001,Adult Social Care and Health,ASCH,Third Party Payments,ECA,14/08/2013,05-12071,598.4,Lowmoor Nursing Home,y,,,,,,,,,,
Nottinghamshire County Council,1111/1001,Adult Social Care and Health,ASCH,Third Party Payments,ECA,14/08/2013,05-12135,439.16,Bramcote House Nursing Home,y,,,,,,,,,,
Nottinghamshire County Council,1111/1001,Adult Social Care and Health,ASCH,Third Party Payments,ECA,14/08/2013,05-12136,831.27,Bramcote House Nursing Home,y,,,,,,,,,,
Nottinghamshire County Council,1111/1001,Adult Social Care and Health,ASCH,Third Party Payments,ECA,14/08/2013,05-12137,439.16,Bramcote House Nursing Home,y,,,,,,,,,,
Nottinghamshire County Council,1111/1001,Adult Social Care and Health,ASCH,Third Party Payments,ECA,14/08/2013,05-12140,439.16,Bramcote House Nursing Home,y,,,,,,,,,,
Nottinghamshire County Council,1111/1001,Adult Social Care and Health,ASCH,Third Party Payments,ECA,14/08/2013,05-12163,439.16,Hallcroft Nursing Home,y,,,,,,,,,,
Nottinghamshire County Council,1111/1001,Adult Social Care and Health,ASCH,Third Party Payments,ECA,14/08/2013,05-12165,439.16,Hallcroft Nursing Home,y,,,,,,,,,,
Nottinghamshire County Council,1111/1001,Adult Social Care and Health,ASCH,Third Party Payments,ECA,14/08/2013,05-12166,439.16,Hallcroft Nursing Home,y,,,,,,,,,,
Nottinghamshire County Council,1111/1001,Adult Social Care and Health,ASCH,Third Party Payments,ECA,14/08/2013,05-12167,439.16,Hallcroft Nursing Home,y,,,,,,,,,,
Nottinghamshire County Council,1111/1001,Adult Social Care and Health,ASCH,Third Party Payments,ECA,14/08/2013,05-12169,439.16,Hallcroft Nursing Home,y,,,,,,,,,,
Nottinghamshire County Council,1111/1001,Adult Social Care and Health,ASCH,Third Party Payments,ECA,14/08/2013,05-12170,439.16,Hallcroft Nursing Home,y,,,,,,,,,,
Nottinghamshire County Council,1111/1001,Adult Social Care and Health,ASCH,Third Party Payments,ECA,14/08/2013,05-12172,439.16,Hallcroft Nursing Home,y,,,,,,,,,,
Nottinghamshire County Council,1111/1001,Adult Social Care and Health,ASCH,Third Party Payments,ECA,14/08/2013,05-12173,439.16,Hallcroft Nursing Home,y,,,,,,,,,,
Nottinghamshire County Council,1111/1001,Adult Social Care and Health,ASCH,Third Party Payments,ECA,14/08/2013,05-12195,439.16,Foxby Hill N/R Home,y,,,,,,,,,,
Nottinghamshire County Council,1111/1001,Adult Social Care and Health,ASCH,Third Party Payments,ECA,14/08/2013,05-12196,439.16,Foxby Hill N/R Home,y,,,,,,,,,,
Nottinghamshire County Council,1111/1001,Adult Social Care and Health,ASCH,Third Party Payments,ECA,14/08/2013,05-12231,439.16,Broadgate Nursing Home,y,,,,,,,,,,
Nottinghamshire County Council,1111/1001,Adult Social Care and Health,ASCH,Third Party Payments,ECA,14/08/2013,05-12232,439.16,Broadgate Nursing Home,y,,,,,,,,,,
Nottinghamshire County Council,1111/1001,Adult Social Care and Health,ASCH,Third Party Payments,ECA,14/08/2013,05-12234,439.16,Broadgate Nursing Home,y,,,,,,,,,,
Nottinghamshire County Council,1111/1001,Adult Social Care and Health,ASCH,Third Party Payments,ECA,14/08/2013,05-12235,439.16,Broadgate Nursing Home,y,,,,,,,,,,
Nottinghamshire County Council,1111/1001,Adult Social Care and Health,ASCH,Third Party Payments,ECA,14/08/2013,05-12236,598.4,Broadgate Nursing Home,y,,,,,,,,,,
Nottinghamshire County Council,1111/1001,Adult Social Care and Health,ASCH,Third Party Payments,ECA,14/08/2013,05-12237,439.16,Broadgate Nursing Home,y,,,,,,,,,,
Nottinghamshire County Council,1111/1001,Adult Social Care and Health,ASCH,Third Party Payments,ECA,14/08/2013,05-12238,439.16,Broadgate Nursing Home,y,,,,,,,,,,
Nottinghamshire County Council,1111/1001,Adult Social Care and Health,ASCH,Third Party Payments,ECA,14/08/2013,05-12239,439.16,Broadgate Nursing Home,y,,,,,,,,,,
Nottinghamshire County Council,1111/1001,Adult Social Care and Health,ASCH,Third Party Payments,ECA,14/08/2013,05-12240,439.16,Byars Nursing Home,y,,,,,,,,,,
Nottinghamshire County Council,1111/1001,Adult Social Care and Health,ASCH,Third Party Payments,ECA,14/08/2013,05-12241,439.16,Byars Nursing Home,y,,,,,,,,,,
Nottinghamshire County Council,1111/1001,Adult Social Care and Health,ASCH,Third Party Payments,ECA,14/08/2013,05-12242,439.16,Byars Nursing Home,y,,,,,,,,,,
Nottinghamshire County Council,1111/1001,Adult Social Care and Health,ASCH,Third Party Payments,ECA,14/08/2013,05-12243,439.16,Byars Nursing Home,y,,,,,,,,,,
Nottinghamshire County Council,1111/1001,Adult Social Care and Health,ASCH,Third Party Payments,ECA,14/08/2013,05-12244,439.16,Byars Nursing Home,y,,,,,,,,,,
Nottinghamshire County Council,1111/1001,Adult Social Care and Health,ASCH,Third Party Payments,ECA,14/08/2013,05-12245,439.16,Byars Nursing Home,y,,,,,,,,,,
Nottinghamshire County Council,1111/1001,Adult Social Care and Health,ASCH,Third Party Payments,ECA,14/08/2013,05-12246,439.16,Byars Nursing Home,y,,,,,,,,,,
Nottinghamshire County Council,1111/1001,Adult Social Care and Health,ASCH,Third Party Payments,ECA,14/08/2013,05-12247,1725.27,Byars Nursing Home,y,,,,,,,,,,
Nottinghamshire County Council,1111/1001,Adult Social Care and Health,ASCH,Third Party Payments,ECA,14/08/2013,05-12248,752.85,Byars Nursing Home,y,,,,,,,,,,
Nottinghamshire County Council,1111/1001,Adult Social Care and Health,ASCH,Third Party Payments,ECA,14/08/2013,05-12249,439.16,Byars Nursing Home,y,,,,,,,,,,
Nottinghamshire County Council,1111/1001,Adult Social Care and Health,ASCH,Third Party Payments,ECA,14/08/2013,05-12250,439.16,Byars Nursing Home,y,,,,,,,,,,
Nottinghamshire County Council,1111/1001,Adult Social Care and Health,ASCH,Third Party Payments,ECA,14/08/2013,05-12251,439.16,Byars Nursing Home,y,,,,,,,,,,
Nottinghamshire County Council,1111/1001,Adult Social Care and Health,ASCH,Third Party Payments,ECA,14/08/2013,05-12252,2631.69,Byars Nursing Home,y,,,,,,,,,,
Nottinghamshire County Council,1111/1001,Adult Social Care and Health,ASCH,Third Party Payments,ECA,14/08/2013,05-12264,439.16,Victoria Care Home,y,,,,,,,,,,
Nottinghamshire County Council,1111/1001,Adult Social Care and Health,ASCH,Third Party Payments,ECA,14/08/2013,05-12268,439.16,Victoria Care Home,y,,,,,,,,,,
Nottinghamshire County Council,1111/1001,Adult Social Care and Health,ASCH,Third Party Payments,ECA,14/08/2013,05-12269,439.16,Victoria Care Home,y,,,,,,,,,,
Nottinghamshire County Council,1111/1001,Adult Social Care and Health,ASCH,Third Party Payments,ECA,14/08/2013,05-12272,439.16,Victoria Care Home,y,,,,,,,,,,
Nottinghamshire County Council,1111/1001,Adult Social Care and Health,ASCH,Third Party Payments,ECA,14/08/2013,05-12275,439.16,Victoria Care Home,y,,,,,,,,,,
Nottinghamshire County Council,1111/1001,Adult Social Care and Health,ASCH,Third Party Payments,ECA,14/08/2013,05-12279,439.16,Victoria Care Home,y,,,,,,,,,,
Nottinghamshire County Council,1111/1001,Adult Social Care and Health,ASCH,Third Party Payments,ECA,14/08/2013,05-12281,439.16,Victoria Care Home,y,,,,,,,,,,
Nottinghamshire County Council,1111/1001,Adult Social Care and Health,ASCH,Third Party Payments,ECA,14/08/2013,05-12287,439.16,Victoria Care Home,y,,,,,,,,,,
Nottinghamshire County Council,1111/1001,Adult Social Care and Health,ASCH,Third Party Payments,ECA,14/08/2013,05-12289,439.16,Victoria Care Home,y,,,,,,,,,,
Nottinghamshire County Council,1111/1001,Adult Social Care and Health,ASCH,Third Party Payments,ECA,14/08/2013,05-12310,439.16,The Poplars (Derbys),y,,,,,,,,,,
Nottinghamshire County Council,1111/1001,Adult Social Care and Health,ASCH,Third Party Payments,ECA,14/08/2013,05-12326,439.16,Woodleigh Christian Care Home,y,,,,,,,,,,
Nottinghamshire County Council,1111/1001,Adult Social Care and Health,ASCH,Third Party Payments,ECA,14/08/2013,05-12329,439.16,Woodleigh Christian Care Home,y,,,,,,,,,,
Nottinghamshire County Council,1111/1001,Adult Social Care and Health,ASCH,Third Party Payments,ECA,14/08/2013,05-12334,439.16,Woodleigh Christian Care Home,y,,,,,,,,,,
Nottinghamshire County Council,1111/1001,Adult Social Care and Health,ASCH,Third Party Payments,ECA,14/08/2013,05-12335,439.16,Woodleigh Christian Care Home,y,,,,,,,,,,
Nottinghamshire County Council,1111/1001,Adult Social Care and Health,ASCH,Third Party Payments,ECA,14/08/2013,05-12338,439.16,Woodleigh Christian Care Home,y,,,,,,,,,,
Nottinghamshire County Council,1111/1001,Adult Social Care and Health,ASCH,Third Party Payments,ECA,14/08/2013,05-12341,439.16,Woodleigh Christian Care Home,y,,,,,,,,,,
Nottinghamshire County Council,1111/1001,Adult Social Care and Health,ASCH,Third Party Payments,ECA,14/08/2013,05-12342,-1395.9,Woodleigh Christian Care Home,y,,,,,,,,,,
Nottinghamshire County Council,1111/1001,Adult Social Care and Health,ASCH,Third Party Payments,ECA,14/08/2013,05-12343,439.16,Woodleigh Christian Care Home,y,,,,,,,,,,
Nottinghamshire County Council,1111/1001,Adult Social Care and Health,ASCH,Third Party Payments,ECA,14/08/2013,05-12344,439.16,Woodleigh Christian Care Home,y,,,,,,,,,,
Nottinghamshire County Council,1111/1001,Adult Social Care and Health,ASCH,Third Party Payments,ECA,14/08/2013,05-12346,439.16,Woodleigh Christian Care Home,y,,,,,,,,,,
Nottinghamshire County Council,1111/1001,Adult Social Care and Health,ASCH,Third Party Payments,ECA,14/08/2013,05-12348,439.16,Millington Springs,y,,,,,,,,,,
Nottinghamshire County Council,1111/1001,Adult Social Care and Health,ASCH,Third Party Payments,ECA,14/08/2013,05-12349,439.16,Millington Springs,y,,,,,,,,,,
Nottinghamshire County Council,1111/1001,Adult Social Care and Health,ASCH,Third Party Payments,ECA,14/08/2013,05-12350,439.16,Millington Springs,y,,,,,,,,,,
Nottinghamshire County Council,1111/1001,Adult Social Care and Health,ASCH,Third Party Payments,ECA,14/08/2013,05-12351,439.16,Millington Springs,y,,,,,,,,,,
Nottinghamshire County Council,1111/1001,Adult Social Care and Health,ASCH,Third Party Payments,ECA,14/08/2013,05-12353,439.16,Millington Springs,y,,,,,,,,,,
Nottinghamshire County Council,1111/1001,Adult Social Care and Health,ASCH,Third Party Payments,ECA,14/08/2013,05-12354,439.16,Millington Springs,y,,,,,,,,,,
Nottinghamshire County Council,1111/1001,Adult Social Care and Health,ASCH,Third Party Payments,ECA,14/08/2013,05-12355,439.16,Millington Springs,y,,,,,,,,,,
Nottinghamshire County Council,1111/1001,Adult Social Care and Health,ASCH,Third Party Payments,ECA,14/08/2013,05-12357,450.8,Millington Springs,y,,,,,,,,,,
Nottinghamshire County Council,1111/1001,Adult Social Care and Health,ASCH,Third Party Payments,ECA,14/08/2013,05-12358,439.16,Millington Springs,y,,,,,,,,,,
Nottinghamshire County Council,1111/1001,Adult Social Care and Health,ASCH,Third Party Payments,ECA,14/08/2013,05-12360,439.16,Millington Springs,y,,,,,,,,,,
Nottinghamshire County Council,1111/1001,Adult Social Care and Health,ASCH,Third Party Payments,ECA,14/08/2013,05-12362,439.16,Millington Springs,y,,,,,,,,,,
Nottinghamshire County Council,1111/1001,Adult Social Care and Health,ASCH,Third Party Payments,ECA,14/08/2013,05-12405,439.16,Lound Hall Nursing Home,y,,,,,,,,,,
Nottinghamshire County Council,1111/1001,Adult Social Care and Health,ASCH,Third Party Payments,ECA,14/08/2013,05-12406,439.16,Lound Hall Nursing Home,y,,,,,,,,,,
Nottinghamshire County Council,1111/1001,Adult Social Care and Health,ASCH,Third Party Payments,ECA,14/08/2013,05-12407,439.16,Lound Hall Nursing Home,y,,,,,,,,,,
Nottinghamshire County Council,1111/1001,Adult Social Care and Health,ASCH,Third Party Payments,ECA,14/08/2013,05-12411,439.16,Lound Hall Nursing Home,y,,,,,,,,,,
Nottinghamshire County Council,1111/1001,Adult Social Care and Health,ASCH,Third Party Payments,ECA,14/08/2013,05-12414,439.16,Lound Hall Nursing Home,y,,,,,,,,,,
Nottinghamshire County Council,1111/1001,Adult Social Care and Health,ASCH,Third Party Payments,ECA,14/08/2013,05-12422,219.58,Blyth Country House Care Home,y,,,,,,,,,,
Nottinghamshire County Council,1111/1001,Adult Social Care and Health,ASCH,Third Party Payments,ECA,14/08/2013,05-12423,439.16,Blyth Country House Care Home,y,,,,,,,,,,
Nottinghamshire County Council,1111/1001,Adult Social Care and Health,ASCH,Third Party Payments,ECA,14/08/2013,05-12424,439.16,Blyth Country House Care Home,y,,,,,,,,,,
Nottinghamshire County Council,1111/1001,Adult Social Care and Health,ASCH,Third Party Payments,ECA,14/08/2013,05-12426,-501.9,Blyth Country House Care Home,y,,,,,,,,,,
Nottinghamshire County Council,1111/1001,Adult Social Care and Health,ASCH,Third Party Payments,ECA,14/08/2013,05-12427,439.16,Blyth Country House Care Home,y,,,,,,,,,,
Nottinghamshire County Council,1111/1001,Adult Social Care and Health,ASCH,Third Party Payments,ECA,14/08/2013,05-12434,439.16,Blyth Country House Care Home,y,,,,,,,,,,
Nottinghamshire County Council,1111/1001,Adult Social Care and Health,ASCH,Third Party Payments,ECA,14/08/2013,05-12453,439.16,The Shires Care Centre,y,,,,,,,,,,
Nottinghamshire County Council,1111/1001,Adult Social Care and Health,ASCH,Third Party Payments,ECA,14/08/2013,05-12455,439.16,The Shires Care Centre,y,,,,,,,,,,
Nottinghamshire County Council,1111/1001,Adult Social Care and Health,ASCH,Third Party Payments,ECA,14/08/2013,05-12456,439.16,The Shires Care Centre,y,,,,,,,,,,
Nottinghamshire County Council,1111/1001,Adult Social Care and Health,ASCH,Third Party Payments,ECA,14/08/2013,05-12457,439.16,The Shires Care Centre,y,,,,,,,,,,
Nottinghamshire County Council,1111/1001,Adult Social Care and Health,ASCH,Third Party Payments,ECA,14/08/2013,05-12465,439.16,The Shires Care Centre,y,,,,,,,,,,
Nottinghamshire County Council,1111/1001,Adult Social Care and Health,ASCH,Third Party Payments,ECA,14/08/2013,05-12467,439.16,The Shires Care Centre,y,,,,,,,,,,
Nottinghamshire County Council,1111/1001,Adult Social Care and Health,ASCH,Third Party Payments,ECA,14/08/2013,05-12470,598.4,The Shires Care Centre,y,,,,,,,,,,
Nottinghamshire County Council,1111/1001,Adult Social Care and Health,ASCH,Third Party Payments,ECA,14/08/2013,05-12494,439.16,Cherry Holt Care Home,y,,,,,,,,,,
Nottinghamshire County Council,1111/1001,Adult Social Care and Health,ASCH,Third Party Payments,ECA,14/08/2013,05-12495,439.16,Cherry Holt Care Home,y,,,,,,,,,,
Nottinghamshire County Council,1111/1001,Adult Social Care and Health,ASCH,Third Party Payments,ECA,14/08/2013,05-12496,439.16,Cherry Holt Care Home,y,,,,,,,,,,
Nottinghamshire County Council,1111/1001,Adult Social Care and Health,ASCH,Third Party Payments,ECA,14/08/2013,05-12498,439.16,Cherry Holt Care Home,y,,,,,,,,,,
Nottinghamshire County Council,1111/1001,Adult Social Care and Health,ASCH,Third Party Payments,ECA,14/08/2013,05-12499,439.16,Cherry Holt Care Home,y,,,,,,,,,,
Nottinghamshire County Council,1111/1001,Adult Social Care and Health,ASCH,Third Party Payments,ECA,14/08/2013,05-12500,439.16,Cherry Holt Care Home,y,,,,,,,,,,
Nottinghamshire County Council,1111/1001,Adult Social Care and Health,ASCH,Third Party Payments,ECA,14/08/2013,05-12502,439.16,Cherry Holt Care Home,y,,,,,,,,,,
Nottinghamshire County Council,1111/1001,Adult Social Care and Health,ASCH,Third Party Payments,ECA,14/08/2013,05-12503,439.16,Cherry Holt Care Home,y,,,,,,,,,,
Nottinghamshire County Council,1111/1001,Adult Social Care and Health,ASCH,Third Party Payments,ECA,14/08/2013,05-12504,439.16,Cherry Holt Care Home,y,,,,,,,,,,
Nottinghamshire County Council,1111/1001,Adult Social Care and Health,ASCH,Third Party Payments,ECA,14/08/2013,05-12506,439.16,Cherry Holt Care Home,y,,,,,,,,,,
Nottinghamshire County Council,1111/1001,Adult Social Care and Health,ASCH,Third Party Payments,ECA,14/08/2013,05-12508,439.16,Cherry Holt Care Home,y,,,,,,,,,,
Nottinghamshire County Council,1111/1001,Adult Social Care and Health,ASCH,Third Party Payments,ECA,14/08/2013,05-12510,439.16,Cherry Holt Care Home,y,,,,,,,,,,
Nottinghamshire County Council,1111/1001,Adult Social Care and Health,ASCH,Third Party Payments,ECA,14/08/2013,05-12514,439.16,Cherry Holt Care Home,y,,,,,,,,,,
Nottinghamshire County Council,1111/1001,Adult Social Care and Health,ASCH,Third Party Payments,ECA,14/08/2013,05-12515,598.4,Cherry Holt Care Home,y,,,,,,,,,,
Nottinghamshire County Council,1111/1001,Adult Social Care and Health,ASCH,Third Party Payments,ECA,14/08/2013,05-12516,439.16,Cherry Holt Care Home,y,,,,,,,,,,
Nottinghamshire County Council,1111/1001,Adult Social Care and Health,ASCH,Third Party Payments,ECA,14/08/2013,05-12519,439.16,Cherry Holt Care Home,y,,,,,,,,,,
Nottinghamshire County Council,1111/1001,Adult Social Care and Health,ASCH,Third Party Payments,ECA,14/08/2013,05-12522,439.16,Cherry Holt Care Home,y,,,,,,,,,,
Nottinghamshire County Council,1111/1001,Adult Social Care and Health,ASCH,Third Party Payments,ECA,14/08/2013,05-12524,439.16,Cherry Holt Care Home,y,,,,,,,,,,
Nottinghamshire County Council,1111/1001,Adult Social Care and Health,ASCH,Third Party Payments,ECA,14/08/2013,05-12527,439.16,Cherry Holt Care Home,y,,,,,,,,,,
Nottinghamshire County Council,1111/1001,Adult Social Care and Health,ASCH,Third Party Payments,ECA,14/08/2013,05-12528,439.16,Cherry Holt Care Home,y,,,,,,,,,,
Nottinghamshire County Council,1111/1001,Adult Social Care and Health,ASCH,Third Party Payments,ECA,14/08/2013,05-12529,439.16,Cherry Holt Care Home,y,,,,,,,,,,
Nottinghamshire County Council,1111/1001,Adult Social Care and Health,ASCH,Third Party Payments,ECA,14/08/2013,05-12530,439.16,Cherry Holt Care Home,y,,,,,,,,,,
Nottinghamshire County Council,1111/1001,Adult Social Care and Health,ASCH,Third Party Payments,ECA,14/08/2013,05-12555,439.16,Stanton Hall Nursing Home,y,,,,,,,,,,
Nottinghamshire County Council,1111/1001,Adult Social Care and Health,ASCH,Third Party Payments,ECA,14/08/2013,05-12556,439.16,Stanton Hall Nursing Home,y,,,,,,,,,,
Nottinghamshire County Council,1111/1001,Adult Social Care and Health,ASCH,Third Party Payments,ECA,14/08/2013,05-12559,439.16,Stoke House Nursing Home,y,,,,,,,,,,
Nottinghamshire County Council,1111/1001,Adult Social Care and Health,ASCH,Third Party Payments,ECA,14/08/2013,05-12560,439.16,Stoke House Nursing Home,y,,,,,,,,,,
Nottinghamshire County Council,1111/1001,Adult Social Care and Health,ASCH,Third Party Payments,ECA,14/08/2013,05-12561,439.16,Stoke House Nursing Home,y,,,,,,,,,,
Nottinghamshire County Council,1111/1001,Adult Social Care and Health,ASCH,Third Party Payments,ECA,14/08/2013,05-12562,439.16,Stoke House Nursing Home,y,,,,,,,,,,
Nottinghamshire County Council,1111/1001,Adult Social Care and Health,ASCH,Third Party Payments,ECA,14/08/2013,05-12563,439.16,Stoke House Nursing Home,y,,,,,,,,,,
Nottinghamshire County Council,1111/1001,Adult Social Care and Health,ASCH,Third Party Payments,ECA,14/08/2013,05-12564,439.16,Stoke House Nursing Home,y,,,,,,,,,,
Nottinghamshire County Council,1111/1001,Adult Social Care and Health,ASCH,Third Party Payments,ECA,14/08/2013,05-12565,439.16,Stoke House Nursing Home,y,,,,,,,,,,
Nottinghamshire County Council,1111/1001,Adult Social Care and Health,ASCH,Third Party Payments,ECA,14/08/2013,05-12566,439.16,Stoke House Nursing Home,y,,,,,,,,,,
Nottinghamshire County Council,1111/1001,Adult Social Care and Health,ASCH,Third Party Payments,ECA,14/08/2013,05-12567,439.16,Stoke House Nursing Home,y,,,,,,,,,,
Nottinghamshire County Council,1111/1001,Adult Social Care and Health,ASCH,Third Party Payments,ECA,14/08/2013,05-12568,439.16,Stoke House Nursing Home,y,,,,,,,,,,
Nottinghamshire County Council,1111/1001,Adult Social Care and Health,ASCH,Third Party Payments,ECA,14/08/2013,05-12569,439.16,Stoke House Nursing Home,y,,,,,,,,,,
Nottinghamshire County Council,1111/1001,Adult Social Care and Health,ASCH,Third Party Payments,ECA,14/08/2013,05-12570,439.16,Stoke House Nursing Home,y,,,,,,,,,,
Nottinghamshire County Council,1111/1001,Adult Social Care and Health,ASCH,Third Party Payments,ECA,14/08/2013,05-12571,598.4,Stoke House Nursing Home,y,,,,,,,,,,
Nottinghamshire County Council,1111/1001,Adult Social Care and Health,ASCH,Third Party Payments,ECA,14/08/2013,05-12572,439.16,Stoke House Nursing Home,y,,,,,,,,,,
Nottinghamshire County Council,1111/1001,Adult Social Care and Health,ASCH,Third Party Payments,ECA,14/08/2013,05-12573,439.16,Stoke House Nursing Home,y,,,,,,,,,,
Nottinghamshire County Council,1111/1001,Adult Social Care and Health,ASCH,Third Party Payments,ECA,14/08/2013,05-12586,439.16,Oakdene Care Home,y,,,,,,,,,,
Nottinghamshire County Council,1111/1001,Adult Social Care and Health,ASCH,Third Party Payments,ECA,14/08/2013,05-12635,439.16,Alexandra Nursing Home,y,,,,,,,,,,
Nottinghamshire County Council,1111/1001,Adult Social Care and Health,ASCH,Third Party Payments,ECA,14/08/2013,05-12676,439.16,Ernhale Lodge Nursing Home,y,,,,,,,,,,
Nottinghamshire County Council,1111/1001,Adult Social Care and Health,ASCH,Third Party Payments,ECA,14/08/2013,05-12677,439.16,Ernhale Lodge Nursing Home,y,,,,,,,,,,
Nottinghamshire County Council,1111/1001,Adult Social Care and Health,ASCH,Third Party Payments,ECA,14/08/2013,05-12679,439.16,Ernhale Lodge Nursing Home,y,,,,,,,,,,
Nottinghamshire County Council,1111/1001,Adult Social Care and Health,ASCH,Third Party Payments,ECA,14/08/2013,05-12682,439.16,Ernhale Lodge Nursing Home,y,,,,,,,,,,
Nottinghamshire County Council,1111/1001,Adult Social Care and Health,ASCH,Third Party Payments,ECA,14/08/2013,05-12683,439.16,Ernhale Lodge Nursing Home,y,,,,,,,,,,
Nottinghamshire County Council,1111/1001,Adult Social Care and Health,ASCH,Third Party Payments,ECA,14/08/2013,05-12686,439.16,Ernhale Lodge Nursing Home,y,,,,,,,,,,
Nottinghamshire County Council,1111/1001,Adult Social Care and Health,ASCH,Third Party Payments,ECA,14/08/2013,05-12691,878.32,West Lodge Nursing Home,y,,,,,,,,,,
Nottinghamshire County Council,1111/1001,Adult Social Care and Health,ASCH,Third Party Payments,ECA,14/08/2013,05-12693,439.16,Whitwell Park Nursing Home,y,,,,,,,,,,
Nottinghamshire County Council,1111/1001,Adult Social Care and Health,ASCH,Third Party Payments,ECA,14/08/2013,05-12738,439.16,Willow Brook Nursing Home,y,,,,,,,,,,
Nottinghamshire County Council,1111/1001,Adult Social Care and Health,ASCH,Third Party Payments,ECA,14/08/2013,05-12739,439.16,Willow Brook Nursing Home,y,,,,,,,,,,
Nottinghamshire County Council,1111/1001,Adult Social Care and Health,ASCH,Third Party Payments,ECA,14/08/2013,05-12742,439.16,Willow Brook Nursing Home,y,,,,,,,,,,
Nottinghamshire County Council,1111/1001,Adult Social Care and Health,ASCH,Third Party Payments,ECA,14/08/2013,05-12745,1082.22,Willow Brook Nursing Home,y,,,,,,,,,,
Nottinghamshire County Council,1111/1001,Adult Social Care and Health,ASCH,Third Party Payments,ECA,14/08/2013,05-12749,439.16,Willow Brook Nursing Home,y,,,,,,,,,,
Nottinghamshire County Council,1111/1001,Adult Social Care and Health,ASCH,Third Party Payments,ECA,14/08/2013,05-12750,439.16,Willow Brook Nursing Home,y,,,,,,,,,,
Nottinghamshire County Council,1111/1001,Adult Social Care and Health,ASCH,Third Party Payments,ECA,14/08/2013,05-12751,439.16,Willow Brook Nursing Home,y,,,,,,,,,,
Nottinghamshire County Council,1111/1001,Adult Social Care and Health,ASCH,Third Party Payments,ECA,14/08/2013,05-12754,439.16,Willow Brook Nursing Home,y,,,,,,,,,,
Nottinghamshire County Council,1111/1001,Adult Social Care and Health,ASCH,Third Party Payments,ECA,14/08/2013,05-12755,439.16,Willow Brook Nursing Home,y,,,,,,,,,,
Nottinghamshire County Council,1111/1001,Adult Social Care and Health,ASCH,Third Party Payments,ECA,14/08/2013,05-12762,439.16,Pathfinders Neurological Care Centr,y,,,,,,,,,,
Nottinghamshire County Council,1111/1001,Adult Social Care and Health,ASCH,Third Party Payments,ECA,14/08/2013,05-12763,439.16,Pathfinders Neurological Care Centr,y,,,,,,,,,,
Nottinghamshire County Council,1111/1001,Adult Social Care and Health,ASCH,Third Party Payments,ECA,14/08/2013,05-12764,439.16,Pathfinders Neurological Care Centr,y,,,,,,,,,,
Nottinghamshire County Council,1111/1001,Adult Social Care and Health,ASCH,Third Party Payments,ECA,14/08/2013,05-12768,439.16,Pathfinders Neurological Care Centr,y,,,,,,,,,,
Nottinghamshire County Council,1111/1001,Adult Social Care and Health,ASCH,Third Party Payments,ECA,14/08/2013,05-12771,439.16,Pathfinders Neurological Care Centr,y,,,,,,,,,,
Nottinghamshire County Council,1111/1001,Adult Social Care and Health,ASCH,Third Party Payments,ECA,14/08/2013,05-12773,439.16,Pathfinders Neurological Care Centr,y,,,,,,,,,,
Nottinghamshire County Council,1111/1001,Adult Social Care and Health,ASCH,Third Party Payments,ECA,14/08/2013,05-12774,439.16,Pathfinders Neurological Care Centr,y,,,,,,,,,,
Nottinghamshire County Council,1111/1001,Adult Social Care and Health,ASCH,Third Party Payments,ECA,14/08/2013,05-12775,439.16,Pathfinders Neurological Care Centr,y,,,,,,,,,,
Nottinghamshire County Council,1111/1001,Adult Social Care and Health,ASCH,Third Party Payments,ECA,14/08/2013,05-12791,439.16,Carlton House Nursing Home,y,,,,,,,,,,
Nottinghamshire County Council,1111/1001,Adult Social Care and Health,ASCH,Third Party Payments,ECA,14/08/2013,05-12792,439.16,Carlton House Nursing Home,y,,,,,,,,,,
Nottinghamshire County Council,1111/1001,Adult Social Care and Health,ASCH,Third Party Payments,ECA,14/08/2013,05-12793,439.16,Carlton House Nursing Home,y,,,,,,,,,,
Nottinghamshire County Council,1111/1001,Adult Social Care and Health,ASCH,Third Party Payments,ECA,14/08/2013,05-12794,439.16,Carlton House Nursing Home,y,,,,,,,,,,
Nottinghamshire County Council,1111/1001,Adult Social Care and Health,ASCH,Third Party Payments,ECA,14/08/2013,05-12795,598.4,Carlton House Nursing Home,y,,,,,,,,,,
Nottinghamshire County Council,1111/1001,Adult Social Care and Health,ASCH,Third Party Payments,ECA,14/08/2013,05-12796,439.16,Carlton House Nursing Home,y,,,,,,,,,,
Nottinghamshire County Council,1111/1001,Adult Social Care and Health,ASCH,Third Party Payments,ECA,14/08/2013,05-12797,439.16,Carlton House Nursing Home,y,,,,,,,,,,
Nottinghamshire County Council,1111/1001,Adult Social Care and Health,ASCH,Third Party Payments,ECA,14/08/2013,05-12798,439.16,Carlton House Nursing Home,y,,,,,,,,,,
